Workbook

Sheet EventConfig
A1: ID | B1: EventLinksId | C1: EventTriggerType | D1: EventTag | E1: EventType | F1: Score | G1: EventQuality | H1: PrizeType | I1: PrizeIDs | J1: PrizeNums | K1: RefreshProbability | L1: RefreshCount | M1: placeID | N1: SmallPlacesId | P1: XiantuID | Q1: =SUMIF(C:C,2,K:K) -> 0 | R1: EventConditionId | S1: EventValue | T1: EventCount | U1: EventName | V1: Description
A2: int | B2: int[] | C2: int | D2: int | E2: int | F2: int | G2: int | H2: int[] | I2: int[] | J2: int[] | K2: int | L2: int | M2: int | N2: int | P2: int | R2: int | S2: int[] | T2: int | U2: int | V2: int
W3: 语言表最大值 | X3: =MAX(U:V) -> 4325 | Z3: 1 | AA3: 2 | AB3: 3 | AC3: 4 | AD3: 5 | AE3: 6 | AF3: 7 | AG3: 8 | AH3: 9 | AI3: 10 | AJ3: 11 | AK3: 12 | AL3: 13 | AM3: 14 | AN3: 15 | AO3: 16 | AP3: 17 | AQ3: 18 | AR3: 19 | AS3: 20
A4: ID | B4: 事件包含的ID | C4: 事件类型： 1.通用事件 2.挂机事件 4.主线任务 5.仙山探险 6.支线事件 88.特定任务触发的事件 99.无标记 | D4: tag 1主线2支线 3通用 4地图通用 5道友6任务 7资源 | E4: 1.正常触发 2.直接结算 | F4: 增加进度值 | G4: 事件品质 | H4: 产出tag 在辅助表查询 | I4: 事件结局奖励 | J4: 事件结局奖励数量 | K4: 刷新的概率 （100=100%） | L4: 最大刷新数量 | M4: 属于哪张地图 | N4: 属于哪张小地图 | P4: 仙途日志ID | Q4: 触发条件 | R4: 触发条件类型 只能配处于什么状态和数值，不能配变化的数值 | S4: 触发效果值 | T4: 触发判定数量or次数 | U4: 任务标题 | V4: 任务详情界面的总描述 | W4: 标题 | X4: 整体描述 | Y4: 总步数 | Z4: 步骤1 | AA4: 步骤2 | AB4: 步骤3 | AC4: 步骤4 | AD4: 步骤5 | AE4: 步骤6 | AF4: 步骤7 | AG4: 步骤8 | AH4: 步骤9 | AI4: 步骤10 | AJ4: 步骤11 | AK4: 步骤12 | AL4: 步骤13 | AM4: 步骤14 | AN4: 步骤15 | AO4: 步骤16 | AP4: 步骤17 | AQ4: 步骤18 | AR4: 步骤19 | AS4: 步骤20 | AT4: 道具1 | AU4: 数量1 | AV4: 道具2 | AW4: 数量2
A5: 101 | B5: =IF(Y5>0,_xlfn.TEXTJOIN(";",1,ROW(INDIRECT(CONCATENATE("",A5*100+1,":",A5*100+Y5,""))),102),"") -> 10101;102 | C5: 1 | D5: 7 | E5: 1 | F5: 0 | G5: 1 | H5: 6 | I5: =_xlfn.TEXTJOIN(";",1,AT5,AV5) -> 1003;999001 | J5: =_xlfn.TEXTJOIN(";",1,AU5,AW5) -> -1000;1 | K5: 10 | Q5: =IF(R5="","",VLOOKUP(R5,条件类型查询!A:B,2,FALSE)) ->  | U5: 4001 | V5: 4076 | W5: =CONCATENATE("[资源",G5,"]",AY5) -> [资源1]法宝掉落×1 | Y5: =COUNTIF(EventLinkConfig!O:O,EventConfig!A5) -> 1 | AS5: 100 | AT5: 1003 | AU5: -1000 | AV5: 999001 | AW5: 1 | AX5: =IF(AT5="","",CONCATENATE(VLOOKUP(AT5,[1]DropConfig!$A:$F,3,FALSE),"×",AU5)) -> 修为×-1000 | AY5: =IF(AV5="","",CONCATENATE(VLOOKUP(AV5,[1]DropConfig!$A:$F,3,FALSE),"×",AW5)) -> 法宝掉落×1
A6: 102 | B6: =IF(Y6>0,_xlfn.TEXTJOIN(";",1,ROW(INDIRECT(CONCATENATE("",A6*100+1,":",A6*100+Y6,""))),102),"") -> 10201;102 | C6: 1 | D6: 7 | E6: 1 | F6: 0 | G6: 1 | H6: 5 | I6: =_xlfn.TEXTJOIN(";",1,AT6,AV6) -> 1003;999002 | J6: =_xlfn.TEXTJOIN(";",1,AU6,AW6) -> -1000;1 | K6: 10 | Q6: =IF(R6="","",VLOOKUP(R6,条件类型查询!A:B,2,FALSE)) ->  | U6: 4002 | V6: 4077 | W6: =CONCATENATE("[资源",G6,"]",AY6) -> [资源1]功法掉落×1 | Y6: =COUNTIF(EventLinkConfig!O:O,EventConfig!A6) -> 1 | AS6: 100 | AT6: 1003 | AU6: -1000 | AV6: 999002 | AW6: 1 | AX6: =IF(AT6="","",CONCATENATE(VLOOKUP(AT6,[1]DropConfig!$A:$F,3,FALSE),"×",AU6)) -> 修为×-1000 | AY6: =IF(AV6="","",CONCATENATE(VLOOKUP(AV6,[1]DropConfig!$A:$F,3,FALSE),"×",AW6)) -> 功法掉落×1
A7: 103 | B7: =IF(Y7>0,_xlfn.TEXTJOIN(";",1,ROW(INDIRECT(CONCATENATE("",A7*100+1,":",A7*100+Y7,""))),102),"") -> 10301;102 | C7: 1 | D7: 7 | E7: 1 | F7: 0 | G7: 1 | H7: 1 | I7: 1003;1001 | J7: -1000;-5000 | K7: 100 | Q7: =IF(R7="","",VLOOKUP(R7,条件类型查询!A:B,2,FALSE)) ->  | U7: 4003 | V7: 4078 | W7: [资源1]灵石×-5000 | Y7: =COUNTIF(EventLinkConfig!O:O,EventConfig!A7) -> 1 | AS7: 100 | AT7: 1003 | AU7: -1000 | AV7: 1001 | AW7: -5000 | AX7: =IF(AT7="","",CONCATENATE(VLOOKUP(AT7,[1]DropConfig!$A:$F,3,FALSE),"×",AU7)) -> 修为×-1000 | AY7: =IF(AV7="","",CONCATENATE(VLOOKUP(AV7,[1]DropConfig!$A:$F,3,FALSE),"×",AW7)) -> 灵石×-5000
A8: 104 | B8: =IF(Y8>0,_xlfn.TEXTJOIN(";",1,ROW(INDIRECT(CONCATENATE("",A8*100+1,":",A8*100+Y8,""))),102),"") -> 10401;102 | C8: 1 | D8: 7 | E8: 1 | F8: 0 | G8: 1 | H8: 3 | I8: 1003;1005 | J8: -1000;-5000 | K8: 100 | Q8: =IF(R8="","",VLOOKUP(R8,条件类型查询!A:B,2,FALSE)) ->  | U8: 4004 | V8: 4079 | W8: [资源1]灵气×-5000 | Y8: =COUNTIF(EventLinkConfig!O:O,EventConfig!A8) -> 1 | AS8: 100 | AT8: 1003 | AU8: -1000 | AV8: 1005 | AW8: -5000 | AX8: =IF(AT8="","",CONCATENATE(VLOOKUP(AT8,[1]DropConfig!$A:$F,3,FALSE),"×",AU8)) -> 修为×-1000 | AY8: =IF(AV8="","",CONCATENATE(VLOOKUP(AV8,[1]DropConfig!$A:$F,3,FALSE),"×",AW8)) -> 灵气×-5000
A9: 105 | B9: =IF(Y9>0,_xlfn.TEXTJOIN(";",1,ROW(INDIRECT(CONCATENATE("",A9*100+1,":",A9*100+Y9,""))),102),"") -> 10501;102 | C9: 1 | D9: 7 | E9: 1 | F9: 0 | G9: 1 | H9: 4 | I9: 1003;1006 | J9: -1000;-5000 | K9: 100 | Q9: =IF(R9="","",VLOOKUP(R9,条件类型查询!A:B,2,FALSE)) ->  | U9: 4005 | V9: 4080 | W9: [资源1]玄晶×-5000 | Y9: =COUNTIF(EventLinkConfig!O:O,EventConfig!A9) -> 1 | AS9: 100 | AT9: 1003 | AU9: -1000 | AV9: 1006 | AW9: -5000 | AX9: =IF(AT9="","",CONCATENATE(VLOOKUP(AT9,[1]DropConfig!$A:$F,3,FALSE),"×",AU9)) -> 修为×-1000 | AY9: =IF(AV9="","",CONCATENATE(VLOOKUP(AV9,[1]DropConfig!$A:$F,3,FALSE),"×",AW9)) -> 玄晶×-5000
A10: 106 | B10: =IF(Y10>0,_xlfn.TEXTJOIN(";",1,ROW(INDIRECT(CONCATENATE("",A10*100+1,":",A10*100+Y10,""))),102),"") -> 10601;102 | C10: 1 | D10: 7 | E10: 1 | F10: 0 | G10: 1 | H10: 12 | I10: 1003;1002 | J10: -1000;100 | K10: 30 | Q10: =IF(R10="","",VLOOKUP(R10,条件类型查询!A:B,2,FALSE)) ->  | U10: 4006 | V10: 4081 | W10: [资源1]妖丹×100 | Y10: =COUNTIF(EventLinkConfig!O:O,EventConfig!A10) -> 1 | AS10: 100 | AT10: 1003 | AU10: -1000 | AV10: 1002 | AW10: 100 | AX10: =IF(AT10="","",CONCATENATE(VLOOKUP(AT10,[1]DropConfig!$A:$F,3,FALSE),"×",AU10)) -> 修为×-1000 | AY10: =IF(AV10="","",CONCATENATE(VLOOKUP(AV10,[1]DropConfig!$A:$F,3,FALSE),"×",AW10)) -> 妖丹×100
A11: 107 | B11: =IF(Y11>0,_xlfn.TEXTJOIN(";",1,ROW(INDIRECT(CONCATENATE("",A11*100+1,":",A11*100+Y11,""))),102),"") -> 10701;102 | C11: 1 | D11: 7 | E11: 1 | F11: 0 | G11: 1 | H11: 13 | I11: 1003;1004 | J11: -1000;10 | K11: 20 | U11: 4007 | V11: 4082 | W11: [资源1]仙缘宝券×10 | Y11: =COUNTIF(EventLinkConfig!O:O,EventConfig!A11) -> 1 | AG11: =IF($Y11>=AG$3,$A11*100+AG$3,"") ->  | AS11: 100 | AT11: 1003 | AU11: -1000 | AV11: 1004 | AW11: 10 | AX11: =IF(AT11="","",CONCATENATE(VLOOKUP(AT11,[1]DropConfig!$A:$F,3,FALSE),"×",AU11)) -> 修为×-1000 | AY11: =IF(AV11="","",CONCATENATE(VLOOKUP(AV11,[1]DropConfig!$A:$F,3,FALSE),"×",AW11)) -> 仙缘宝券×10
A12: 108 | B12: =IF(Y12>0,_xlfn.TEXTJOIN(";",1,ROW(INDIRECT(CONCATENATE("",A12*100+1,":",A12*100+Y12,""))),102),"") -> 10801;102 | C12: 1 | D12: 7 | E12: 1 | F12: 0 | G12: 1 | H12: 10 | I12: 1003;1501 | J12: -1000;1 | K12: 60 | U12: 4008 | V12: 4083 | W12: [资源1]好感度礼物1×1 | Y12: =COUNTIF(EventLinkConfig!O:O,EventConfig!A12) -> 1 | AS12: 100 | AT12: 1003 | AU12: -1000 | AV12: 1501 | AW12: 1 | AX12: =IF(AT12="","",CONCATENATE(VLOOKUP(AT12,[1]DropConfig!$A:$F,3,FALSE),"×",AU12)) -> 修为×-1000 | AY12: =IF(AV12="","",CONCATENATE(VLOOKUP(AV12,[1]DropConfig!$A:$F,3,FALSE),"×",AW12)) -> 好感度礼物1×1
A13: 109 | B13: =IF(Y13>0,_xlfn.TEXTJOIN(";",1,ROW(INDIRECT(CONCATENATE("",A13*100+1,":",A13*100+Y13,""))),102),"") -> 10901;102 | C13: 1 | D13: 7 | E13: 1 | F13: 0 | G13: 1 | H13: 11 | I13: 1003;1601 | J13: -1000;1 | K13: 40 | U13: 4009 | V13: 4084 | W13: [资源1]心情礼物1×1 | Y13: =COUNTIF(EventLinkConfig!O:O,EventConfig!A13) -> 1 | AS13: 100 | AT13: 1003 | AU13: -1000 | AV13: 1601 | AW13: 1 | AX13: =IF(AT13="","",CONCATENATE(VLOOKUP(AT13,[1]DropConfig!$A:$F,3,FALSE),"×",AU13)) -> 修为×-1000 | AY13: =IF(AV13="","",CONCATENATE(VLOOKUP(AV13,[1]DropConfig!$A:$F,3,FALSE),"×",AW13)) -> 心情礼物1×1
A14: 110 | B14: =IF(Y14>0,_xlfn.TEXTJOIN(";",1,ROW(INDIRECT(CONCATENATE("",A14*100+1,":",A14*100+Y14,""))),102),"") -> 11001;102 | C14: 1 | D14: 7 | E14: 1 | F14: 0 | G14: 2 | H14: 6 | I14: 1003;999001 | J14: -1100;1 | K14: 15 | U14: 4010 | V14: 4085 | W14: [资源2]法宝掉落×1 | Y14: =COUNTIF(EventLinkConfig!O:O,EventConfig!A14) -> 1 | AS14: 100 | AT14: 1003 | AU14: -1100 | AV14: 999001 | AW14: 1 | AX14: =IF(AT14="","",CONCATENATE(VLOOKUP(AT14,[1]DropConfig!$A:$F,3,FALSE),"×",AU14)) -> 修为×-1100 | AY14: =IF(AV14="","",CONCATENATE(VLOOKUP(AV14,[1]DropConfig!$A:$F,3,FALSE),"×",AW14)) -> 法宝掉落×1
A15: 111 | B15: =IF(Y15>0,_xlfn.TEXTJOIN(";",1,ROW(INDIRECT(CONCATENATE("",A15*100+1,":",A15*100+Y15,""))),102),"") -> 11101;102 | C15: 1 | D15: 7 | E15: 1 | F15: 0 | G15: 2 | H15: 5 | I15: 1003;999002 | J15: -1100;1 | K15: 15 | U15: 4011 | V15: 4086 | W15: [资源2]功法掉落×1 | Y15: =COUNTIF(EventLinkConfig!O:O,EventConfig!A15) -> 1 | AS15: 100 | AT15: 1003 | AU15: -1100 | AV15: 999002 | AW15: 1 | AX15: =IF(AT15="","",CONCATENATE(VLOOKUP(AT15,[1]DropConfig!$A:$F,3,FALSE),"×",AU15)) -> 修为×-1100 | AY15: =IF(AV15="","",CONCATENATE(VLOOKUP(AV15,[1]DropConfig!$A:$F,3,FALSE),"×",AW15)) -> 功法掉落×1
A16: 112 | B16: =IF(Y16>0,_xlfn.TEXTJOIN(";",1,ROW(INDIRECT(CONCATENATE("",A16*100+1,":",A16*100+Y16,""))),102),"") -> 11201;102 | C16: 1 | D16: 7 | E16: 1 | F16: 0 | G16: 2 | H16: 1 | I16: 1003;1001 | J16: -1100;-5000 | K16: 100 | U16: 4012 | V16: 4087 | W16: [资源2]灵石×-5000 | Y16: =COUNTIF(EventLinkConfig!O:O,EventConfig!A16) -> 1 | AS16: 100 | AT16: 1003 | AU16: -1100 | AV16: 1001 | AW16: -5000 | AX16: =IF(AT16="","",CONCATENATE(VLOOKUP(AT16,[1]DropConfig!$A:$F,3,FALSE),"×",AU16)) -> 修为×-1100 | AY16: =IF(AV16="","",CONCATENATE(VLOOKUP(AV16,[1]DropConfig!$A:$F,3,FALSE),"×",AW16)) -> 灵石×-5000
A17: 113 | B17: =IF(Y17>0,_xlfn.TEXTJOIN(";",1,ROW(INDIRECT(CONCATENATE("",A17*100+1,":",A17*100+Y17,""))),102),"") -> 11301;102 | C17: 1 | D17: 7 | E17: 1 | F17: 0 | G17: 2 | H17: 3 | I17: 1003;1005 | J17: -1100;-5000 | K17: 100 | U17: 4013 | V17: 4088 | W17: [资源2]灵气×-5000 | Y17: =COUNTIF(EventLinkConfig!O:O,EventConfig!A17) -> 1 | AS17: 100 | AT17: 1003 | AU17: -1100 | AV17: 1005 | AW17: -5000 | AX17: =IF(AT17="","",CONCATENATE(VLOOKUP(AT17,[1]DropConfig!$A:$F,3,FALSE),"×",AU17)) -> 修为×-1100 | AY17: =IF(AV17="","",CONCATENATE(VLOOKUP(AV17,[1]DropConfig!$A:$F,3,FALSE),"×",AW17)) -> 灵气×-5000
A18: 114 | B18: =IF(Y18>0,_xlfn.TEXTJOIN(";",1,ROW(INDIRECT(CONCATENATE("",A18*100+1,":",A18*100+Y18,""))),102),"") -> 11401;102 | C18: 1 | D18: 7 | E18: 1 | F18: 0 | G18: 2 | H18: 4 | I18: 1003;1006 | J18: -1100;-5000 | K18: 100 | U18: 4014 | V18: 4089 | W18: [资源2]玄晶×-5000 | Y18: =COUNTIF(EventLinkConfig!O:O,EventConfig!A18) -> 1 | AS18: 100 | AT18: 1003 | AU18: -1100 | AV18: 1006 | AW18: -5000 | AX18: =IF(AT18="","",CONCATENATE(VLOOKUP(AT18,[1]DropConfig!$A:$F,3,FALSE),"×",AU18)) -> 修为×-1100 | AY18: =IF(AV18="","",CONCATENATE(VLOOKUP(AV18,[1]DropConfig!$A:$F,3,FALSE),"×",AW18)) -> 玄晶×-5000
A19: 115 | B19: =IF(Y19>0,_xlfn.TEXTJOIN(";",1,ROW(INDIRECT(CONCATENATE("",A19*100+1,":",A19*100+Y19,""))),102),"") -> 11501;102 | C19: 1 | D19: 7 | E19: 1 | F19: 0 | G19: 2 | H19: 12 | I19: 1003;1002 | J19: -1100;100 | K19: 35 | U19: 4015 | V19: 4090 | W19: [资源2]妖丹×100 | Y19: =COUNTIF(EventLinkConfig!O:O,EventConfig!A19) -> 1 | Z19: 11501 | AS19: 100 | AT19: 1003 | AU19: -1100 | AV19: 1002 | AW19: 100 | AX19: =IF(AT19="","",CONCATENATE(VLOOKUP(AT19,[1]DropConfig!$A:$F,3,FALSE),"×",AU19)) -> 修为×-1100 | AY19: =IF(AV19="","",CONCATENATE(VLOOKUP(AV19,[1]DropConfig!$A:$F,3,FALSE),"×",AW19)) -> 妖丹×100
A20: 116 | B20: =IF(Y20>0,_xlfn.TEXTJOIN(";",1,ROW(INDIRECT(CONCATENATE("",A20*100+1,":",A20*100+Y20,""))),102),"") -> 11601;102 | C20: 1 | D20: 7 | E20: 1 | F20: 0 | G20: 2 | H20: 13 | I20: 1003;1004 | J20: -1100;10 | K20: 25 | U20: 4016 | V20: 4091 | W20: [资源2]仙缘宝券×10 | Y20: =COUNTIF(EventLinkConfig!O:O,EventConfig!A20) -> 1 | Z20: 11601 | AS20: 100 | AT20: 1003 | AU20: -1100 | AV20: 1004 | AW20: 10 | AX20: =IF(AT20="","",CONCATENATE(VLOOKUP(AT20,[1]DropConfig!$A:$F,3,FALSE),"×",AU20)) -> 修为×-1100 | AY20: =IF(AV20="","",CONCATENATE(VLOOKUP(AV20,[1]DropConfig!$A:$F,3,FALSE),"×",AW20)) -> 仙缘宝券×10
A21: 117 | B21: =IF(Y21>0,_xlfn.TEXTJOIN(";",1,ROW(INDIRECT(CONCATENATE("",A21*100+1,":",A21*100+Y21,""))),102),"") -> 11701;102 | C21: 1 | D21: 7 | E21: 1 | F21: 0 | G21: 2 | H21: 10 | I21: 1003;1501 | J21: -1100;1 | K21: 65 | U21: 4017 | V21: 4092 | W21: [资源2]好感度礼物1×1 | Y21: =COUNTIF(EventLinkConfig!O:O,EventConfig!A21) -> 1 | Z21: =IF($Y21>=Z$3,$A21*100+Z$3,"") -> 11701 | AS21: 100 | AT21: 1003 | AU21: -1100 | AV21: 1501 | AW21: 1 | AX21: =IF(AT21="","",CONCATENATE(VLOOKUP(AT21,[1]DropConfig!$A:$F,3,FALSE),"×",AU21)) -> 修为×-1100 | AY21: =IF(AV21="","",CONCATENATE(VLOOKUP(AV21,[1]DropConfig!$A:$F,3,FALSE),"×",AW21)) -> 好感度礼物1×1
A22: 118 | B22: =IF(Y22>0,_xlfn.TEXTJOIN(";",1,ROW(INDIRECT(CONCATENATE("",A22*100+1,":",A22*100+Y22,""))),102),"") -> 11801;102 | C22: 1 | D22: 7 | E22: 1 | F22: 0 | G22: 2 | H22: 11 | I22: 1003;1601 | J22: -1100;1 | K22: 45 | U22: 4018 | V22: 4093 | W22: [资源2]心情礼物1×1 | Y22: =COUNTIF(EventLinkConfig!O:O,EventConfig!A22) -> 1 | Z22: 11801 | AS22: 100 | AT22: 1003 | AU22: -1100 | AV22: 1601 | AW22: 1 | AX22: =IF(AT22="","",CONCATENATE(VLOOKUP(AT22,[1]DropConfig!$A:$F,3,FALSE),"×",AU22)) -> 修为×-1100 | AY22: =IF(AV22="","",CONCATENATE(VLOOKUP(AV22,[1]DropConfig!$A:$F,3,FALSE),"×",AW22)) -> 心情礼物1×1
A23: 119 | B23: =IF(Y23>0,_xlfn.TEXTJOIN(";",1,ROW(INDIRECT(CONCATENATE("",A23*100+1,":",A23*100+Y23,""))),102),"") -> 11901;102 | C23: 1 | D23: 7 | E23: 1 | F23: 0 | G23: 3 | H23: 6 | I23: 1003;999001 | J23: -1200;1 | K23: 20 | U23: 4298 | V23: 4094 | W23: [资源3]法宝掉落×1 | Y23: =COUNTIF(EventLinkConfig!O:O,EventConfig!A23) -> 1 | Z23: 11901 | AS23: 100 | AT23: 1003 | AU23: -1200 | AV23: 999001 | AW23: 1 | AX23: =IF(AT23="","",CONCATENATE(VLOOKUP(AT23,[1]DropConfig!$A:$F,3,FALSE),"×",AU23)) -> 修为×-1200 | AY23: =IF(AV23="","",CONCATENATE(VLOOKUP(AV23,[1]DropConfig!$A:$F,3,FALSE),"×",AW23)) -> 法宝掉落×1
A24: 120 | B24: =IF(Y24>0,_xlfn.TEXTJOIN(";",1,ROW(INDIRECT(CONCATENATE("",A24*100+1,":",A24*100+Y24,""))),102),"") -> 12001;102 | C24: 1 | D24: 7 | E24: 1 | F24: 0 | G24: 3 | H24: 5 | I24: 1003;999002 | J24: -1200;1 | K24: 20 | U24: 4299 | V24: 4095 | W24: [资源3]功法掉落×1 | Y24: =COUNTIF(EventLinkConfig!O:O,EventConfig!A24) -> 1 | Z24: 12001 | AS24: 100 | AT24: 1003 | AU24: -1200 | AV24: 999002 | AW24: 1 | AX24: =IF(AT24="","",CONCATENATE(VLOOKUP(AT24,[1]DropConfig!$A:$F,3,FALSE),"×",AU24)) -> 修为×-1200 | AY24: =IF(AV24="","",CONCATENATE(VLOOKUP(AV24,[1]DropConfig!$A:$F,3,FALSE),"×",AW24)) -> 功法掉落×1
A25: 121 | B25: =IF(Y25>0,_xlfn.TEXTJOIN(";",1,ROW(INDIRECT(CONCATENATE("",A25*100+1,":",A25*100+Y25,""))),102),"") -> 12101;102 | C25: 1 | D25: 7 | E25: 1 | F25: 0 | G25: 3 | H25: 1 | I25: 1003;1001 | J25: -1200;-5000 | K25: 100 | U25: 4300 | V25: 4096 | W25: [资源3]灵石×-5000 | Y25: =COUNTIF(EventLinkConfig!O:O,EventConfig!A25) -> 1 | Z25: 12101 | AS25: 100 | AT25: 1003 | AU25: -1200 | AV25: 1001 | AW25: -5000 | AX25: =IF(AT25="","",CONCATENATE(VLOOKUP(AT25,[1]DropConfig!$A:$F,3,FALSE),"×",AU25)) -> 修为×-1200 | AY25: =IF(AV25="","",CONCATENATE(VLOOKUP(AV25,[1]DropConfig!$A:$F,3,FALSE),"×",AW25)) -> 灵石×-5000
A26: 122 | B26: =IF(Y26>0,_xlfn.TEXTJOIN(";",1,ROW(INDIRECT(CONCATENATE("",A26*100+1,":",A26*100+Y26,""))),102),"") -> 12201;102 | C26: 1 | D26: 7 | E26: 1 | F26: 0 | G26: 3 | H26: 3 | I26: 1003;1005 | J26: -1200;-5000 | K26: 100 | U26: 4301 | V26: 4097 | W26: [资源3]灵气×-5000 | Y26: =COUNTIF(EventLinkConfig!O:O,EventConfig!A26) -> 1 | Z26: 12201 | AS26: 100 | AT26: 1003 | AU26: -1200 | AV26: 1005 | AW26: -5000 | AX26: =IF(AT26="","",CONCATENATE(VLOOKUP(AT26,[1]DropConfig!$A:$F,3,FALSE),"×",AU26)) -> 修为×-1200 | AY26: =IF(AV26="","",CONCATENATE(VLOOKUP(AV26,[1]DropConfig!$A:$F,3,FALSE),"×",AW26)) -> 灵气×-5000
A27: 123 | B27: =IF(Y27>0,_xlfn.TEXTJOIN(";",1,ROW(INDIRECT(CONCATENATE("",A27*100+1,":",A27*100+Y27,""))),102),"") -> 12301;102 | C27: 1 | D27: 7 | E27: 1 | F27: 0 | G27: 3 | H27: 4 | I27: 1003;1006 | J27: -1200;-5000 | K27: 100 | U27: 4302 | V27: 4098 | W27: [资源3]玄晶×-5000 | Y27: =COUNTIF(EventLinkConfig!O:O,EventConfig!A27) -> 1 | Z27: 12301 | AS27: 100 | AT27: 1003 | AU27: -1200 | AV27: 1006 | AW27: -5000 | AX27: =IF(AT27="","",CONCATENATE(VLOOKUP(AT27,[1]DropConfig!$A:$F,3,FALSE),"×",AU27)) -> 修为×-1200 | AY27: =IF(AV27="","",CONCATENATE(VLOOKUP(AV27,[1]DropConfig!$A:$F,3,FALSE),"×",AW27)) -> 玄晶×-5000
A28: 124 | B28: =IF(Y28>0,_xlfn.TEXTJOIN(";",1,ROW(INDIRECT(CONCATENATE("",A28*100+1,":",A28*100+Y28,""))),102),"") -> 12401;102 | C28: 1 | D28: 7 | E28: 1 | F28: 0 | G28: 3 | H28: 12 | I28: 1003;1002 | J28: -1200;100 | K28: 40 | U28: 4303 | V28: 4099 | W28: [资源3]妖丹×100 | Y28: =COUNTIF(EventLinkConfig!O:O,EventConfig!A28) -> 1 | Z28: 12401 | AS28: 100 | AT28: 1003 | AU28: -1200 | AV28: 1002 | AW28: 100 | AX28: =IF(AT28="","",CONCATENATE(VLOOKUP(AT28,[1]DropConfig!$A:$F,3,FALSE),"×",AU28)) -> 修为×-1200 | AY28: =IF(AV28="","",CONCATENATE(VLOOKUP(AV28,[1]DropConfig!$A:$F,3,FALSE),"×",AW28)) -> 妖丹×100
A29: 125 | B29: =IF(Y29>0,_xlfn.TEXTJOIN(";",1,ROW(INDIRECT(CONCATENATE("",A29*100+1,":",A29*100+Y29,""))),102),"") -> 12501;102 | C29: 1 | D29: 7 | E29: 1 | F29: 0 | G29: 3 | H29: 13 | I29: 1003;1004 | J29: -1200;10 | K29: 30 | U29: 4304 | V29: 4100 | W29: [资源3]仙缘宝券×10 | Y29: =COUNTIF(EventLinkConfig!O:O,EventConfig!A29) -> 1 | Z29: 12501 | AS29: 100 | AT29: 1003 | AU29: -1200 | AV29: 1004 | AW29: 10 | AX29: =IF(AT29="","",CONCATENATE(VLOOKUP(AT29,[1]DropConfig!$A:$F,3,FALSE),"×",AU29)) -> 修为×-1200 | AY29: =IF(AV29="","",CONCATENATE(VLOOKUP(AV29,[1]DropConfig!$A:$F,3,FALSE),"×",AW29)) -> 仙缘宝券×10
A30: 126 | B30: =IF(Y30>0,_xlfn.TEXTJOIN(";",1,ROW(INDIRECT(CONCATENATE("",A30*100+1,":",A30*100+Y30,""))),102),"") -> 12601;102 | C30: 1 | D30: 7 | E30: 1 | F30: 0 | G30: 3 | H30: 10 | I30: 1003;1501 | J30: -1200;1 | K30: 70 | U30: 4305 | V30: 4101 | W30: [资源3]好感度礼物1×1 | Y30: =COUNTIF(EventLinkConfig!O:O,EventConfig!A30) -> 1 | Z30: 12601 | AS30: 100 | AT30: 1003 | AU30: -1200 | AV30: 1501 | AW30: 1 | AX30: =IF(AT30="","",CONCATENATE(VLOOKUP(AT30,[1]DropConfig!$A:$F,3,FALSE),"×",AU30)) -> 修为×-1200 | AY30: =IF(AV30="","",CONCATENATE(VLOOKUP(AV30,[1]DropConfig!$A:$F,3,FALSE),"×",AW30)) -> 好感度礼物1×1
A31: 127 | B31: =IF(Y31>0,_xlfn.TEXTJOIN(";",1,ROW(INDIRECT(CONCATENATE("",A31*100+1,":",A31*100+Y31,""))),102),"") -> 12701;102 | C31: 1 | D31: 7 | E31: 1 | F31: 0 | G31: 3 | H31: 11 | I31: 1003;1601 | J31: -1200;1 | K31: 50 | U31: 4306 | V31: 4102 | W31: [资源3]心情礼物1×1 | Y31: =COUNTIF(EventLinkConfig!O:O,EventConfig!A31) -> 1 | Z31: 12701 | AS31: 100 | AT31: 1003 | AU31: -1200 | AV31: 1601 | AW31: 1 | AX31: =IF(AT31="","",CONCATENATE(VLOOKUP(AT31,[1]DropConfig!$A:$F,3,FALSE),"×",AU31)) -> 修为×-1200 | AY31: =IF(AV31="","",CONCATENATE(VLOOKUP(AV31,[1]DropConfig!$A:$F,3,FALSE),"×",AW31)) -> 心情礼物1×1
A32: 128 | B32: =IF(Y32>0,_xlfn.TEXTJOIN(";",1,ROW(INDIRECT(CONCATENATE("",A32*100+1,":",A32*100+Y32,""))),102),"") -> 12801;102 | C32: 1 | D32: 7 | E32: 1 | F32: 0 | G32: 4 | H32: 6 | I32: =_xlfn.TEXTJOIN(";",1,AT32,AV32) -> 1003;999001 | J32: =_xlfn.TEXTJOIN(";",1,AU32,AW32) -> -1300;1 | K32: 25 | U32: 4307 | V32: 4094 | W32: [资源4]法宝掉落×1 | Y32: =COUNTIF(EventLinkConfig!O:O,EventConfig!A32) -> 1 | Z32: 12801 | AS32: 100 | AT32: 1003 | AU32: -1300 | AV32: 999001 | AW32: 1 | AX32: =IF(AT32="","",CONCATENATE(VLOOKUP(AT32,[1]DropConfig!$A:$F,3,FALSE),"×",AU32)) -> 修为×-1300 | AY32: =IF(AV32="","",CONCATENATE(VLOOKUP(AV32,[1]DropConfig!$A:$F,3,FALSE),"×",AW32)) -> 法宝掉落×1
A33: 129 | B33: =IF(Y33>0,_xlfn.TEXTJOIN(";",1,ROW(INDIRECT(CONCATENATE("",A33*100+1,":",A33*100+Y33,""))),102),"") -> 12901;102 | C33: 1 | D33: 7 | E33: 1 | F33: 0 | G33: 4 | H33: 5 | I33: 1003;999002 | J33: -1300;1 | K33: 25 | U33: 4308 | V33: 4095 | W33: [资源4]功法掉落×1 | Y33: =COUNTIF(EventLinkConfig!O:O,EventConfig!A33) -> 1 | Z33: 12901 | AS33: 100 | AT33: 1003 | AU33: -1300 | AV33: 999002 | AW33: 1 | AX33: =IF(AT33="","",CONCATENATE(VLOOKUP(AT33,[1]DropConfig!$A:$F,3,FALSE),"×",AU33)) -> 修为×-1300 | AY33: =IF(AV33="","",CONCATENATE(VLOOKUP(AV33,[1]DropConfig!$A:$F,3,FALSE),"×",AW33)) -> 功法掉落×1
A34: 130 | B34: =IF(Y34>0,_xlfn.TEXTJOIN(";",1,ROW(INDIRECT(CONCATENATE("",A34*100+1,":",A34*100+Y34,""))),102),"") -> 13001;102 | C34: 1 | D34: 7 | E34: 1 | F34: 0 | G34: 4 | H34: 1 | I34: 1003;1001 | J34: -1300;-5000 | K34: 100 | U34: 4309 | V34: 4096 | W34: [资源4]灵石×-5000 | Y34: =COUNTIF(EventLinkConfig!O:O,EventConfig!A34) -> 1 | Z34: 13001 | AS34: 100 | AT34: 1003 | AU34: -1300 | AV34: 1001 | AW34: -5000 | AX34: =IF(AT34="","",CONCATENATE(VLOOKUP(AT34,[1]DropConfig!$A:$F,3,FALSE),"×",AU34)) -> 修为×-1300 | AY34: =IF(AV34="","",CONCATENATE(VLOOKUP(AV34,[1]DropConfig!$A:$F,3,FALSE),"×",AW34)) -> 灵石×-5000
A35: 131 | B35: =IF(Y35>0,_xlfn.TEXTJOIN(";",1,ROW(INDIRECT(CONCATENATE("",A35*100+1,":",A35*100+Y35,""))),102),"") -> 13101;102 | C35: 1 | D35: 7 | E35: 1 | F35: 0 | G35: 4 | H35: 3 | I35: 1003;1005 | J35: -1300;-5000 | K35: 100 | U35: 4310 | V35: 4097 | W35: [资源4]灵气×-5000 | Y35: =COUNTIF(EventLinkConfig!O:O,EventConfig!A35) -> 1 | Z35: 13101 | AS35: 100 | AT35: 1003 | AU35: -1300 | AV35: 1005 | AW35: -5000 | AX35: =IF(AT35="","",CONCATENATE(VLOOKUP(AT35,[1]DropConfig!$A:$F,3,FALSE),"×",AU35)) -> 修为×-1300 | AY35: =IF(AV35="","",CONCATENATE(VLOOKUP(AV35,[1]DropConfig!$A:$F,3,FALSE),"×",AW35)) -> 灵气×-5000
A36: 132 | B36: =IF(Y36>0,_xlfn.TEXTJOIN(";",1,ROW(INDIRECT(CONCATENATE("",A36*100+1,":",A36*100+Y36,""))),102),"") -> 13201;102 | C36: 1 | D36: 7 | E36: 1 | F36: 0 | G36: 4 | H36: 4 | I36: 1003;1006 | J36: -1300;-5000 | K36: 100 | U36: 4311 | V36: 4098 | W36: [资源4]玄晶×-5000 | Y36: =COUNTIF(EventLinkConfig!O:O,EventConfig!A36) -> 1 | Z36: 13201 | AO36: =IF($Y36>=AO$3,$A36*100+AO$3,"") ->  | AS36: 100 | AT36: 1003 | AU36: -1300 | AV36: 1006 | AW36: -5000 | AX36: =IF(AT36="","",CONCATENATE(VLOOKUP(AT36,[1]DropConfig!$A:$F,3,FALSE),"×",AU36)) -> 修为×-1300 | AY36: =IF(AV36="","",CONCATENATE(VLOOKUP(AV36,[1]DropConfig!$A:$F,3,FALSE),"×",AW36)) -> 玄晶×-5000
A37: 133 | B37: =IF(Y37>0,_xlfn.TEXTJOIN(";",1,ROW(INDIRECT(CONCATENATE("",A37*100+1,":",A37*100+Y37,""))),102),"") -> 13301;102 | C37: 1 | D37: 7 | E37: 1 | F37: 0 | G37: 4 | H37: 12 | I37: 1003;1002 | J37: -1300;100 | K37: 45 | U37: 4312 | V37: 4099 | W37: [资源4]妖丹×100 | Y37: =COUNTIF(EventLinkConfig!O:O,EventConfig!A37) -> 1 | Z37: =IF($Y37>=Z$3,$A37*100+Z$3,"") -> 13301 | AS37: 100 | AT37: 1003 | AU37: -1300 | AV37: 1002 | AW37: 100 | AX37: =IF(AT37="","",CONCATENATE(VLOOKUP(AT37,[1]DropConfig!$A:$F,3,FALSE),"×",AU37)) -> 修为×-1300 | AY37: =IF(AV37="","",CONCATENATE(VLOOKUP(AV37,[1]DropConfig!$A:$F,3,FALSE),"×",AW37)) -> 妖丹×100
A38: 134 | B38: =IF(Y38>0,_xlfn.TEXTJOIN(";",1,ROW(INDIRECT(CONCATENATE("",A38*100+1,":",A38*100+Y38,""))),102),"") -> 13401;102 | C38: 1 | D38: 7 | E38: 1 | F38: 0 | G38: 4 | H38: 13 | I38: 1003;1004 | J38: -1300;10 | K38: 35 | U38: 4313 | V38: 4100 | W38: [资源4]仙缘宝券×10 | Y38: =COUNTIF(EventLinkConfig!O:O,EventConfig!A38) -> 1 | Z38: 13401 | AS38: 100 | AT38: 1003 | AU38: -1300 | AV38: 1004 | AW38: 10 | AX38: =IF(AT38="","",CONCATENATE(VLOOKUP(AT38,[1]DropConfig!$A:$F,3,FALSE),"×",AU38)) -> 修为×-1300 | AY38: =IF(AV38="","",CONCATENATE(VLOOKUP(AV38,[1]DropConfig!$A:$F,3,FALSE),"×",AW38)) -> 仙缘宝券×10
A39: 135 | B39: =IF(Y39>0,_xlfn.TEXTJOIN(";",1,ROW(INDIRECT(CONCATENATE("",A39*100+1,":",A39*100+Y39,""))),102),"") -> 13501;102 | C39: 1 | D39: 7 | E39: 1 | F39: 0 | G39: 4 | H39: 10 | I39: 1003;1501 | J39: -1300;1 | K39: 75 | U39: 4314 | V39: 4101 | W39: [资源4]好感度礼物1×1 | Y39: =COUNTIF(EventLinkConfig!O:O,EventConfig!A39) -> 1 | Z39: 13501 | AS39: 100 | AT39: 1003 | AU39: -1300 | AV39: 1501 | AW39: 1 | AX39: =IF(AT39="","",CONCATENATE(VLOOKUP(AT39,[1]DropConfig!$A:$F,3,FALSE),"×",AU39)) -> 修为×-1300 | AY39: =IF(AV39="","",CONCATENATE(VLOOKUP(AV39,[1]DropConfig!$A:$F,3,FALSE),"×",AW39)) -> 好感度礼物1×1
A40: 136 | B40: =IF(Y40>0,_xlfn.TEXTJOIN(";",1,ROW(INDIRECT(CONCATENATE("",A40*100+1,":",A40*100+Y40,""))),102),"") -> 13601;102 | C40: 1 | D40: 7 | E40: 1 | F40: 0 | G40: 4 | H40: 11 | I40: 1003;1601 | J40: -1300;1 | K40: 55 | U40: 4315 | V40: 4102 | W40: [资源4]心情礼物1×1 | Y40: =COUNTIF(EventLinkConfig!O:O,EventConfig!A40) -> 1 | Z40: 13601 | AS40: 100 | AT40: 1003 | AU40: -1300 | AV40: 1601 | AW40: 1 | AX40: =IF(AT40="","",CONCATENATE(VLOOKUP(AT40,[1]DropConfig!$A:$F,3,FALSE),"×",AU40)) -> 修为×-1300 | AY40: =IF(AV40="","",CONCATENATE(VLOOKUP(AV40,[1]DropConfig!$A:$F,3,FALSE),"×",AW40)) -> 心情礼物1×1
A41: 137 | B41: =IF(Y41>0,_xlfn.TEXTJOIN(";",1,ROW(INDIRECT(CONCATENATE("",A41*100+1,":",A41*100+Y41,""))),102),"") -> 13701;102 | C41: 1 | D41: 7 | E41: 1 | F41: 0 | G41: 5 | H41: 6 | I41: =_xlfn.TEXTJOIN(";",1,AT41,AV41) -> 1003;999001 | J41: =_xlfn.TEXTJOIN(";",1,AU41,AW41) -> -1400;1 | K41: 30 | U41: 4316 | V41: 4094 | W41: [资源5]法宝掉落×1 | Y41: =COUNTIF(EventLinkConfig!O:O,EventConfig!A41) -> 1 | Z41: 13701 | AS41: 100 | AT41: 1003 | AU41: -1400 | AV41: 999001 | AW41: 1 | AX41: =IF(AT41="","",CONCATENATE(VLOOKUP(AT41,[1]DropConfig!$A:$F,3,FALSE),"×",AU41)) -> 修为×-1400 | AY41: =IF(AV41="","",CONCATENATE(VLOOKUP(AV41,[1]DropConfig!$A:$F,3,FALSE),"×",AW41)) -> 法宝掉落×1
A42: 138 | B42: =IF(Y42>0,_xlfn.TEXTJOIN(";",1,ROW(INDIRECT(CONCATENATE("",A42*100+1,":",A42*100+Y42,""))),102),"") -> 13801;102 | C42: 1 | D42: 7 | E42: 1 | F42: 0 | G42: 5 | H42: 5 | I42: 1003;999002 | J42: -1400;1 | K42: 30 | U42: 4317 | V42: 4095 | W42: [资源5]功法掉落×1 | Y42: =COUNTIF(EventLinkConfig!O:O,EventConfig!A42) -> 1 | Z42: 13801 | AS42: 100 | AT42: 1003 | AU42: -1400 | AV42: 999002 | AW42: 1 | AX42: =IF(AT42="","",CONCATENATE(VLOOKUP(AT42,[1]DropConfig!$A:$F,3,FALSE),"×",AU42)) -> 修为×-1400 | AY42: =IF(AV42="","",CONCATENATE(VLOOKUP(AV42,[1]DropConfig!$A:$F,3,FALSE),"×",AW42)) -> 功法掉落×1
A43: 139 | B43: =IF(Y43>0,_xlfn.TEXTJOIN(";",1,ROW(INDIRECT(CONCATENATE("",A43*100+1,":",A43*100+Y43,""))),102),"") -> 13901;102 | C43: 1 | D43: 7 | E43: 1 | F43: 0 | G43: 5 | H43: 1 | I43: 1003;1001 | J43: -1400;-5000 | K43: 100 | U43: 4318 | V43: 4096 | W43: [资源5]灵石×-5000 | Y43: =COUNTIF(EventLinkConfig!O:O,EventConfig!A43) -> 1 | Z43: 13901 | AS43: 100 | AT43: 1003 | AU43: -1400 | AV43: 1001 | AW43: -5000 | AX43: =IF(AT43="","",CONCATENATE(VLOOKUP(AT43,[1]DropConfig!$A:$F,3,FALSE),"×",AU43)) -> 修为×-1400 | AY43: =IF(AV43="","",CONCATENATE(VLOOKUP(AV43,[1]DropConfig!$A:$F,3,FALSE),"×",AW43)) -> 灵石×-5000
A44: 140 | B44: =IF(Y44>0,_xlfn.TEXTJOIN(";",1,ROW(INDIRECT(CONCATENATE("",A44*100+1,":",A44*100+Y44,""))),102),"") -> 14001;102 | C44: 1 | D44: 7 | E44: 1 | F44: 0 | G44: 5 | H44: 3 | I44: 1003;1005 | J44: -1400;-5000 | K44: 100 | U44: 4319 | V44: 4097 | W44: [资源5]灵气×-5000 | Y44: =COUNTIF(EventLinkConfig!O:O,EventConfig!A44) -> 1 | Z44: 14001 | AS44: 100 | AT44: 1003 | AU44: -1400 | AV44: 1005 | AW44: -5000 | AX44: =IF(AT44="","",CONCATENATE(VLOOKUP(AT44,[1]DropConfig!$A:$F,3,FALSE),"×",AU44)) -> 修为×-1400 | AY44: =IF(AV44="","",CONCATENATE(VLOOKUP(AV44,[1]DropConfig!$A:$F,3,FALSE),"×",AW44)) -> 灵气×-5000
A45: 141 | B45: =IF(Y45>0,_xlfn.TEXTJOIN(";",1,ROW(INDIRECT(CONCATENATE("",A45*100+1,":",A45*100+Y45,""))),102),"") -> 14101;102 | C45: 1 | D45: 7 | E45: 1 | F45: 0 | G45: 5 | H45: 4 | I45: 1003;1006 | J45: -1400;-5000 | K45: 100 | U45: 4320 | V45: 4098 | W45: [资源5]玄晶×-5000 | Y45: =COUNTIF(EventLinkConfig!O:O,EventConfig!A45) -> 1 | Z45: 14101 | AS45: 100 | AT45: 1003 | AU45: -1400 | AV45: 1006 | AW45: -5000 | AX45: =IF(AT45="","",CONCATENATE(VLOOKUP(AT45,[1]DropConfig!$A:$F,3,FALSE),"×",AU45)) -> 修为×-1400 | AY45: =IF(AV45="","",CONCATENATE(VLOOKUP(AV45,[1]DropConfig!$A:$F,3,FALSE),"×",AW45)) -> 玄晶×-5000
A46: 142 | B46: =IF(Y46>0,_xlfn.TEXTJOIN(";",1,ROW(INDIRECT(CONCATENATE("",A46*100+1,":",A46*100+Y46,""))),102),"") -> 14201;102 | C46: 1 | D46: 7 | E46: 1 | F46: 0 | G46: 5 | H46: 12 | I46: 1003;1002 | J46: -1400;100 | K46: 50 | U46: 4321 | V46: 4099 | W46: [资源5]妖丹×100 | Y46: =COUNTIF(EventLinkConfig!O:O,EventConfig!A46) -> 1 | Z46: 14201 | AS46: 100 | AT46: 1003 | AU46: -1400 | AV46: 1002 | AW46: 100 | AX46: =IF(AT46="","",CONCATENATE(VLOOKUP(AT46,[1]DropConfig!$A:$F,3,FALSE),"×",AU46)) -> 修为×-1400 | AY46: =IF(AV46="","",CONCATENATE(VLOOKUP(AV46,[1]DropConfig!$A:$F,3,FALSE),"×",AW46)) -> 妖丹×100
A47: 143 | B47: =IF(Y47>0,_xlfn.TEXTJOIN(";",1,ROW(INDIRECT(CONCATENATE("",A47*100+1,":",A47*100+Y47,""))),102),"") -> 14301;102 | C47: 1 | D47: 7 | E47: 1 | F47: 0 | G47: 5 | H47: 13 | I47: 1003;1004 | J47: -1400;10 | K47: 40 | U47: 4322 | V47: 4100 | W47: [资源5]仙缘宝券×10 | Y47: =COUNTIF(EventLinkConfig!O:O,EventConfig!A47) -> 1 | Z47: 14301 | AS47: 100 | AT47: 1003 | AU47: -1400 | AV47: 1004 | AW47: 10 | AX47: =IF(AT47="","",CONCATENATE(VLOOKUP(AT47,[1]DropConfig!$A:$F,3,FALSE),"×",AU47)) -> 修为×-1400 | AY47: =IF(AV47="","",CONCATENATE(VLOOKUP(AV47,[1]DropConfig!$A:$F,3,FALSE),"×",AW47)) -> 仙缘宝券×10
A48: 144 | B48: =IF(Y48>0,_xlfn.TEXTJOIN(";",1,ROW(INDIRECT(CONCATENATE("",A48*100+1,":",A48*100+Y48,""))),102),"") -> 14401;102 | C48: 1 | D48: 7 | E48: 1 | F48: 0 | G48: 5 | H48: 10 | I48: 1003;1501 | J48: -1400;1 | K48: 80 | U48: 4323 | V48: 4101 | W48: [资源5]好感度礼物1×1 | Y48: =COUNTIF(EventLinkConfig!O:O,EventConfig!A48) -> 1 | Z48: 14401 | AS48: 100 | AT48: 1003 | AU48: -1400 | AV48: 1501 | AW48: 1 | AX48: =IF(AT48="","",CONCATENATE(VLOOKUP(AT48,[1]DropConfig!$A:$F,3,FALSE),"×",AU48)) -> 修为×-1400 | AY48: =IF(AV48="","",CONCATENATE(VLOOKUP(AV48,[1]DropConfig!$A:$F,3,FALSE),"×",AW48)) -> 好感度礼物1×1
A49: 145 | B49: =IF(Y49>0,_xlfn.TEXTJOIN(";",1,ROW(INDIRECT(CONCATENATE("",A49*100+1,":",A49*100+Y49,""))),102),"") -> 14501;102 | C49: 1 | D49: 7 | E49: 1 | F49: 0 | G49: 5 | H49: 11 | I49: 1003;1601 | J49: -1400;1 | K49: 60 | U49: 4324 | V49: 4102 | W49: [资源5]心情礼物1×1 | Y49: =COUNTIF(EventLinkConfig!O:O,EventConfig!A49) -> 1 | Z49: 14501 | AS49: 100 | AT49: 1003 | AU49: -1400 | AV49: 1601 | AW49: 1 | AX49: =IF(AT49="","",CONCATENATE(VLOOKUP(AT49,[1]DropConfig!$A:$F,3,FALSE),"×",AU49)) -> 修为×-1400 | AY49: =IF(AV49="","",CONCATENATE(VLOOKUP(AV49,[1]DropConfig!$A:$F,3,FALSE),"×",AW49)) -> 心情礼物1×1
A51: 9999 | B51: =IF(A51="","",_xlfn.TEXTJOIN(";",1,Z51:AS51,102)) -> 999901;100;102 | C51: 99 | D51: 3 | E51: 1 | F51: 0 | G51: 1 | U51: 4325 | W51: 突破心魔失败鼓励 | Y51: =COUNTIF(EventLinkConfig!O:O,EventConfig!A51) -> 1 | Z51: =IF($Y51>=Z$3,$A51*100+Z$3,"") -> 999901 | AS51: 100
C52: 2 | D52: 3 | E52: 1 | F52: 0 | G52: 1 | W52: 挂机2 | X52: 灵气 | Y52: =COUNTIF(EventLinkConfig!O:O,EventConfig!A52) -> 0 | AS52: 100
C53: 2 | D53: 3 | E53: 1 | F53: 0 | G53: 1 | W53: 挂机3 | X53: 玄晶 | Y53: =COUNTIF(EventLinkConfig!O:O,EventConfig!A53) -> 0 | AS53: 100
C54: 2 | D54: 3 | E54: 1 | F54: 0 | G54: 1 | W54: 挂机4 | X54: 灵石 | Y54: =COUNTIF(EventLinkConfig!O:O,EventConfig!A54) -> 0 | AS54: 100
C55: 2 | D55: 3 | E55: 1 | F55: 0 | G55: 1 | W55: 挂机5 | X55: 神识丹 | Y55: =COUNTIF(EventLinkConfig!O:O,EventConfig!A55) -> 0 | AS55: 100
C56: 2 | D56: 3 | E56: 1 | F56: 0 | G56: 1 | W56: 挂机6 | X56: 妖丹 | Y56: =COUNTIF(EventLinkConfig!O:O,EventConfig!A56) -> 0 | AS56: 100
A58: 10000 | B58: =IF(Y58>0,_xlfn.TEXTJOIN(";",1,ROW(INDIRECT(CONCATENATE("",A58*100+1,":",A58*100+Y58,""))),102),"") -> 1000001;1000002;1000003;1000004;1000005;1000006;1000007;1000008;1000009;1000010;1000011;1000012;1000013;1000014;1000015;1000016;1000017;1000018;1000019;1000020;1000021;102 | C58: 99 | D58: 1 | E58: 1 | F58: 10 | G58: 1 | I58: =_xlfn.TEXTJOIN(";",1,AT58,AV58) ->  | J58: =_xlfn.TEXTJOIN(";",1,AU58,AW58) ->  | M58: 1 | P58: 1 | U58: 4259 | W58: 渡劫之殇 | Y58: =COUNTIF(EventLinkConfig!O:O,EventConfig!A58) -> 21 | Z58: =IF($Y58>=Z$3,$A58*100+Z$3,"") -> 1000001 | AA58: 1000002 | AB58: 1000003 | AC58: 1000004 | AD58: 1000005 | AE58: 1000006 | AF58: 1000007 | AG58: 1000008 | AH58: 1000009 | AI58: 1000010 | AJ58: 1000011 | AK58: 1000012 | AL58: 1000013 | AM58: 1000014 | AN58: 1000015 | AO58: 1000016
A59: 10001 | B59: =IF(Y59>0,_xlfn.TEXTJOIN(";",1,ROW(INDIRECT(CONCATENATE("",A59*100+1,":",A59*100+Y59,""))),102),"") -> 1000101;1000102;1000103;1000104;102 | C59: 4 | D59: 1 | E59: 1 | F59: 10 | G59: 1 | I59: 12004;1702 | J59: 1;1 | M59: 1 | P59: 1 | U59: 4028 | V59: 4103 | W59: 鲲鹏何在 | X59: 神识未灭 | Y59: =COUNTIF(EventLinkConfig!O:O,EventConfig!A59) -> 4 | Z59: 1000101 | AA59: 1000102 | AB59: 1000103 | AC59: 1000104 | AT59: 12004 | AU59: 1 | AV59: 1702 | AW59: =[2]升级!$AM3 -> 1
A60: 10002 | B60: =IF(Y60>0,_xlfn.TEXTJOIN(";",1,ROW(INDIRECT(CONCATENATE("",A60*100+1,":",A60*100+Y60,""))),102),"") -> 1000201;1000202;1000203;102 | C60: 4 | D60: 1 | E60: 1 | F60: 10 | G60: 1 | I60: =_xlfn.TEXTJOIN(";",1,AT60,AV60) -> 12507;1702 | J60: =_xlfn.TEXTJOIN(";",1,AU60,AW60) -> 1;1 | M60: 1 | N60: 2 | P60: 1 | U60: 4029 | V60: 4104 | W60: 北海迷径1 | X60: 御剑而行 | Y60: =COUNTIF(EventLinkConfig!O:O,EventConfig!A60) -> 3 | Z60: 1000201 | AA60: 1000202 | AB60: 1000203 | AT60: 12507 | AU60: 1 | AV60: 1702 | AW60: =[2]升级!$AM4 -> 1
A61: 10003 | B61: =IF(Y61>0,_xlfn.TEXTJOIN(";",1,ROW(INDIRECT(CONCATENATE("",A61*100+1,":",A61*100+Y61,""))),102),"") -> 1000301;1000302;1000303;1000304;1000305;1000306;1000307;1000308;1000309;102 | C61: 4 | D61: 1 | E61: 1 | F61: 10 | G61: 1 | I61: 12005;1702 | J61: 1;1 | M61: 1 | N61: 2 | P61: 1 | U61: 4030 | V61: 4105 | W61: 北海迷径2 | X61: 雀笑大鹏 | Y61: =COUNTIF(EventLinkConfig!O:O,EventConfig!A61) -> 9 | Z61: 1000301 | AA61: 1000302 | AB61: 1000303 | AC61: 1000304 | AD61: 1000305 | AE61: 1000306 | AF61: 1000307 | AG61: 1000308 | AH61: 1000309 | AT61: 12005 | AU61: 1 | AV61: 1702 | AW61: =[2]升级!$AM5 -> 1
A62: 10004 | B62: =IF(Y62>0,_xlfn.TEXTJOIN(";",1,ROW(INDIRECT(CONCATENATE("",A62*100+1,":",A62*100+Y62,""))),102),"") -> 1000401;1000402;1000403;1000404;102 | C62: 4 | D62: 1 | E62: 1 | F62: 10 | G62: 1 | I62: 10001;1702 | J62: 1;1 | M62: 1 | N62: 2 | P62: 1 | U62: 4031 | V62: 4106 | W62: 古径阵法 | X62: 击败结界兽 | Y62: =COUNTIF(EventLinkConfig!O:O,EventConfig!A62) -> 4 | Z62: 1000401 | AA62: 1000402 | AB62: 1000403 | AC62: 1000404 | AT62: 10001 | AU62: 1 | AV62: 1702 | AW62: =[2]升级!$AM6 -> 1
A63: 10005 | B63: =IF(Y63>0,_xlfn.TEXTJOIN(";",1,ROW(INDIRECT(CONCATENATE("",A63*100+1,":",A63*100+Y63,""))),102),"") -> 1000501;1000502;1000503;1000504;1000505;1000506;1000507;1000508;1000509;1000510;1000511;1000512;1000513;1000514;102 | C63: 4 | D63: 1 | E63: 1 | F63: 10 | G63: 1 | I63: 12501;1702 | J63: 1;1 | M63: 1 | N63: 2 | P63: 1 | Q63: 11 | U63: 4032 | V63: 4107 | W63: 浮空之岛1 | X63: 初见疯道人 | Y63: =COUNTIF(EventLinkConfig!O:O,EventConfig!A63) -> 14 | Z63: 1000501 | AA63: 1000502 | AB63: 1000503 | AC63: 1000504 | AD63: 1000505 | AE63: 1000506 | AF63: 1000507 | AG63: 1000508 | AH63: 1000509 | AI63: 1000510 | AJ63: 1000511 | AK63: 1000512 | AL63: 1000513 | AM63: 1000514 | AT63: 12501 | AU63: 1 | AV63: 1702 | AW63: =[2]升级!$AM7 -> 1
A64: 10006 | B64: =IF(Y64>0,_xlfn.TEXTJOIN(";",1,ROW(INDIRECT(CONCATENATE("",A64*100+1,":",A64*100+Y64,""))),102),"") -> 1000601;1000602;1000603;1000604;1000605;1000606;102 | C64: 4 | D64: 1 | E64: 1 | F64: 10 | G64: 1 | I64: 12009;1702 | J64: 1;2 | M64: 1 | N64: 3 | P64: 1 | U64: 4033 | V64: 4108 | W64: 浮空之岛2 | X64: 筑基中期 | Y64: =COUNTIF(EventLinkConfig!O:O,EventConfig!A64) -> 6 | Z64: 1000601 | AA64: 1000602 | AB64: 1000603 | AC64: 1000604 | AD64: 1000605 | AE64: 1000606 | AT64: 12009 | AU64: 1 | AV64: 1702 | AW64: =[2]升级!$AM8 -> 2
A65: 10007 | B65: =IF(Y65>0,_xlfn.TEXTJOIN(";",1,ROW(INDIRECT(CONCATENATE("",A65*100+1,":",A65*100+Y65,""))),102),"") -> 1000701;1000702;1000703;1000704;1000705;102 | C65: 4 | D65: 1 | E65: 1 | F65: 10 | G65: 1 | I65: 12506;1702 | J65: 1;2 | M65: 1 | N65: 3 | P65: 1 | U65: 4034 | V65: 4109 | W65: 风中洞府1 | X65: 击败痴道人 | Y65: =COUNTIF(EventLinkConfig!O:O,EventConfig!A65) -> 5 | Z65: 1000701 | AA65: 1000702 | AB65: 1000703 | AC65: 1000704 | AD65: 1000705 | AT65: 12506 | AU65: 1 | AV65: 1702 | AW65: =[2]升级!$AM9 -> 2
A66: 10008 | B66: =IF(Y66>0,_xlfn.TEXTJOIN(";",1,ROW(INDIRECT(CONCATENATE("",A66*100+1,":",A66*100+Y66,""))),102),"") -> 1000801;1000802;1000803;1000804;1000805;1000806;1000807;1000808;1000809;1000810;1000811;1000812;1000813;1000814;102 | C66: 4 | D66: 1 | E66: 1 | F66: 10 | G66: 1 | I66: 10003;1702 | J66: 1;2 | M66: 1 | N66: 3 | P66: 1 | U66: 4035 | V66: 4110 | W66: 风中洞府2 | X66: 疯痴相聚 | Y66: =COUNTIF(EventLinkConfig!O:O,EventConfig!A66) -> 14 | Z66: 1000801 | AA66: 1000802 | AB66: 1000803 | AC66: 1000804 | AD66: 1000805 | AE66: 1000806 | AF66: 1000807 | AG66: 1000808 | AH66: 1000809 | AI66: 1000810 | AJ66: 1000811 | AK66: 1000812 | AL66: 1000813 | AM66: 1000814 | AT66: 10003 | AU66: 1 | AV66: 1702 | AW66: =[2]升级!$AM10 -> 2
A67: 10009 | B67: =IF(Y67>0,_xlfn.TEXTJOIN(";",1,ROW(INDIRECT(CONCATENATE("",A67*100+1,":",A67*100+Y67,""))),102),"") -> 1000901;1000902;1000903;102 | C67: 4 | D67: 1 | E67: 1 | F67: 10 | G67: 1 | I67: 12010;1702 | J67: 1;2 | M67: 1 | N67: 3 | P67: 1 | Q67: 21 | U67: 4036 | V67: 4111 | W67: 风灵之力 | X67: 筑基后期 | Y67: =COUNTIF(EventLinkConfig!O:O,EventConfig!A67) -> 3 | Z67: 1000901 | AA67: 1000902 | AB67: 1000903 | AT67: 12010 | AU67: 1 | AV67: 1702 | AW67: =[2]升级!$AM11 -> 2
A68: 10010 | B68: =IF(Y68>0,_xlfn.TEXTJOIN(";",1,ROW(INDIRECT(CONCATENATE("",A68*100+1,":",A68*100+Y68,""))),102),"") -> 1001001;1001002;1001003;1001004;1001005;1001006;102 | C68: 4 | D68: 1 | E68: 1 | F68: 10 | G68: 1 | I68: 12502;1702 | J68: 1;2 | M68: 1 | N68: 4 | P68: 1 | U68: 4037 | V68: 4112 | W68: 北海深处1 | X68: 妖兽横行 | Y68: =COUNTIF(EventLinkConfig!O:O,EventConfig!A68) -> 6 | Z68: =IF($Y68>=Z$3,$A68*100+Z$3,"") -> 1001001 | AA68: 1001002 | AB68: 1001003 | AC68: 1001004 | AD68: 1001005 | AE68: 1001006 | AT68: 12502 | AU68: 1 | AV68: 1702 | AW68: =[2]升级!$AM12 -> 2
A69: 10011 | B69: =IF(Y69>0,_xlfn.TEXTJOIN(";",1,ROW(INDIRECT(CONCATENATE("",A69*100+1,":",A69*100+Y69,""))),102),"") -> 1001101;1001102;1001103;1001104;1001105;1001106;1001107;1001108;1001109;1001110;1001111;1001112;102 | C69: 4 | D69: 1 | E69: 1 | F69: 10 | G69: 1 | I69: 12014;1702 | J69: 1;2 | M69: 1 | N69: 4 | P69: 1 | Q69: 31 | U69: 4038 | V69: 4113 | W69: 北海深处2 | X69: 遇见鲲鹏 | Y69: =COUNTIF(EventLinkConfig!O:O,EventConfig!A69) -> 12 | Z69: 1001101 | AA69: 1001102 | AB69: 1001103 | AC69: 1001104 | AD69: 1001105 | AE69: 1001106 | AF69: 1001107 | AG69: 1001108 | AH69: 1001109 | AI69: 1001110 | AJ69: 1001111 | AK69: 1001112 | AT69: 12014 | AU69: 1 | AV69: 1702 | AW69: =[2]升级!$AM13 -> 2
A70: 10012 | B70: =IF(Y70>0,_xlfn.TEXTJOIN(";",1,ROW(INDIRECT(CONCATENATE("",A70*100+1,":",A70*100+Y70,""))),102),"") -> 1001201;1001202;1001203;102 | C70: 4 | D70: 1 | E70: 1 | F70: 10 | G70: 1 | I70: 12508;1702 | J70: 1;2 | M70: 2 | P70: 1 | U70: 4039 | V70: 4114 | W70: 尧都寻踪 | Y70: =COUNTIF(EventLinkConfig!O:O,EventConfig!A70) -> 3 | Z70: 1001201 | AA70: 1001202 | AB70: 1001203 | AT70: 12508 | AU70: 1 | AV70: 1702 | AW70: =[2]升级!$AM14 -> 2
A71: 10013 | B71: =IF(Y71>0,_xlfn.TEXTJOIN(";",1,ROW(INDIRECT(CONCATENATE("",A71*100+1,":",A71*100+Y71,""))),102),"") -> 1001301;1001302;1001303;1001304;1001305;1001306;1001307;1001308;1001309;1001310;1001311;1001312;102 | C71: 4 | D71: 1 | E71: 1 | F71: 10 | G71: 1 | I71: 10006;1702 | J71: 1;2 | M71: 2 | P71: 1 | U71: 4040 | V71: 4115 | W71: 尧之都 | X71: 尧让天下 | Y71: =COUNTIF(EventLinkConfig!O:O,EventConfig!A71) -> 12 | Z71: 1001301 | AA71: 1001302 | AB71: 1001303 | AC71: 1001304 | AD71: 1001305 | AE71: 1001306 | AF71: 1001307 | AG71: 1001308 | AH71: 1001309 | AI71: 1001310 | AJ71: 1001311 | AK71: 1001312 | AT71: 10006 | AU71: 1 | AV71: 1702 | AW71: =[2]升级!$AM15 -> 2
A72: 10014 | B72: =IF(Y72>0,_xlfn.TEXTJOIN(";",1,ROW(INDIRECT(CONCATENATE("",A72*100+1,":",A72*100+Y72,""))),102),"") -> 1001401;1001402;1001403;1001404;1001405;1001406;1001407;1001408;1001409;1001410;1001411;1001412;1001413;1001414;1001415;1001416;102 | C72: 4 | D72: 1 | E72: 1 | F72: 10 | G72: 1 | I72: 12015;1702 | J72: 1;2 | M72: 2 | P72: 1 | Q72: 41 | U72: 4041 | V72: 4116 | W72: 山林清音 | X72: 访贤许由 | Y72: =COUNTIF(EventLinkConfig!O:O,EventConfig!A72) -> 16 | Z72: 1001401 | AA72: 1001402 | AB72: 1001403 | AC72: 1001404 | AD72: 1001405 | AE72: 1001406 | AF72: 1001407 | AG72: 1001408 | AH72: 1001409 | AI72: 1001410 | AJ72: 1001411 | AK72: 1001412 | AL72: 1001413 | AM72: 1001414 | AN72: 1001415 | AO72: 1001416 | AT72: 12015 | AU72: 1 | AV72: 1702 | AW72: =[2]升级!$AM16 -> 2
A73: 10015 | B73: =IF(Y73>0,_xlfn.TEXTJOIN(";",1,ROW(INDIRECT(CONCATENATE("",A73*100+1,":",A73*100+Y73,""))),102),"") -> 1001501;1001502;1001503;1001504;1001505;1001506;1001507;1001508;102 | C73: 4 | D73: 1 | E73: 1 | F73: 10 | G73: 1 | I73: 12503;1702 | J73: 1;2 | M73: 2 | P73: 1 | U73: 4042 | V73: 4117 | W73: 山中劳作 | X73: 割草喝茶 | Y73: =COUNTIF(EventLinkConfig!O:O,EventConfig!A73) -> 8 | Z73: 1001501 | AA73: 1001502 | AB73: 1001503 | AC73: 1001504 | AD73: 1001505 | AE73: 1001506 | AF73: 1001507 | AG73: 1001508 | AT73: 12503 | AU73: 1 | AV73: 1702 | AW73: =[2]升级!$AM17 -> 2
A74: 10016 | B74: =IF(Y74>0,_xlfn.TEXTJOIN(";",1,ROW(INDIRECT(CONCATENATE("",A74*100+1,":",A74*100+Y74,""))),102),"") -> 1001601;1001602;1001603;1001604;1001605;1001606;1001607;1001608;102 | C74: 4 | D74: 1 | E74: 1 | F74: 10 | G74: 1 | I74: 12019;1702 | J74: 1;2 | M74: 2 | P74: 1 | Q74: 51 | U74: 4043 | V74: 4118 | W74: 风起夜战 | X74: 再来一杯 | Y74: =COUNTIF(EventLinkConfig!O:O,EventConfig!A74) -> 8 | Z74: 1001601 | AA74: 1001602 | AB74: 1001603 | AC74: 1001604 | AD74: 1001605 | AE74: 1001606 | AF74: 1001607 | AG74: 1001608 | AT74: 12019 | AU74: 1 | AV74: 1702 | AW74: =[2]升级!$AM18 -> 2
A75: 10017 | B75: =IF(Y75>0,_xlfn.TEXTJOIN(";",1,ROW(INDIRECT(CONCATENATE("",A75*100+1,":",A75*100+Y75,""))),102),"") -> 1001701;1001702;1001703;1001704;1001705;1001706;1001707;1001708;1001709;1001710;1001711;1001712;1001713;102 | C75: 4 | D75: 1 | E75: 1 | F75: 10 | G75: 1 | I75: 12509;1702 | J75: 1;2 | M75: 2 | P75: 1 | U75: 4044 | V75: 4119 | W75: 吃茶三问 | X75: 战胜妖王 | Y75: =COUNTIF(EventLinkConfig!O:O,EventConfig!A75) -> 13 | Z75: 1001701 | AA75: 1001702 | AB75: 1001703 | AC75: 1001704 | AD75: 1001705 | AE75: 1001706 | AF75: 1001707 | AG75: 1001708 | AH75: 1001709 | AI75: 1001710 | AJ75: 1001711 | AK75: 1001712 | AL75: 1001713 | AT75: 12509 | AU75: 1 | AV75: 1702 | AW75: =[2]升级!$AM19 -> 2
A76: 10018 | B76: =IF(Y76>0,_xlfn.TEXTJOIN(";",1,ROW(INDIRECT(CONCATENATE("",A76*100+1,":",A76*100+Y76,""))),102),"") -> 1001801;1001802;1001803;1001804;1001805;1001806;1001807;1001808;1001809;1001810;102 | C76: 4 | D76: 1 | E76: 1 | F76: 10 | G76: 1 | I76: 10008;1702 | J76: 1;1 | M76: 2 | P76: 1 | Q76: 61 | U76: 4045 | V76: 4120 | W76: 尧让天下 | X76: 复命尧帝 | Y76: =COUNTIF(EventLinkConfig!O:O,EventConfig!A76) -> 10 | Z76: 1001801 | AA76: 1001802 | AB76: 1001803 | AC76: 1001804 | AD76: 1001805 | AE76: 1001806 | AF76: 1001807 | AG76: 1001808 | AH76: 1001809 | AI76: 1001810 | AT76: 10008 | AU76: 1 | AV76: 1702 | AW76: =[2]升级!$AM20 -> 1
A77: 10019 | B77: =IF(Y77>0,_xlfn.TEXTJOIN(";",1,ROW(INDIRECT(CONCATENATE("",A77*100+1,":",A77*100+Y77,""))),102),"") -> 1001901;1001902;1001903;1001904;1001905;1001906;1001907;1001908;1001909;1001910;1001911;1001912;1001913;1001914;1001915;1001916;1001917;1001918;1001919;1001920;102 | C77: 4 | D77: 1 | E77: 1 | F77: 10 | G77: 1 | I77: 12020;1702 | J77: 1;2 | M77: 2 | P77: 1 | U77: 4046 | V77: 4121 | W77: 无用之树 | X77: 树下闲话 | Y77: =COUNTIF(EventLinkConfig!O:O,EventConfig!A77) -> 20 | Z77: 1001901 | AA77: 1001902 | AB77: 1001903 | AC77: 1001904 | AD77: 1001905 | AE77: 1001906 | AF77: 1001907 | AG77: 1001908 | AH77: 1001909 | AI77: 1001910 | AJ77: 1001911 | AK77: 1001912 | AL77: 1001913 | AM77: 1001914 | AN77: 1001915 | AO77: 1001916 | AP77: =IF($Y77>=AP$3,$A77*100+AP$3,"") -> 1001917 | AQ77: =IF($Y77>=AQ$3,$A77*100+AQ$3,"") -> 1001918 | AR77: =IF($Y77>=AR$3,$A77*100+AR$3,"") -> 1001919 | AS77: =IF($Y77>=AS$3,$A77*100+AS$3,"") -> 1001920 | AT77: 12020 | AU77: 1 | AV77: 1702 | AW77: =[2]升级!$AM21 -> 2
A78: 10020 | B78: =IF(Y78>0,_xlfn.TEXTJOIN(";",1,ROW(INDIRECT(CONCATENATE("",A78*100+1,":",A78*100+Y78,""))),102),"") -> 1002001;1002002;102 | C78: 4 | D78: 1 | E78: 1 | F78: 10 | G78: 1 | I78: 12505;1702 | J78: 1;1 | M78: 2 | P78: 1 | U78: 4047 | V78: 4122 | W78: 樗木之灵 | X78: 切磋切磋 | Y78: =COUNTIF(EventLinkConfig!O:O,EventConfig!A78) -> 2 | Z78: =IF($Y78>=Z$3,$A78*100+Z$3,"") -> 1002001 | AA78: 1002002 | AT78: 12505 | AU78: 1 | AV78: 1702 | AW78: =[2]升级!$AM22 -> 1
A79: 10021 | B79: =IF(Y79>0,_xlfn.TEXTJOIN(";",1,ROW(INDIRECT(CONCATENATE("",A79*100+1,":",A79*100+Y79,""))),102),"") -> 1002101;1002102;1002103;1002104;102 | C79: 4 | D79: 1 | E79: 1 | F79: 10 | G79: 1 | I79: 12024;1702 | J79: 1;2 | M79: 2 | P79: 1 | Q79: 71 | U79: 4048 | V79: 4123 | W79: 游尧都 | X79: 金丹前期 | Y79: =COUNTIF(EventLinkConfig!O:O,EventConfig!A79) -> 4 | Z79: 1002101 | AA79: 1002102 | AB79: 1002103 | AC79: 1002104 | AT79: 12024 | AU79: 1 | AV79: 1702 | AW79: =[2]升级!$AM23 -> 2
A80: 10022 | B80: =IF(Y80>0,_xlfn.TEXTJOIN(";",1,ROW(INDIRECT(CONCATENATE("",A80*100+1,":",A80*100+Y80,""))),102),"") -> 1002201;1002202;1002203;1002204;1002205;1002206;1002207;1002208;1002209;1002210;1002211;1002212;102 | C80: 4 | D80: 1 | E80: 1 | F80: 10 | G80: 1 | I80: 12510;1702 | J80: 1;2 | M80: 2 | P80: 1 | Q80: 81 | U80: 4049 | V80: 4124 | W80: 再见尧帝 | X80: 仙山传说 | Y80: =COUNTIF(EventLinkConfig!O:O,EventConfig!A80) -> 12 | Z80: 1002201 | AA80: 1002202 | AB80: 1002203 | AC80: 1002204 | AD80: 1002205 | AE80: 1002206 | AF80: 1002207 | AG80: 1002208 | AH80: 1002209 | AI80: 1002210 | AJ80: 1002211 | AK80: 1002212 | AT80: 12510 | AU80: 1 | AV80: 1702 | AW80: =[2]升级!$AM24 -> 2
A81: 10023 | B81: =IF(Y81>0,_xlfn.TEXTJOIN(";",1,ROW(INDIRECT(CONCATENATE("",A81*100+1,":",A81*100+Y81,""))),102),"") -> 1002301;1002302;1002303;102 | C81: 4 | D81: 1 | E81: 1 | F81: 10 | G81: 1 | I81: 10010;1702 | J81: 1;2 | M81: 3 | P81: 1 | U81: 4050 | V81: 4125 | W81: 云海漫行 | X81: 入山幻阵 | Y81: =COUNTIF(EventLinkConfig!O:O,EventConfig!A81) -> 3 | Z81: 1002301 | AA81: 1002302 | AB81: 1002303 | AT81: 10010 | AU81: 1 | AV81: 1702 | AW81: =[2]升级!$AM25 -> 2
A82: 10024 | B82: =IF(Y82>0,_xlfn.TEXTJOIN(";",1,ROW(INDIRECT(CONCATENATE("",A82*100+1,":",A82*100+Y82,""))),102),"") -> 1002401;1002402;1002403;1002404;1002405;1002406;1002407;1002408;1002409;1002410;1002411;1002412;1002413;102 | C82: 4 | D82: 1 | E82: 1 | F82: 10 | G82: 1 | I82: 12025;1702 | J82: 1;3 | M82: 3 | P82: 1 | Q82: 91 | U82: 4051 | V82: 4126 | W82: 初见惠子 | X82: 葫芦种子 | Y82: =COUNTIF(EventLinkConfig!O:O,EventConfig!A82) -> 13 | Z82: 1002401 | AA82: 1002402 | AB82: 1002403 | AC82: 1002404 | AD82: 1002405 | AE82: 1002406 | AF82: 1002407 | AG82: 1002408 | AH82: 1002409 | AI82: 1002410 | AJ82: 1002411 | AK82: 1002412 | AL82: 1002413 | AT82: 12025 | AU82: 1 | AV82: 1702 | AW82: =[2]升级!$AM26 -> 3
A83: 10025 | B83: =IF(Y83>0,_xlfn.TEXTJOIN(";",1,ROW(INDIRECT(CONCATENATE("",A83*100+1,":",A83*100+Y83,""))),102),"") -> 1002501;1002502;1002503;1002504;1002505;1002506;1002507;1002508;102 | C83: 4 | D83: 1 | E83: 1 | F83: 10 | G83: 1 | I83: 12504;1702 | J83: 1;3 | M83: 3 | P83: 1 | Q83: 101 | U83: 4052 | V83: 4127 | W83: 葫芦肥料 | X83: 天肥地肥 | Y83: =COUNTIF(EventLinkConfig!O:O,EventConfig!A83) -> 8 | Z83: 1002501 | AA83: 1002502 | AB83: 1002503 | AC83: 1002504 | AD83: 1002505 | AE83: 1002506 | AF83: 1002507 | AG83: 1002508 | AT83: 12504 | AU83: 1 | AV83: 1702 | AW83: =[2]升级!$AM27 -> 3
A84: 10026 | B84: =IF(Y84>0,_xlfn.TEXTJOIN(";",1,ROW(INDIRECT(CONCATENATE("",A84*100+1,":",A84*100+Y84,""))),102),"") -> 1002601;1002602;1002603;1002604;1002605;1002606;1002607;1002608;1002609;102 | C84: 4 | D84: 1 | E84: 1 | F84: 10 | G84: 1 | I84: 1702 | J84: 4 | M84: 3 | P84: 1 | Q84: 111 | U84: 4053 | V84: 4128 | W84: 藐姑射山 | X84: 登山 | Y84: =COUNTIF(EventLinkConfig!O:O,EventConfig!A84) -> 9 | Z84: 1002601 | AA84: 1002602 | AB84: 1002603 | AC84: 1002604 | AD84: 1002605 | AE84: 1002606 | AF84: 1002607 | AG84: 1002608 | AH84: 1002609 | AV84: 1702 | AW84: =[2]升级!$AM28 -> 4
A85: 10027 | B85: =IF(Y85>0,_xlfn.TEXTJOIN(";",1,ROW(INDIRECT(CONCATENATE("",A85*100+1,":",A85*100+Y85,""))),102),"") -> 1002701;1002702;1002703;1002704;1002705;1002706;1002707;1002708;1002709;1002710;1002711;1002712;1002713;1002714;1002715;1002716;1002717;1002718;1002719;1002720;1002721;1002722;1002723;1002724;1002725;1002726;1002727;1002728;1002729;1002730;1002731;1002732;1002733;1002734;1002735;1002736;102 | C85: 4 | D85: 1 | E85: 1 | F85: 10 | G85: 1 | I85: 1702 | J85: 2 | M85: 3 | P85: 1 | Q85: 121 | U85: 4054 | V85: 4129 | W85: 藐姑射山 | X85: 雾中幻径 | Y85: =COUNTIF(EventLinkConfig!O:O,EventConfig!A85) -> 36 | Z85: 1002701 | AA85: 1002702 | AB85: 1002703 | AC85: 1002704 | AD85: 1002705 | AE85: 1002706 | AF85: 1002707 | AG85: 1002708 | AH85: 1002709 | AI85: 1002710 | AJ85: 1002711 | AK85: 1002712 | AL85: 1002713 | AM85: 1002714 | AN85: 1002715 | AO85: 1002716 | AV85: 1702 | AW85: =[2]升级!$AM29 -> 2
A86: 10028 | B86: =IF(Y86>0,_xlfn.TEXTJOIN(";",1,ROW(INDIRECT(CONCATENATE("",A86*100+1,":",A86*100+Y86,""))),102),"") -> 1002801;102 | C86: 4 | D86: 1 | E86: 1 | F86: 10 | G86: 1 | I86: 1702 | J86: 3 | M86: 3 | P86: 1 | U86: 4055 | V86: 4130 | W86: 露水清心 | Y86: =COUNTIF(EventLinkConfig!O:O,EventConfig!A86) -> 1 | Z86: 1002801 | AV86: 1702 | AW86: =[2]升级!$AM30 -> 3
A87: 10029 | B87: =IF(Y87>0,_xlfn.TEXTJOIN(";",1,ROW(INDIRECT(CONCATENATE("",A87*100+1,":",A87*100+Y87,""))),102),"") -> 1002901;1002902;1002903;1002904;1002905;1002906;1002907;1002908;1002909;1002910;1002911;1002912;1002913;1002914;1002915;1002916;1002917;1002918;1002919;1002920;102 | C87: 4 | D87: 1 | E87: 1 | F87: 10 | G87: 1 | I87: 1702 | J87: 2 | M87: 3 | P87: 1 | Q87: 131 | U87: 4056 | V87: 4131 | W87: 山顶神仙 | Y87: =COUNTIF(EventLinkConfig!O:O,EventConfig!A87) -> 20 | Z87: 1002901 | AA87: 1002902 | AB87: 1002903 | AC87: 1002904 | AD87: 1002905 | AE87: 1002906 | AF87: 1002907 | AG87: 1002908 | AH87: 1002909 | AI87: 1002910 | AJ87: 1002911 | AK87: 1002912 | AL87: 1002913 | AM87: 1002914 | AN87: 1002915 | AO87: 1002916 | AV87: 1702 | AW87: =[2]升级!$AM31 -> 2
A88: 10030 | B88: =IF(Y88>0,_xlfn.TEXTJOIN(";",1,ROW(INDIRECT(CONCATENATE("",A88*100+1,":",A88*100+Y88,""))),102),"") -> 1003001;1003002;1003003;1003004;1003005;1003006;1003007;1003008;102 | C88: 4 | D88: 1 | E88: 1 | F88: 10 | G88: 1 | I88: 1702 | J88: 3 | M88: 3 | P88: 1 | Q88: 141 | U88: 4057 | V88: 4132 | W88: 心魔之战 | X88: 破除枷锁 | Y88: =COUNTIF(EventLinkConfig!O:O,EventConfig!A88) -> 8 | Z88: 1003001 | AA88: 1003002 | AB88: 1003003 | AC88: 1003004 | AD88: 1003005 | AE88: 1003006 | AF88: 1003007 | AG88: 1003008 | AV88: 1702 | AW88: =[2]升级!$AM32 -> 3
A89: 10031 | B89: =IF(Y89>0,_xlfn.TEXTJOIN(";",1,ROW(INDIRECT(CONCATENATE("",A89*100+1,":",A89*100+Y89,""))),102),"") -> 1003101;1003102;1003103;1003104;1003105;1003106;1003107;1003108;1003109;1003110;1003111;1003112;1003113;1003114;1003115;1003116;102 | C89: 4 | D89: 1 | E89: 1 | F89: 10 | G89: 1 | M89: 3 | P89: 1 | Q89: 151 | U89: 4191 | V89: 4192 | W89: 鲲鹏飞天 | Y89: =COUNTIF(EventLinkConfig!O:O,EventConfig!A89) -> 16 | Z89: 1003101 | AA89: 1003102 | AB89: 1003103 | AC89: 1003104 | AD89: 1003105 | AE89: 1003106 | AF89: 1003107 | AG89: 1003108 | AH89: 1003109 | AI89: 1003110 | AJ89: 1003111 | AK89: 1003112 | AL89: 1003113 | AM89: 1003114 | AN89: 1003115 | AO89: 1003116
B90: =IF(A90="","",_xlfn.TEXTJOIN(";",1,Z90:AS90,102)) -> 
C91: 5 | E91: 1 | F91: 0 | G91: 1 | I91: 1001 | J91: 10 | U91: 4058 | V91: 4133 | W91: 受伤的狼 | X91: 你发现一只奄奄一息的狼，决定上前一探究竟。 | Z91: 1001 | AA91: 1002 | AB91: 1003 | AC91: 1004 | AD91: 1005
C92: 5 | E92: 1 | F92: 0 | G92: 1 | I92: 1001 | J92: 10 | Q92: =IF(R92="","",VLOOKUP(R92,条件类型查询!A:B,2,FALSE)) ->  | U92: 4059 | V92: 4134 | W92: 鹬蚌相争 | X92: 附近的小树林闹的不可开交，你决定去看看怎么回事。 | Z92: 1010 | AA92: 1011 | AB92: 1012 | AC92: 1013 | AD92: 1014 | AE92: 1015 | AF92: 1016
C93: 5 | E93: 1 | F93: 0 | G93: 1 | I93: 1001 | J93: 10 | U93: 4060 | V93: 4135 | W93: 受伤的鸟 | X93: 你发现一只奄奄一息的鸟，决定上前一探究竟。 | Z93: 1001 | AA93: 1002 | AB93: 1003 | AC93: 1004 | AD93: 1005
C95: 6 | D95: 3 | E95: 1 | F95: 0 | G95: 1 | I95: 1001 | J95: 10 | U95: 4061 | V95: 4136 | W95: 受伤的狼 | X95: 你发现一只奄奄一息的狼，决定上前一探究竟。 | Z95: 1001 | AA95: 1002 | AB95: 1003 | AC95: 1004 | AD95: 1005
C96: 6 | D96: 3 | E96: 1 | F96: 0 | G96: 1 | I96: 1001 | J96: 10 | Q96: =IF(R96="","",VLOOKUP(R96,条件类型查询!A:B,2,FALSE)) ->  | U96: 4062 | V96: 4137 | W96: 鹬蚌相争 | X96: 附近的小树林闹的不可开交，你决定去看看怎么回事。 | Z96: 1010 | AA96: 1011 | AB96: 1012 | AC96: 1013 | AD96: 1014 | AE96: 1015 | AF96: 1016
C97: 6 | D97: 3 | E97: 1 | F97: 0 | G97: 1 | I97: 1001 | J97: 10 | M97: 1 | P97: 2 | U97: 4063 | V97: 4138 | W97: 惠子.没用的大葫芦 | X97: 惠子种的葫芦没用，他非常生气
C98: 6 | D98: 3 | E98: 1 | F98: 0 | G98: 1 | I98: 1001 | J98: 10 | M98: 2 | P98: 2 | U98: 4064 | V98: 4139 | W98: 发现魔修 | X98: 发现一群魔修，正在夺人钱财 | Z98: 9014
C99: 6 | D99: 3 | E99: 1 | F99: 0 | G99: 1 | I99: 1001 | J99: 10 | K99: 30 | L99: 2 | M99: 3 | P99: 2 | U99: 4065 | V99: 4140 | W99: 魔修 | X99: 打败魔休 | Z99: 9031
C100: 6 | D100: 5 | E100: 1 | F100: 0 | G100: 1 | I100: 1001 | J100: 10 | U100: 4066 | V100: 4141 | W100: 幽谷剑鸣 | X100: 你在闭关修炼时，感受到一股凌厉的剑意波动。深入探查，发现一名白衣剑修“清霜”盘坐于谷中，周围剑气环绕，正与一柄散发不祥气息的灵剑对峙。她似在参悟剑诀，却灵气不足，剑灵桀骜。 | Z100: 9003 | AA100: 9004 | AB100: 9005 | AC100: 9006 | AD100: 9007 | AE100: 9008
B102: =IF(A102="","",_xlfn.TEXTJOIN(";",1,Z102:AS102,102)) ->  | C102: 99 | D102: 2 | E102: 1 | F102: 10 | G102: 1 | I102: 1001 | J102: 10 | M102: 1 | P102: 4 | Q102: =IF(R102="","",VLOOKUP(R102,条件类型查询!A:B,2,FALSE)) -> 拥有特定道具 | R102: 1 | S102: 1004 | T102: 1 | U102: 4067 | V102: 4142 | W102: 鹬蚌相争2 | X102: 附近的小树林闹的不可开交，你决定去看看怎么回事。 | Z102: 1020 | AA102: 1021 | AB102: 1022 | AC102: 1023 | AD102: 1024 | AE102: 1025 | AF102: 1026
B103: =IF(A103="","",_xlfn.TEXTJOIN(";",1,Z103:AS103,102)) ->  | C103: 99 | D103: 4 | E103: 1 | F103: 10 | G103: 1 | I103: 1001 | J103: 10 | Q103: =IF(R103="","",VLOOKUP(R103,条件类型查询!A:B,2,FALSE)) ->  | U103: 4068 | V103: 4143 | W103: 受伤的鸟 | X103: 你发现一只奄奄一息的鸟，决定上前一探究竟。 | Z103: 1001 | AA103: 1002 | AB103: 1003 | AC103: 1004 | AD103: 1005 | AS103: 100
A104: 30001 | B104: 100;102 | C104: 98 | D104: 6 | E104: 1 | F104: 0 | G104: 1 | K104: 50 | L104: 5 | Q104: =IF(R104="","",VLOOKUP(R104,条件类型查询!A:B,2,FALSE)) ->  | Y104: =COUNTIF(EventLinkConfig!O:O,EventConfig!A104) -> 0 | Z104: =IF($Y104>=Z$3,$A104*100+Z$3,"") ->  | AS104: 100
A105: =A104+1 -> 30002 | B105: 100;102 | C105: 98 | D105: 6 | E105: 1 | F105: 0 | G105: 1 | K105: 50 | L105: 1 | Q105: =IF(R105="","",VLOOKUP(R105,条件类型查询!A:B,2,FALSE)) ->  | Y105: =COUNTIF(EventLinkConfig!O:O,EventConfig!A105) -> 0 | AS105: 100
A106: 30003 | B106: 3000301;100;102 | C106: 98 | D106: 6 | E106: 1 | F106: 0 | G106: 1 | K106: 50 | L106: 1 | M106: 1 | Q106: =IF(R106="","",VLOOKUP(R106,条件类型查询!A:B,2,FALSE)) ->  | Y106: =COUNTIF(EventLinkConfig!O:O,EventConfig!A106) -> 1 | Z106: 3000301 | AS106: 100
A107: 30004 | B107: 3000401;100;102 | C107: 98 | D107: 6 | E107: 1 | F107: 0 | G107: 1 | K107: 50 | L107: 3 | M107: 2 | Q107: =IF(R107="","",VLOOKUP(R107,条件类型查询!A:B,2,FALSE)) ->  | Y107: =COUNTIF(EventLinkConfig!O:O,EventConfig!A107) -> 1 | Z107: 3000401 | AS107: 100
A108: 30005 | B108: 3000501;100;102 | C108: 98 | D108: 6 | E108: 1 | F108: 0 | G108: 1 | K108: 50 | L108: 1 | M108: 2 | Q108: =IF(R108="","",VLOOKUP(R108,条件类型查询!A:B,2,FALSE)) ->  | Y108: =COUNTIF(EventLinkConfig!O:O,EventConfig!A108) -> 1 | Z108: 3000501 | AS108: 100
A109: 30006 | B109: 3000601;100;102 | C109: 98 | D109: 6 | E109: 1 | F109: 0 | G109: 1 | K109: 50 | L109: 1 | M109: 2 | Q109: =IF(R109="","",VLOOKUP(R109,条件类型查询!A:B,2,FALSE)) ->  | Y109: =COUNTIF(EventLinkConfig!O:O,EventConfig!A109) -> 1 | Z109: 3000601 | AS109: 100
A110: 30007 | B110: 3000701;100;102 | C110: 98 | D110: 6 | E110: 1 | F110: 0 | G110: 1 | K110: 50 | L110: 1 | M110: 3 | Q110: =IF(R110="","",VLOOKUP(R110,条件类型查询!A:B,2,FALSE)) ->  | Y110: =COUNTIF(EventLinkConfig!O:O,EventConfig!A110) -> 1 | Z110: 3000701 | AS110: 100
A111: 30008 | B111: 3000801;100;102 | C111: 98 | D111: 6 | E111: 1 | F111: 0 | G111: 1 | K111: 15 | L111: 1 | M111: 3 | Q111: =IF(R111="","",VLOOKUP(R111,条件类型查询!A:B,2,FALSE)) ->  | Y111: =COUNTIF(EventLinkConfig!O:O,EventConfig!A111) -> 1 | Z111: 3000801 | AS111: 100
A112: 30009 | B112: 3000901;3000902;100;102 | C112: 98 | D112: 6 | E112: 1 | F112: 0 | G112: 1 | I112: 1301 | J112: 1 | K112: 100 | L112: 1 | M112: 3 | Q112: =IF(R112="","",VLOOKUP(R112,条件类型查询!A:B,2,FALSE)) ->  | Y112: =COUNTIF(EventLinkConfig!O:O,EventConfig!A112) -> 2 | Z112: 3000901 | AA112: 3000902 | AS112: 100
A113: 30010 | B113: 3001001;100;102 | C113: 98 | D113: 6 | E113: 1 | F113: 0 | G113: 1 | I113: 1001 | J113: 1 | K113: 100 | L113: 1 | M113: 3 | Q113: =IF(R113="","",VLOOKUP(R113,条件类型查询!A:B,2,FALSE)) -> 前置事件 | R113: 10 | S113: 1021 | Y113: =COUNTIF(EventLinkConfig!O:O,EventConfig!A113) -> 1 | Z113: 3001001 | AS113: 100
A114: 30011 | B114: 3001101;3001102;100;102 | C114: 98 | D114: 6 | E114: 1 | F114: 0 | G114: 1 | I114: 20003 | J114: 3 | K114: 100 | L114: 1 | M114: 2 | Q114: =IF(R114="","",VLOOKUP(R114,条件类型查询!A:B,2,FALSE)) ->  | Y114: =COUNTIF(EventLinkConfig!O:O,EventConfig!A114) -> 2 | Z114: 3001101 | AA114: 3001102 | AS114: 100
A115: 30012 | B115: 3001201;102 | C115: 98 | D115: 6 | E115: 1 | F115: 0 | G115: 1 | I115: 20004 | J115: 1 | K115: 20 | L115: 1 | M115: 2 | Q115: =IF(R115="","",VLOOKUP(R115,条件类型查询!A:B,2,FALSE)) ->  | Y115: =COUNTIF(EventLinkConfig!O:O,EventConfig!A115) -> 1 | Z115: 3001201
A116: 30013 | B116: =IF(A116="","",_xlfn.TEXTJOIN(";",1,Z116:AS116,102)) -> 3001301;102 | C116: 98 | D116: 6 | E116: 1 | F116: 0 | G116: 1 | I116: 20005 | J116: 1 | K116: 20 | L116: 1 | M116: 1 | Q116: =IF(R116="","",VLOOKUP(R116,条件类型查询!A:B,2,FALSE)) ->  | T116: 3 | U116: 4163 | V116: 4164 | W116: 搜集风铃 | X116: 为雀灵儿搜集风铃 | Y116: =COUNTIF(EventLinkConfig!O:O,EventConfig!A116) -> 1 | Z116: 3001301
A117: 30014 | B117: 3001401;102 | C117: 98 | D117: 6 | E117: 1 | F117: 0 | G117: 1 | I117: 1001 | J117: 100 | K117: 20 | L117: 1 | M117: 1 | Q117: =IF(R117="","",VLOOKUP(R117,条件类型查询!A:B,2,FALSE)) ->  | T117: 1 | U117: 4177 | V117: 4178 | W117: 击败风妖 | X117: 云枝-击败风妖 | Y117: =COUNTIF(EventLinkConfig!O:O,EventConfig!A117) -> 1 | Z117: 3001401
A118: 30015 | B118: 3001501;102 | C118: 98 | D118: 6 | E118: 1 | F118: 0 | G118: 1 | I118: 20006 | J118: 1 | K118: 33 | L118: 1 | M118: 1 | Q118: =IF(R118="","",VLOOKUP(R118,条件类型查询!A:B,2,FALSE)) ->  | T118: 3 | U118: 4193 | V118: 4194 | W118: 搜集风灵碎片 | X118: 风瑶-2. 风灵碎片.岛间搜寻 | Y118: =COUNTIF(EventLinkConfig!O:O,EventConfig!A118) -> 1 | Z118: 3001501
A119: 30016 | B119: 3001601;3001602;3001603;3001604;102 | C119: 98 | D119: 6 | E119: 1 | F119: 0 | G119: 1 | I119: 1001 | J119: 100 | K119: 20 | L119: 1 | M119: 1 | Q119: =IF(R119="","",VLOOKUP(R119,条件类型查询!A:B,2,FALSE)) ->  | T119: 1 | U119: 4195 | V119: 4196 | W119: 云隐秘闻 | X119: 风瑶-3. 风中疑云.探听消息 | Y119: =COUNTIF(EventLinkConfig!O:O,EventConfig!A119) -> 4 | Z119: =IF($Y119>=Z$3,$A119*100+Z$3,"") -> 3001601 | AA119: 3001602 | AB119: 3001603 | AC119: 3001604 | AO119: =IF($Y119>=AO$3,$A119*100+AO$3,"") -> 
A120: =A119+1 -> 30017 | B120: 3001701;102 | C120: 98 | D120: 6 | E120: 1 | F120: 0 | G120: 1 | I120: 20007 | J120: 1 | K120: 20 | L120: 1 | M120: 1 | Q120: =IF(R120="","",VLOOKUP(R120,条件类型查询!A:B,2,FALSE)) ->  | T120: 3 | U120: 4197 | V120: 4198 | W120: 搜集浮岛灵石 | X120: 风瑶-4. 隐秘信物.追踪残片 | Y120: =COUNTIF(EventLinkConfig!O:O,EventConfig!A120) -> 1 | Z120: 3001701
A121: 30018 | B121: 3001801;102 | C121: 98 | D121: 6 | E121: 1 | F121: 0 | G121: 1 | I121: 20008 | J121: 1 | K121: 20 | L121: 1 | M121: 1 | Q121: =IF(R121="","",VLOOKUP(R121,条件类型查询!A:B,2,FALSE)) ->  | T121: 1 | U121: 4199 | V121: 4200 | W121: 搜集浮岛灵石 | X121: 风瑶-5. 风中密信.截获情报 | Y121: =COUNTIF(EventLinkConfig!O:O,EventConfig!A121) -> 1 | Z121: 3001801
A122: 30019 | B122: 3001901;102 | C122: 98 | D122: 6 | E122: 1 | F122: 0 | G122: 1 | I122: 20009 | J122: 1 | K122: 20 | L122: 1 | M122: 1 | Q122: =IF(R122="","",VLOOKUP(R122,条件类型查询!A:B,2,FALSE)) ->  | T122: 2 | U122: 4213 | V122: 4214 | W122: 搜集尧都玉佩 | X122: 婉溪-4. 玉佩稳灵.收集信物 | Y122: =COUNTIF(EventLinkConfig!O:O,EventConfig!A122) -> 1 | Z122: 3001901
A123: 30020 | B123: 3002001;102 | C123: 98 | D123: 6 | E123: 1 | F123: 0 | G123: 1 | I123: 20010 | J123: 1 | K123: 20 | L123: 1 | M123: 1 | Q123: =IF(R123="","",VLOOKUP(R123,条件类型查询!A:B,2,FALSE)) ->  | T123: 2 | U123: 4227 | V123: 4228 | W123: 搜集山野灵草 | X123: 许由-2. 山野采草.炼丹初助 | Y123: =COUNTIF(EventLinkConfig!O:O,EventConfig!A123) -> 1 | Z123: 3002001
A124: 30021 | B124: 3002101;3002102;3002103;102 | C124: 98 | D124: 6 | E124: 1 | F124: 0 | G124: 1 | I124: 20011 | J124: 1 | K124: 20 | L124: 1 | M124: 1 | Q124: =IF(R124="","",VLOOKUP(R124,条件类型查询!A:B,2,FALSE)) ->  | T124: 2 | U124: 4229 | V124: 4230 | W124: 搜集秘境种子 | X124: 许由-4. 玉佩镇丹.稳气寻材 | Y124: =COUNTIF(EventLinkConfig!O:O,EventConfig!A124) -> 3 | Z124: 3002101 | AA124: 3002102 | AB124: 3002103
A125: 30022 | B125: 3002201;3002202;102 | C125: 98 | D125: 6 | E125: 1 | F125: 0 | G125: 1 | I125: 20012 | J125: 1 | K125: 20 | L125: 1 | M125: 1 | Q125: =IF(R125="","",VLOOKUP(R125,条件类型查询!A:B,2,FALSE)) ->  | T125: 3 | U125: 4242 | V125: 4243 | W125: 搜集甜蜜果实 | X125: 疯道人-2. 途中解乏 | Y125: =COUNTIF(EventLinkConfig!O:O,EventConfig!A125) -> 2 | Z125: 3002201 | AA125: 3002202
A126: 30023 | B126: 3002301;3002302;102 | C126: 98 | D126: 6 | E126: 1 | F126: 0 | G126: 1 | K126: 20 | L126: 5 | M126: 1 | Q126: =IF(R126="","",VLOOKUP(R126,条件类型查询!A:B,2,FALSE)) ->  | T126: 3 | U126: 4275 | W126: 消灭妖邪 | Y126: =COUNTIF(EventLinkConfig!O:O,EventConfig!A126) -> 2 | Z126: 3002301 | AA126: 3002302
A127: 30024 | B127: 3002401;3002402;102 | C127: 98 | D127: 6 | E127: 1 | F127: 0 | G127: 1 | K127: 20 | L127: 5 | M127: 1 | Q127: =IF(R127="","",VLOOKUP(R127,条件类型查询!A:B,2,FALSE)) ->  | T127: 3 | U127: 4276 | W127: 消灭仙山西边的妖物 | Y127: =COUNTIF(EventLinkConfig!O:O,EventConfig!A127) -> 2 | Z127: 3002401 | AA127: 3002402
B129: =IF(A129="","",_xlfn.TEXTJOIN(";",1,Z129:AS129,102)) ->  | C129: 99 | D129: 5 | E129: 1 | F129: 10 | G129: 1 | H129: 10 | I129: 1501 | J129: 1 | M129: 1 | P129: 1 | Q129: =IF(R129="","",VLOOKUP(R129,条件类型查询!A:B,2,FALSE)) ->  | U129: 4069 | V129: 4144 | W129: 风影为二 | X129: 风影为二详情占位 | Y129: =COUNTIF(EventLinkConfig!O:O,EventConfig!A129) -> 0 | Z129: =IF($Y129>=Z$3,$A129*100+Z$3,"") ->  | AJ129: =IF($Y129>=AJ$3,$A129*100+AJ$3,"") -> 
C130: 99 | D130: 5 | E130: 1 | F130: 10 | G130: 1 | H130: 11 | I130: 1601 | J130: 1 | M130: 1 | P130: 1 | Q130: =IF(R130="","",VLOOKUP(R130,条件类型查询!A:B,2,FALSE)) -> 前置事件 | R130: 10 | S130: 5001 | U130: 4070 | V130: 4145 | W130: 风影合一 | X130: 风影合一详情占位 | Y130: =COUNTIF(EventLinkConfig!O:O,EventConfig!A130) -> 0
C131: 99 | D131: 2 | E131: 1 | F131: 0 | G131: 1 | H131: 1 | I131: 1001 | J131: 500 | M131: 1 | P131: 1 | Q131: =IF(R131="","",VLOOKUP(R131,条件类型查询!A:B,2,FALSE)) ->  | U131: 4071 | V131: 4146 | W131: 北海剑妖 | X131: 百年化妖为红颜，一剑焚海断孽缘 | Y131: =COUNTIF(EventLinkConfig!O:O,EventConfig!A131) -> 0
A132: 5004 | B132: 500401;102 | C132: 99 | D132: 7 | E132: 1 | F132: 0 | G132: 1 | H132: 1 | I132: 1001 | J132: -20000 | Q132: =IF(R132="","",VLOOKUP(R132,条件类型查询!A:B,2,FALSE)) ->  | U132: 4072 | V132: 4147 | W132: 【纳福】灵石 | X132: 大量获取灵石 | Y132: =COUNTIF(EventLinkConfig!O:O,EventConfig!A132) -> 1 | Z132: 500401
A133: 5005 | B133: 500501;102 | C133: 99 | D133: 7 | E133: 1 | F133: 0 | G133: 1 | H133: 1 | I133: 1003 | J133: -20000 | Q133: =IF(R133="","",VLOOKUP(R133,条件类型查询!A:B,2,FALSE)) ->  | U133: 4073 | V133: 4148 | W133: 【纳福】修为 | X133: 大量获取修为 | Y133: =COUNTIF(EventLinkConfig!O:O,EventConfig!A133) -> 1 | Z133: 500501
A134: 5006 | B134: 500601;102 | C134: 99 | D134: 7 | E134: 1 | F134: 0 | G134: 1 | H134: 1 | I134: 1005 | J134: -20000 | Q134: =IF(R134="","",VLOOKUP(R134,条件类型查询!A:B,2,FALSE)) ->  | U134: 4074 | V134: 4149 | W134: 【纳福】灵气 | X134: 大量获取灵气 | Y134: =COUNTIF(EventLinkConfig!O:O,EventConfig!A134) -> 1 | Z134: 500601
A135: 5007 | B135: 500701;102 | C135: 99 | D135: 7 | E135: 1 | F135: 0 | G135: 1 | H135: 1 | I135: 1006 | J135: -20000 | Q135: =IF(R135="","",VLOOKUP(R135,条件类型查询!A:B,2,FALSE)) ->  | U135: 4075 | V135: 4150 | W135: 【纳福】玄晶 | X135: 大量获取玄晶 | Y135: =COUNTIF(EventLinkConfig!O:O,EventConfig!A135) -> 1 | Z135: 500701
A137: 6001 | B137: =IF(A137="","",_xlfn.TEXTJOIN(";",1,Z137:AS137,102)) -> 600101;600102;600103;600104;600105;600106;600107;600108;600109;600110;600111;600112;600113;600114;600115;600116;600117;102 | C137: 7 | D137: 5 | E137: 1 | F137: 0 | G137: 1 | K137: 35 | L137: 1 | M137: 1 | Q137: =IF(R137="","",VLOOKUP(R137,条件类型查询!A:B,2,FALSE)) -> 前置事件 | R137: 10 | S137: 10003 | U137: 4151 | V137: 4152 | W137: 树间闲聊 | X137: 雀灵儿1 | Y137: =COUNTIF(EventLinkConfig!O:O,EventConfig!A137) -> 17 | Z137: =IF($Y137>=Z$3,$A137*100+Z$3,"") -> 600101 | AA137: 600102 | AB137: 600103 | AC137: 600104 | AD137: 600105 | AE137: 600106 | AF137: 600107 | AG137: 600108 | AH137: 600109 | AI137: 600110 | AJ137: =IF($Y137>=AJ$3,$A137*100+AJ$3,"") -> 600111 | AK137: 600112 | AL137: 600113 | AM137: 600114 | AN137: 600115 | AO137: 600116 | AP137: 600117
A138: 6002 | B138: 600201;600202;600203;600204;600205;600206;102 | C138: 7 | D138: 5 | E138: 1 | F138: 0 | G138: 1 | K138: 30 | L138: 1 | M138: 1 | Q138: =IF(R138="","",VLOOKUP(R138,条件类型查询!A:B,2,FALSE)) -> 前置事件 | R138: 10 | S138: =A137 -> 6001 | U138: 4153 | V138: 4154 | W138: 风铃寻趣 | X138: 雀灵儿2 | Y138: =COUNTIF(EventLinkConfig!O:O,EventConfig!A138) -> 6 | Z138: 600201 | AA138: 600202 | AB138: 600203 | AC138: 600204 | AD138: 600205 | AE138: 600206
A139: 6003 | B139: 600301;600302;600303;600304;600305;600306;600307;600308;600309;600310;600311;600312;600313;600314;600315;102 | C139: 7 | D139: 5 | E139: 1 | F139: 0 | G139: 1 | K139: 25 | L139: 1 | M139: 1 | Q139: =IF(R139="","",VLOOKUP(R139,条件类型查询!A:B,2,FALSE)) -> 前置事件 | R139: 10 | S139: =A138 -> 6002 | U139: 4155 | V139: 4156 | W139: 守护雀巢 | X139: 雀灵儿3 | Y139: =COUNTIF(EventLinkConfig!O:O,EventConfig!A139) -> 15 | Z139: 600301 | AA139: 600302 | AB139: 600303 | AC139: 600304 | AD139: 600305 | AE139: 600306 | AF139: 600307 | AG139: 600308 | AH139: 600309 | AI139: 600310 | AJ139: 600311 | AK139: 600312 | AL139: 600313 | AM139: 600314 | AN139: 600315
A140: 6004 | B140: 600401;600402;600403;600404;600405;600406;600407;600408;600409;102 | C140: 7 | D140: 5 | E140: 1 | F140: 0 | G140: 1 | K140: 20 | L140: 1 | M140: 1 | Q140: =IF(R140="","",VLOOKUP(R140,条件类型查询!A:B,2,FALSE)) -> 前置事件 | R140: 10 | S140: =A139 -> 6003 | U140: 4157 | V140: 4158 | W140: 小飞试胆 | X140: 雀灵儿4 | Y140: =COUNTIF(EventLinkConfig!O:O,EventConfig!A140) -> 9 | Z140: 600401 | AA140: 600402 | AB140: 600403 | AC140: 600404 | AD140: 600405 | AE140: 600406 | AF140: 600407 | AG140: 600408 | AH140: 600409
A141: 6005 | B141: 600501;600502;600503;600504;600505;600506;102 | C141: 7 | D141: 5 | E141: 1 | F141: 0 | G141: 1 | K141: 15 | L141: 1 | M141: 1 | Q141: =IF(R141="","",VLOOKUP(R141,条件类型查询!A:B,2,FALSE)) -> 前置事件 | R141: 10 | S141: =A140 -> 6004 | U141: 4159 | V141: 4160 | W141: 风涡营救 | X141: 雀灵儿5 | Y141: =COUNTIF(EventLinkConfig!O:O,EventConfig!A141) -> 6 | Z141: 600501 | AA141: 600502 | AB141: 600503 | AC141: 600504 | AD141: 600505 | AE141: 600506
A142: 6006 | B142: 600601;600602;600603;600604;600605;600606;600607;600608;600609;102 | C142: 7 | D142: 5 | E142: 1 | F142: 0 | G142: 1 | K142: 10 | L142: 1 | M142: 1 | Q142: =IF(R142="","",VLOOKUP(R142,条件类型查询!A:B,2,FALSE)) -> 前置事件 | R142: 10 | S142: =A141 -> 6005 | U142: 4161 | V142: 4162 | W142: 雀侣同行 | X142: 雀灵儿6 | Y142: =COUNTIF(EventLinkConfig!O:O,EventConfig!A142) -> 9 | Z142: 600601 | AA142: 600602 | AB142: 600603 | AC142: 600604 | AD142: 600605 | AE142: 600606 | AF142: 600607 | AG142: 600608 | AH142: 600609
A144: 6011 | B144: =IF(A144="","",_xlfn.TEXTJOIN(";",1,Z144:AS144,102)) -> 601101;601102;601103;601104;601105;601106;601107;102 | C144: 7 | D144: 5 | E144: 1 | F144: 0 | G144: 1 | K144: 35 | L144: 1 | M144: 1 | Q144: =IF(R144="","",VLOOKUP(R144,条件类型查询!A:B,2,FALSE)) -> 前置事件 | R144: 10 | S144: 6001 | U144: 4165 | V144: 4171 | W144: 绿林试探 | X144: 云枝1 | Y144: =COUNTIF(EventLinkConfig!O:O,EventConfig!A144) -> 7 | Z144: =IF($Y144>=Z$3,$A144*100+Z$3,"") -> 601101 | AA144: 601102 | AB144: 601103 | AC144: 601104 | AD144: 601105 | AE144: 601106 | AF144: 601107 | AJ144: =IF($Y144>=AJ$3,$A144*100+AJ$3,"") -> 
A145: 6012 | B145: 601201;601202;601203;601204;601205;601206;601207;601208;102 | C145: 7 | D145: 5 | E145: 1 | F145: 0 | G145: 1 | K145: 30 | L145: 1 | M145: 1 | Q145: =IF(R145="","",VLOOKUP(R145,条件类型查询!A:B,2,FALSE)) -> 前置事件 | R145: 10 | S145: =A144 -> 6011 | U145: 4166 | V145: 4172 | W145: 风林除妖 | X145: 云枝2 | Y145: =COUNTIF(EventLinkConfig!O:O,EventConfig!A145) -> 8 | Z145: 601201 | AA145: 601202 | AB145: 601203 | AC145: 601204 | AD145: 601205 | AE145: 601206 | AF145: 601207 | AG145: 601208
A146: 6013 | B146: 601301;601302;601303;601304;601305;601306;601307;601308;601309;601310;102 | C146: 7 | D146: 5 | E146: 1 | F146: 0 | G146: 1 | K146: 25 | L146: 1 | M146: 1 | Q146: =IF(R146="","",VLOOKUP(R146,条件类型查询!A:B,2,FALSE)) -> 前置事件 | R146: 10 | S146: =A145 -> 6012 | U146: 4167 | V146: 4173 | W146: 琴音守护 | X146: 云枝3 | Y146: =COUNTIF(EventLinkConfig!O:O,EventConfig!A146) -> 10 | Z146: 601301 | AA146: 601302 | AB146: 601303 | AC146: 601304 | AD146: 601305 | AE146: 601306 | AF146: 601307 | AG146: 601308 | AH146: 601309 | AI146: 601310
A147: 6014 | B147: 601401;601402;601403;601404;601405;601406;601407;601408;601409;601410;102 | C147: 7 | D147: 5 | E147: 1 | F147: 0 | G147: 1 | K147: 20 | L147: 1 | M147: 1 | Q147: =IF(R147="","",VLOOKUP(R147,条件类型查询!A:B,2,FALSE)) -> 前置事件 | R147: 10 | S147: =A146 -> 6013 | U147: 4168 | V147: 4174 | W147: 往事如风 | X147: 云枝4 | Y147: =COUNTIF(EventLinkConfig!O:O,EventConfig!A147) -> 10 | Z147: 601401 | AA147: 601402 | AB147: 601403 | AC147: 601404 | AD147: 601405 | AE147: 601406 | AF147: 601407 | AG147: 601408 | AH147: 601409 | AI147: 601410
A148: 6015 | B148: 601501;601502;601503;601504;601505;601506;601507;601508;601509;601510;601511;102 | C148: 7 | D148: 5 | E148: 1 | F148: 0 | G148: 1 | K148: 15 | L148: 1 | M148: 1 | Q148: =IF(R148="","",VLOOKUP(R148,条件类型查询!A:B,2,FALSE)) -> 前置事件 | R148: 10 | S148: =A147 -> 6014 | U148: 4169 | V148: 4175 | W148: 大风危机 | X148: 云枝5 | Y148: =COUNTIF(EventLinkConfig!O:O,EventConfig!A148) -> 11 | Z148: 601501 | AA148: 601502 | AB148: 601503 | AC148: 601504 | AD148: 601505 | AE148: 601506 | AF148: 601507 | AG148: 601508 | AH148: 601509 | AI148: 601510 | AJ148: 601511
A149: 6016 | B149: 601601;601602;601603;601604;601605;102 | C149: 7 | D149: 5 | E149: 1 | F149: 0 | G149: 1 | K149: 10 | L149: 1 | M149: 1 | Q149: =IF(R149="","",VLOOKUP(R149,条件类型查询!A:B,2,FALSE)) -> 前置事件 | R149: 10 | S149: =A148 -> 6015 | U149: 4170 | V149: 4176 | W149: 枝侣同行 | X149: 云枝6 | Y149: =COUNTIF(EventLinkConfig!O:O,EventConfig!A149) -> 5 | Z149: 601601 | AA149: 601602 | AB149: 601603 | AC149: 601604 | AD149: 601605
A151: 6021 | B151: =IF(A151="","",_xlfn.TEXTJOIN(";",1,Z151:AS151,102)) -> 602101;602102;602103;602104;102 | C151: 7 | D151: 5 | E151: 1 | F151: 0 | G151: 1 | K151: 35 | L151: 1 | M151: 1 | Q151: =IF(R151="","",VLOOKUP(R151,条件类型查询!A:B,2,FALSE)) -> 境界判断 | R151: 3 | S151: 81 | U151: 4179 | V151: 4185 | W151: 1. 浮岛边缘.初遇风瑶 | X151: 风瑶1 | Y151: =COUNTIF(EventLinkConfig!O:O,EventConfig!A151) -> 4 | Z151: =IF($Y151>=Z$3,$A151*100+Z$3,"") -> 602101 | AA151: 602102 | AB151: 602103 | AC151: 602104 | AJ151: =IF($Y151>=AJ$3,$A151*100+AJ$3,"") -> 
A152: 6022 | B152: 602201;602202;602203;602204;602205;602206;102 | C152: 7 | D152: 5 | E152: 1 | F152: 0 | G152: 1 | K152: 30 | L152: 1 | M152: 1 | Q152: =IF(R152="","",VLOOKUP(R152,条件类型查询!A:B,2,FALSE)) -> 前置事件 | R152: 10 | S152: =A151 -> 6021 | U152: 4180 | V152: 4186 | W152: 2. 风灵碎片.岛间搜寻 | X152: 风瑶2 | Y152: =COUNTIF(EventLinkConfig!O:O,EventConfig!A152) -> 6 | Z152: 602201 | AA152: 602202 | AB152: 602203 | AC152: 602204 | AD152: 602205 | AE152: 602206
A153: 6023 | B153: 602301;602302;602303;102 | C153: 7 | D153: 5 | E153: 1 | F153: 0 | G153: 1 | K153: 25 | L153: 1 | M153: 1 | Q153: =IF(R153="","",VLOOKUP(R153,条件类型查询!A:B,2,FALSE)) -> 前置事件 | R153: 10 | S153: =A152 -> 6022 | U153: 4181 | V153: 4187 | W153: 3. 风中疑云.探听消息 | X153: 风瑶3 | Y153: =COUNTIF(EventLinkConfig!O:O,EventConfig!A153) -> 3 | Z153: 602301 | AA153: 602302 | AB153: 602303
A154: 6024 | B154: 602401;602402;602403;602404;102 | C154: 7 | D154: 5 | E154: 1 | F154: 0 | G154: 1 | K154: 20 | L154: 1 | M154: 1 | Q154: =IF(R154="","",VLOOKUP(R154,条件类型查询!A:B,2,FALSE)) -> 前置事件 | R154: 10 | S154: =A153 -> 6023 | U154: 4182 | V154: 4188 | W154: 4. 隐秘信物.追踪残片 | X154: 风瑶4 | Y154: =COUNTIF(EventLinkConfig!O:O,EventConfig!A154) -> 4 | Z154: 602401 | AA154: 602402 | AB154: 602403 | AC154: 602404
A155: 6025 | B155: 602501;602502;602503;102 | C155: 7 | D155: 5 | E155: 1 | F155: 0 | G155: 1 | K155: 15 | L155: 1 | M155: 1 | Q155: =IF(R155="","",VLOOKUP(R155,条件类型查询!A:B,2,FALSE)) -> 前置事件 | R155: 10 | S155: =A154 -> 6024 | U155: 4183 | V155: 4189 | W155: 5. 风中密信.截获情报 | X155: 风瑶5 | Y155: =COUNTIF(EventLinkConfig!O:O,EventConfig!A155) -> 3 | Z155: 602501 | AA155: 602502 | AB155: 602503
A156: 6026 | B156: 602601;602602;602603;602604;602605;602606;602607;102 | C156: 7 | D156: 5 | E156: 1 | F156: 0 | G156: 1 | K156: 10 | L156: 1 | M156: 1 | Q156: =IF(R156="","",VLOOKUP(R156,条件类型查询!A:B,2,FALSE)) -> 前置事件 | R156: 10 | S156: =A155 -> 6025 | U156: 4184 | V156: 4190 | W156: 6. 兄妹密谈.初步真相 | X156: 风瑶6 | Y156: =COUNTIF(EventLinkConfig!O:O,EventConfig!A156) -> 7 | Z156: 602601 | AA156: 602602 | AB156: 602603 | AC156: 602604 | AD156: 602605 | AE156: 602606 | AF156: 602607
A158: 6031 | B158: =IF(A158="","",_xlfn.TEXTJOIN(";",1,Z158:AS158,102)) -> 603101;603102;603103;603104;603105;603106;603107;603108;102 | C158: 7 | D158: 5 | E158: 1 | F158: 0 | G158: 1 | K158: 35 | L158: 1 | M158: 1 | Q158: =IF(R158="","",VLOOKUP(R158,条件类型查询!A:B,2,FALSE)) -> 境界判断 | R158: 3 | S158: 101 | U158: 4201 | V158: 4207 | W158: 1. 山溪小屋.初遇婉溪 | X158: 婉溪1 | Y158: =COUNTIF(EventLinkConfig!O:O,EventConfig!A158) -> 8 | Z158: =IF($Y158>=Z$3,$A158*100+Z$3,"") -> 603101 | AA158: 603102 | AB158: 603103 | AC158: 603104 | AD158: 603105 | AE158: 603106 | AF158: 603107 | AG158: 603108 | AJ158: =IF($Y158>=AJ$3,$A158*100+AJ$3,"") -> 
A159: 6032 | B159: 603201;603202;603203;603204;102 | C159: 7 | D159: 5 | E159: 1 | F159: 0 | G159: 1 | K159: 30 | L159: 1 | M159: 1 | Q159: =IF(R159="","",VLOOKUP(R159,条件类型查询!A:B,2,FALSE)) -> 前置事件 | R159: 10 | S159: =A158 -> 6031 | U159: 4202 | V159: 4208 | W159: 2. 溪边劳作.浇灌灵田 | X159: 婉溪2 | Y159: =COUNTIF(EventLinkConfig!O:O,EventConfig!A159) -> 4 | Z159: 603201 | AA159: 603202 | AB159: 603203 | AC159: 603204
A160: 6033 | B160: 603301;603302;603303;603304;603305;102 | C160: 7 | D160: 5 | E160: 1 | F160: 0 | G160: 1 | K160: 25 | L160: 1 | M160: 1 | Q160: =IF(R160="","",VLOOKUP(R160,条件类型查询!A:B,2,FALSE)) -> 前置事件 | R160: 10 | S160: =A159 -> 6032 | U160: 4203 | V160: 4209 | W160: 3. 清茶闲话.品茗论道 | X160: 婉溪3 | Y160: =COUNTIF(EventLinkConfig!O:O,EventConfig!A160) -> 5 | Z160: 603301 | AA160: 603302 | AB160: 603303 | AC160: 603304 | AD160: 603305
A161: 6034 | B161: 603401;603402;603403;102 | C161: 7 | D161: 5 | E161: 1 | F161: 0 | G161: 1 | K161: 20 | L161: 1 | M161: 1 | Q161: =IF(R161="","",VLOOKUP(R161,条件类型查询!A:B,2,FALSE)) -> 前置事件 | R161: 10 | S161: =A160 -> 6033 | U161: 4204 | V161: 4210 | W161: 4. 玉佩稳灵.收集信物 | X161: 婉溪4 | Y161: =COUNTIF(EventLinkConfig!O:O,EventConfig!A161) -> 3 | Z161: 603401 | AA161: 603402 | AB161: 603403
A162: 6035 | B162: 603501;603502;603503;102 | C162: 7 | D162: 5 | E162: 1 | F162: 0 | G162: 1 | K162: 15 | L162: 1 | M162: 1 | Q162: =IF(R162="","",VLOOKUP(R162,条件类型查询!A:B,2,FALSE)) -> 前置事件 | R162: 10 | S162: =A161 -> 6034 | U162: 4205 | V162: 4211 | W162: 5. 溪水异动.驱散干扰 | X162: 婉溪5 | Y162: =COUNTIF(EventLinkConfig!O:O,EventConfig!A162) -> 3 | Z162: 603501 | AA162: 603502 | AB162: 603503
A163: 6036 | B163: 603601;603602;603603;603604;603605;603606;102 | C163: 7 | D163: 5 | E163: 1 | F163: 0 | G163: 1 | K163: 10 | L163: 1 | M163: 1 | Q163: =IF(R163="","",VLOOKUP(R163,条件类型查询!A:B,2,FALSE)) -> 前置事件 | R163: 10 | S163: =A162 -> 6035 | U163: 4206 | V163: 4212 | W163: 6. 兄妹心语.隐秘初现 | X163: 婉溪6 | Y163: =COUNTIF(EventLinkConfig!O:O,EventConfig!A163) -> 6 | Z163: 603601 | AA163: 603602 | AB163: 603603 | AC163: 603604 | AD163: 603605 | AE163: 603606
A165: 6041 | B165: =IF(A165="","",_xlfn.TEXTJOIN(";",1,Z165:AS165,102)) -> 604101;604102;604103;604104;102 | C165: 7 | D165: 5 | E165: 1 | F165: 0 | G165: 1 | K165: 35 | L165: 1 | M165: 1 | Q165: =IF(R165="","",VLOOKUP(R165,条件类型查询!A:B,2,FALSE)) -> 境界判断 | R165: 3 | S165: 121 | U165: 4215 | V165: 4221 | W165: 1. 山林重逢.隐士闲谈 | X165: 许由1 | Y165: =COUNTIF(EventLinkConfig!O:O,EventConfig!A165) -> 4 | Z165: =IF($Y165>=Z$3,$A165*100+Z$3,"") -> 604101 | AA165: 604102 | AB165: 604103 | AC165: 604104 | AJ165: =IF($Y165>=AJ$3,$A165*100+AJ$3,"") -> 
A166: 6042 | B166: 604201;604202;604203;604204;102 | C166: 7 | D166: 5 | E166: 1 | F166: 0 | G166: 1 | K166: 30 | L166: 1 | M166: 1 | Q166: =IF(R166="","",VLOOKUP(R166,条件类型查询!A:B,2,FALSE)) -> 前置事件 | R166: 10 | S166: =A165 -> 6041 | U166: 4216 | V166: 4222 | W166: 2. 山野采草.炼丹初助 | X166: 许由2 | Y166: =COUNTIF(EventLinkConfig!O:O,EventConfig!A166) -> 4 | Z166: 604201 | AA166: 604202 | AB166: 604203 | AC166: 604204
A167: 6043 | B167: 604301;604302;604303;102 | C167: 7 | D167: 5 | E167: 1 | F167: 0 | G167: 1 | K167: 25 | L167: 1 | M167: 1 | Q167: =IF(R167="","",VLOOKUP(R167,条件类型查询!A:B,2,FALSE)) -> 前置事件 | R167: 10 | S167: =A166 -> 6042 | U167: 4217 | V167: 4223 | W167: 3. 丹炉论道.火候之悟 | X167: 许由3 | Y167: =COUNTIF(EventLinkConfig!O:O,EventConfig!A167) -> 3 | Z167: 604301 | AA167: 604302 | AB167: 604303
A168: 6044 | B168: 604401;604402;604403;604404;102 | C168: 7 | D168: 5 | E168: 1 | F168: 0 | G168: 1 | K168: 20 | L168: 1 | M168: 1 | Q168: =IF(R168="","",VLOOKUP(R168,条件类型查询!A:B,2,FALSE)) -> 前置事件 | R168: 10 | S168: =A167 -> 6043 | U168: 4218 | V168: 4224 | W168: 4. 玉佩镇丹.稳气寻材 | X168: 许由4 | Y168: =COUNTIF(EventLinkConfig!O:O,EventConfig!A168) -> 4 | Z168: 604401 | AA168: 604402 | AB168: 604403 | AC168: 604404
A169: 6045 | B169: 604501;604502;604503;604504;102 | C169: 7 | D169: 5 | E169: 1 | F169: 0 | G169: 1 | K169: 15 | L169: 1 | M169: 1 | Q169: =IF(R169="","",VLOOKUP(R169,条件类型查询!A:B,2,FALSE)) -> 前置事件 | R169: 10 | S169: =A168 -> 6044 | U169: 4219 | V169: 4225 | W169: 5. 茶丹相融.品味山林 | X169: 许由5 | Y169: =COUNTIF(EventLinkConfig!O:O,EventConfig!A169) -> 4 | Z169: 604501 | AA169: 604502 | AB169: 604503 | AC169: 604504
A170: 6046 | B170: 604601;604602;102 | C170: 7 | D170: 5 | E170: 1 | F170: 0 | G170: 1 | K170: 10 | L170: 1 | M170: 1 | Q170: =IF(R170="","",VLOOKUP(R170,条件类型查询!A:B,2,FALSE)) -> 前置事件 | R170: 10 | S170: =A169 -> 6045 | U170: 4220 | V170: 4226 | W170: 6. 隐士心语.道在山林 | X170: 许由6 | Y170: =COUNTIF(EventLinkConfig!O:O,EventConfig!A170) -> 2 | Z170: 604601 | AA170: 604602
A172: 6051 | B172: =IF(A172="","",_xlfn.TEXTJOIN(";",1,Z172:AS172,102)) -> 605101;605102;605103;605104;102 | C172: 7 | D172: 5 | E172: 1 | F172: 0 | G172: 1 | K172: 35 | L172: 1 | M172: 1 | Q172: =IF(R172="","",VLOOKUP(R172,条件类型查询!A:B,2,FALSE)) -> 境界判断 | R172: 3 | S172: 141 | U172: 4231 | V172: 4237 | W172: 1. 随风偶遇.风中疑问 | X172: 疯道人1 | Y172: =COUNTIF(EventLinkConfig!O:O,EventConfig!A172) -> 4 | Z172: =IF($Y172>=Z$3,$A172*100+Z$3,"") -> 605101 | AA172: 605102 | AB172: 605103 | AC172: 605104 | AJ172: =IF($Y172>=AJ$3,$A172*100+AJ$3,"") -> 
A173: 6052 | B173: =IF(A173="","",_xlfn.TEXTJOIN(";",1,Z173:AS173,102)) -> 605201;605202;605203;605204;102 | C173: 7 | D173: 5 | E173: 1 | F173: 0 | G173: 1 | K173: 30 | L173: 1 | M173: 1 | Q173: =IF(R173="","",VLOOKUP(R173,条件类型查询!A:B,2,FALSE)) -> 前置事件 | R173: 10 | S173: =A172 -> 6051 | U173: 4232 | V173: 4238 | W173: 2. 途中解乏 | X173: 疯道人2 | Y173: =COUNTIF(EventLinkConfig!O:O,EventConfig!A173) -> 4 | Z173: 605201 | AA173: 605202 | AB173: 605203 | AC173: 605204
A174: 6053 | B174: =IF(A174="","",_xlfn.TEXTJOIN(";",1,Z174:AS174,102)) -> 605301;605302;605303;605304;102 | C174: 7 | D174: 5 | E174: 1 | F174: 0 | G174: 1 | K174: 25 | L174: 1 | M174: 1 | Q174: =IF(R174="","",VLOOKUP(R174,条件类型查询!A:B,2,FALSE)) -> 前置事件 | R174: 10 | S174: =A173 -> 6052 | U174: 4233 | V174: 4239 | W174: 3. 游乐论道.评判之辨 | X174: 疯道人3 | Y174: =COUNTIF(EventLinkConfig!O:O,EventConfig!A174) -> 4 | Z174: 605301 | AA174: 605302 | AB174: 605303 | AC174: 605304
A175: 6054 | B175: =IF(A175="","",_xlfn.TEXTJOIN(";",1,Z175:AS175,102)) -> 605401;605402;605403;605404;102 | C175: 7 | D175: 5 | E175: 1 | F175: 0 | G175: 1 | K175: 20 | L175: 1 | M175: 1 | Q175: =IF(R175="","",VLOOKUP(R175,条件类型查询!A:B,2,FALSE)) -> 前置事件 | R175: 10 | S175: =A174 -> 6053 | U175: 4234 | V175: 4240 | W175: 4. 灵石稳身.自在寻味 | X175: 疯道人4 | Y175: =COUNTIF(EventLinkConfig!O:O,EventConfig!A175) -> 4 | Z175: 605401 | AA175: 605402 | AB175: 605403 | AC175: 605404
A176: 6055 | B176: =IF(A176="","",_xlfn.TEXTJOIN(";",1,Z176:AS176,102)) -> 605501;605502;605503;605504;605505;605506;102 | C176: 7 | D176: 5 | E176: 1 | F176: 0 | G176: 1 | K176: 15 | L176: 1 | M176: 1 | Q176: =IF(R176="","",VLOOKUP(R176,条件类型查询!A:B,2,FALSE)) -> 前置事件 | R176: 10 | S176: =A175 -> 6054 | U176: 4235 | V176: 4241 | W176: 5. 沉迷赌博.有借无还 | X176: 疯道人5 | Y176: =COUNTIF(EventLinkConfig!O:O,EventConfig!A176) -> 6 | Z176: 605501 | AA176: 605502 | AB176: 605503 | AC176: 605504 | AD176: 605505 | AE176: 605506
A178: 9111 | B178: =IF(Y178>0,_xlfn.TEXTJOIN(";",1,ROW(INDIRECT(CONCATENATE("",A178*100+1,":",A178*100+Y178,""))),102),"") -> 911101;911102;911103;911104;911105;911106;911107;911108;911109;911110;911111;911112;911113;911114;911115;911116;102 | C178: 6 | D178: 2 | E178: 1 | F178: 0 | G178: 3 | I178: =_xlfn.TEXTJOIN(";",1,AT178,AV178) ->  | J178: =_xlfn.TEXTJOIN(";",1,AU178,AW178) ->  | K178: 30 | L178: 1 | M178: 1 | N178: 1 | O178: =CONCATENATE(VLOOKUP(M178,[3]PlacesConfig!$A:$C,3,FALSE),IF(N178="",""," - "&VLOOKUP(N178,[3]SmallPlacesConfig!$A:$G,7,FALSE))) -> 北海 - 海边 | Q178: =IF(R178="","",VLOOKUP(R178,条件类型查询!A:B,2,FALSE)) ->  | T178: 1 | U178: 4244 | W178: 渔民的帮助 | X178: 海岸异象 | Y178: =COUNTIF(EventLinkConfig!O:O,EventConfig!A178) -> 16
A179: =A178+1 -> 9112 | B179: =IF(Y179>0,_xlfn.TEXTJOIN(";",1,ROW(INDIRECT(CONCATENATE("",A179*100+1,":",A179*100+Y179,""))),102),"") -> 911201;911202;911203;911204;911205;911206;911207;102 | C179: 6 | D179: 2 | E179: 1 | F179: 0 | G179: 3 | I179: =_xlfn.TEXTJOIN(";",1,AT179,AV179) ->  | J179: =_xlfn.TEXTJOIN(";",1,AU179,AW179) ->  | K179: 30 | L179: 1 | M179: 1 | N179: 1 | O179: =CONCATENATE(VLOOKUP(M179,[3]PlacesConfig!$A:$C,3,FALSE),IF(N179="",""," - "&VLOOKUP(N179,[3]SmallPlacesConfig!$A:$G,7,FALSE))) -> 北海 - 海边 | Q179: =IF(R179="","",VLOOKUP(R179,条件类型查询!A:B,2,FALSE)) -> 前置事件 | R179: 10 | S179: =A178 -> 9111 | T179: 1 | U179: 4245 | W179: 妖物调查 | X179: 海岸异象 | Y179: =COUNTIF(EventLinkConfig!O:O,EventConfig!A179) -> 7
A180: 9113 | B180: =IF(Y180>0,_xlfn.TEXTJOIN(";",1,ROW(INDIRECT(CONCATENATE("",A180*100+1,":",A180*100+Y180,""))),102),"") -> 911301;911302;911303;911304;911305;102 | C180: 6 | D180: 2 | E180: 1 | F180: 0 | G180: 3 | K180: 30 | L180: 1 | M180: 1 | N180: 1 | O180: =CONCATENATE(VLOOKUP(M180,[3]PlacesConfig!$A:$C,3,FALSE),IF(N180="",""," - "&VLOOKUP(N180,[3]SmallPlacesConfig!$A:$G,7,FALSE))) -> 北海 - 海边 | Q180: =IF(R180="","",VLOOKUP(R180,条件类型查询!A:B,2,FALSE)) -> 前置事件 | R180: 10 | S180: =A179 -> 9112 | T180: 1 | U180: 4246 | W180: 渔民汇报消息 | X180: 海岸异象 | Y180: =COUNTIF(EventLinkConfig!O:O,EventConfig!A180) -> 5
A181: 9114 | B181: =IF(Y181>0,_xlfn.TEXTJOIN(";",1,ROW(INDIRECT(CONCATENATE("",A181*100+1,":",A181*100+Y181,""))),102),"") -> 911401;911402;911403;911404;911405;911406;911407;911408;102 | C181: 6 | D181: 2 | E181: 1 | F181: 0 | G181: 3 | K181: 30 | L181: 1 | M181: 1 | N181: 1 | O181: =CONCATENATE(VLOOKUP(M181,[3]PlacesConfig!$A:$C,3,FALSE),IF(N181="",""," - "&VLOOKUP(N181,[3]SmallPlacesConfig!$A:$G,7,FALSE))) -> 北海 - 海边 | Q181: =IF(R181="","",VLOOKUP(R181,条件类型查询!A:B,2,FALSE)) -> 前置事件 | R181: 10 | S181: =A180 -> 9113 | T181: 1 | U181: 4247 | W181: 初遇幽魂 | X181: 幽魂 | Y181: =COUNTIF(EventLinkConfig!O:O,EventConfig!A181) -> 8
A182: 9115 | B182: =IF(Y182>0,_xlfn.TEXTJOIN(";",1,ROW(INDIRECT(CONCATENATE("",A182*100+1,":",A182*100+Y182,""))),102),"") -> 911501;911502;102 | C182: 6 | D182: 2 | E182: 1 | F182: 0 | G182: 3 | K182: 30 | L182: 1 | M182: 1 | N182: 1 | O182: =CONCATENATE(VLOOKUP(M182,[3]PlacesConfig!$A:$C,3,FALSE),IF(N182="",""," - "&VLOOKUP(N182,[3]SmallPlacesConfig!$A:$G,7,FALSE))) -> 北海 - 海边 | Q182: =IF(R182="","",VLOOKUP(R182,条件类型查询!A:B,2,FALSE)) -> 前置事件 | R182: 10 | S182: =A181 -> 9114 | T182: 3 | U182: 4248 | W182: 幽魂石守护兽 | X182: 幽魂 | Y182: =COUNTIF(EventLinkConfig!O:O,EventConfig!A182) -> 2
A183: 9116 | B183: =IF(Y183>0,_xlfn.TEXTJOIN(";",1,ROW(INDIRECT(CONCATENATE("",A183*100+1,":",A183*100+Y183,""))),102),"") -> 911601;911602;911603;911604;911605;911606;911607;911608;911609;911610;911611;911612;911613;911614;911615;911616;911617;911618;911619;911620;102 | C183: 6 | D183: 2 | E183: 1 | F183: 0 | G183: 3 | K183: 30 | L183: 1 | M183: 1 | N183: 1 | O183: =CONCATENATE(VLOOKUP(M183,[3]PlacesConfig!$A:$C,3,FALSE),IF(N183="",""," - "&VLOOKUP(N183,[3]SmallPlacesConfig!$A:$G,7,FALSE))) -> 北海 - 海边 | Q183: =IF(R183="","",VLOOKUP(R183,条件类型查询!A:B,2,FALSE)) -> 拥有特定道具 | R183: 1 | S183: 20013 | T183: 3 | U183: 4249 | W183: 带回幽魂石 | X183: 幽魂 | Y183: =COUNTIF(EventLinkConfig!O:O,EventConfig!A183) -> 20
A184: 9117 | B184: =IF(Y184>0,_xlfn.TEXTJOIN(";",1,ROW(INDIRECT(CONCATENATE("",A184*100+1,":",A184*100+Y184,""))),102),"") -> 911701;911702;911703;911704;911705;911706;911707;911708;911709;911710;911711;102 | C184: 6 | D184: 2 | E184: 1 | F184: 0 | G184: 3 | K184: 30 | L184: 1 | M184: 1 | N184: 2 | O184: =CONCATENATE(VLOOKUP(M184,[3]PlacesConfig!$A:$C,3,FALSE),IF(N184="",""," - "&VLOOKUP(N184,[3]SmallPlacesConfig!$A:$G,7,FALSE))) -> 北海 - 秘境 | Q184: =IF(R184="","",VLOOKUP(R184,条件类型查询!A:B,2,FALSE)) ->  | T184: 3 | U184: 4250 | W184: 初遇馨儿 | X184: 馨儿 | Y184: =COUNTIF(EventLinkConfig!O:O,EventConfig!A184) -> 11
A185: 9118 | B185: =IF(Y185>0,_xlfn.TEXTJOIN(";",1,ROW(INDIRECT(CONCATENATE("",A185*100+1,":",A185*100+Y185,""))),102),"") -> 911801;911802;911803;911804;911805;911806;911807;911808;102 | C185: 6 | D185: 2 | E185: 1 | F185: 0 | G185: 3 | K185: 30 | L185: 1 | M185: 1 | N185: 2 | O185: =CONCATENATE(VLOOKUP(M185,[3]PlacesConfig!$A:$C,3,FALSE),IF(N185="",""," - "&VLOOKUP(N185,[3]SmallPlacesConfig!$A:$G,7,FALSE))) -> 北海 - 秘境 | Q185: =IF(R185="","",VLOOKUP(R185,条件类型查询!A:B,2,FALSE)) -> 前置事件 | R185: 10 | S185: =A184 -> 9117 | T185: 3 | U185: 4251 | W185: 迷雾妖怪 | X185: 馨儿 | Y185: =COUNTIF(EventLinkConfig!O:O,EventConfig!A185) -> 8
A186: 9119 | B186: =IF(Y186>0,_xlfn.TEXTJOIN(";",1,ROW(INDIRECT(CONCATENATE("",A186*100+1,":",A186*100+Y186,""))),102),"") -> 911901;911902;911903;911904;911905;911906;911907;911908;911909;911910;911911;911912;911913;102 | C186: 6 | D186: 2 | E186: 1 | F186: 0 | G186: 3 | K186: 30 | L186: 1 | M186: 1 | N186: 2 | O186: =CONCATENATE(VLOOKUP(M186,[3]PlacesConfig!$A:$C,3,FALSE),IF(N186="",""," - "&VLOOKUP(N186,[3]SmallPlacesConfig!$A:$G,7,FALSE))) -> 北海 - 秘境 | Q186: =IF(R186="","",VLOOKUP(R186,条件类型查询!A:B,2,FALSE)) -> 前置事件 | R186: 10 | S186: =A185 -> 9118 | T186: 3 | U186: 4252 | W186: 发现信使 | X186: 馨儿 | Y186: =COUNTIF(EventLinkConfig!O:O,EventConfig!A186) -> 13
A187: 9120 | B187: =IF(Y187>0,_xlfn.TEXTJOIN(";",1,ROW(INDIRECT(CONCATENATE("",A187*100+1,":",A187*100+Y187,""))),102),"") -> 912001;912002;912003;912004;912005;912006;912007;912008;102 | C187: 6 | D187: 2 | E187: 1 | F187: 0 | G187: 3 | K187: 30 | L187: 1 | M187: 1 | N187: 3 | O187: =CONCATENATE(VLOOKUP(M187,[3]PlacesConfig!$A:$C,3,FALSE),IF(N187="",""," - "&VLOOKUP(N187,[3]SmallPlacesConfig!$A:$G,7,FALSE))) -> 北海 - 浮岛 | Q187: =IF(R187="","",VLOOKUP(R187,条件类型查询!A:B,2,FALSE)) -> 前置事件 | R187: 10 | S187: =A186 -> 9119 | T187: 3 | U187: 4253 | W187: 风灵鸟的宝藏 | X187: 馨儿 | Y187: =COUNTIF(EventLinkConfig!O:O,EventConfig!A187) -> 8
A188: 9121 | B188: =IF(Y188>0,_xlfn.TEXTJOIN(";",1,ROW(INDIRECT(CONCATENATE("",A188*100+1,":",A188*100+Y188,""))),102),"") -> 912101;912102;912103;912104;912105;912106;102 | C188: 6 | D188: 2 | E188: 1 | F188: 0 | G188: 3 | K188: 30 | L188: 1 | M188: 1 | N188: 3 | O188: =CONCATENATE(VLOOKUP(M188,[3]PlacesConfig!$A:$C,3,FALSE),IF(N188="",""," - "&VLOOKUP(N188,[3]SmallPlacesConfig!$A:$G,7,FALSE))) -> 北海 - 浮岛 | Q188: =IF(R188="","",VLOOKUP(R188,条件类型查询!A:B,2,FALSE)) -> 前置事件 | R188: 10 | S188: =A187 -> 9120 | T188: 3 | U188: 4254 | W188: 浮岛灵泉的净化 | X188: 馨儿 | Y188: =COUNTIF(EventLinkConfig!O:O,EventConfig!A188) -> 6
A189: 9122 | B189: =IF(Y189>0,_xlfn.TEXTJOIN(";",1,ROW(INDIRECT(CONCATENATE("",A189*100+1,":",A189*100+Y189,""))),102),"") -> 912201;912202;912203;912204;912205;912206;912207;912208;912209;912210;912211;912212;912213;912214;912215;102 | C189: 6 | D189: 2 | E189: 1 | F189: 0 | G189: 3 | K189: 30 | L189: 1 | M189: 1 | N189: 3 | O189: =CONCATENATE(VLOOKUP(M189,[3]PlacesConfig!$A:$C,3,FALSE),IF(N189="",""," - "&VLOOKUP(N189,[3]SmallPlacesConfig!$A:$G,7,FALSE))) -> 北海 - 浮岛 | Q189: =IF(R189="","",VLOOKUP(R189,条件类型查询!A:B,2,FALSE)) -> 前置事件 | R189: 10 | S189: =A188 -> 9121 | T189: 3 | U189: 4255 | W189: 浮岛盗修的阴谋 | X189: 馨儿 | Y189: =COUNTIF(EventLinkConfig!O:O,EventConfig!A189) -> 15
A190: 9123 | B190: =IF(Y190>0,_xlfn.TEXTJOIN(";",1,ROW(INDIRECT(CONCATENATE("",A190*100+1,":",A190*100+Y190,""))),102),"") -> 912301;912302;912303;912304;912305;912306;912307;912308;912309;912310;912311;912312;912313;912314;912315;912316;912317;912318;912319;912320;912321;912322;912323;912324;912325;912326;912327;912328;912329;102 | C190: 6 | D190: 2 | E190: 1 | F190: 0 | G190: 3 | K190: 30 | L190: 1 | M190: 1 | N190: 4 | O190: =CONCATENATE(VLOOKUP(M190,[3]PlacesConfig!$A:$C,3,FALSE),IF(N190="",""," - "&VLOOKUP(N190,[3]SmallPlacesConfig!$A:$G,7,FALSE))) -> 北海 - 深处 | Q190: =IF(R190="","",VLOOKUP(R190,条件类型查询!A:B,2,FALSE)) ->  | T190: 3 | U190: 4256 | W190: 初遇柳轻烟 | X190: 柳轻烟 | Y190: =COUNTIF(EventLinkConfig!O:O,EventConfig!A190) -> 29
A191: 9124 | B191: =IF(Y191>0,_xlfn.TEXTJOIN(";",1,ROW(INDIRECT(CONCATENATE("",A191*100+1,":",A191*100+Y191,""))),102),"") -> 912401;912402;912403;102 | C191: 6 | D191: 2 | E191: 1 | F191: 0 | G191: 3 | K191: 30 | L191: 1 | M191: 1 | N191: 4 | O191: =CONCATENATE(VLOOKUP(M191,[3]PlacesConfig!$A:$C,3,FALSE),IF(N191="",""," - "&VLOOKUP(N191,[3]SmallPlacesConfig!$A:$G,7,FALSE))) -> 北海 - 深处 | Q191: =IF(R191="","",VLOOKUP(R191,条件类型查询!A:B,2,FALSE)) -> 前置事件 | R191: 10 | S191: =A190 -> 9123 | T191: 3 | U191: 4257 | W191: 找到血海宗的人 | X191: 柳轻烟 | Y191: =COUNTIF(EventLinkConfig!O:O,EventConfig!A191) -> 3
A192: 9125 | B192: =IF(Y192>0,_xlfn.TEXTJOIN(";",1,ROW(INDIRECT(CONCATENATE("",A192*100+1,":",A192*100+Y192,""))),102),"") -> 912501;912502;912503;102 | C192: 6 | D192: 2 | E192: 1 | F192: 0 | G192: 3 | I192: 20014 | J192: 1 | K192: 30 | L192: 1 | M192: 1 | N192: 4 | O192: =CONCATENATE(VLOOKUP(M192,[3]PlacesConfig!$A:$C,3,FALSE),IF(N192="",""," - "&VLOOKUP(N192,[3]SmallPlacesConfig!$A:$G,7,FALSE))) -> 北海 - 深处 | Q192: =IF(R192="","",VLOOKUP(R192,条件类型查询!A:B,2,FALSE)) -> 前置事件 | R192: 10 | S192: =A191 -> 9124 | T192: 3 | U192: 4258 | W192: 找到血海宗的人2 | X192: 柳轻烟 | Y192: =COUNTIF(EventLinkConfig!O:O,EventConfig!A192) -> 3 | AT192: 20014 | AU192: 1
A193: 9126 | B193: =IF(Y193>0,_xlfn.TEXTJOIN(";",1,ROW(INDIRECT(CONCATENATE("",A193*100+1,":",A193*100+Y193,""))),102),"") -> 912601;912602;912603;912604;102 | C193: 6 | D193: 2 | E193: 1 | F193: 0 | G193: 3 | K193: 30 | L193: 1 | M193: 1 | N193: 4 | O193: =CONCATENATE(VLOOKUP(M193,[3]PlacesConfig!$A:$C,3,FALSE),IF(N193="",""," - "&VLOOKUP(N193,[3]SmallPlacesConfig!$A:$G,7,FALSE))) -> 北海 - 深处 | Q193: =IF(R193="","",VLOOKUP(R193,条件类型查询!A:B,2,FALSE)) -> 前置事件 | R193: 10 | S193: =A192 -> 9125 | T193: 3 | U193: 4259 | W193: 回到柳轻烟交任务 | X193: 柳轻烟 | Y193: =COUNTIF(EventLinkConfig!O:O,EventConfig!A193) -> 4
A194: 9127 | B194: =IF(Y194>0,_xlfn.TEXTJOIN(";",1,ROW(INDIRECT(CONCATENATE("",A194*100+1,":",A194*100+Y194,""))),102),"") -> 912701;912702;912703;912704;912705;912706;912707;912708;912709;102 | C194: 6 | D194: 2 | E194: 1 | F194: 0 | G194: 3 | K194: 30 | L194: 1 | M194: 2 | N194: 5 | O194: =CONCATENATE(VLOOKUP(M194,[3]PlacesConfig!$A:$C,3,FALSE),IF(N194="",""," - "&VLOOKUP(N194,[3]SmallPlacesConfig!$A:$G,7,FALSE))) -> 尧之都 - 主城 | Q194: =IF(R194="","",VLOOKUP(R194,条件类型查询!A:B,2,FALSE)) ->  | T194: 3 | U194: 4260 | W194: 灵花 | X194: 馨儿 | Y194: =COUNTIF(EventLinkConfig!O:O,EventConfig!A194) -> 9
A195: 9128 | B195: =IF(Y195>0,_xlfn.TEXTJOIN(";",1,ROW(INDIRECT(CONCATENATE("",A195*100+1,":",A195*100+Y195,""))),102),"") -> 912801;912802;912803;912804;912805;912806;912807;102 | C195: 6 | D195: 2 | E195: 1 | F195: 0 | G195: 3 | K195: 30 | L195: 1 | M195: 2 | N195: 5 | O195: =CONCATENATE(VLOOKUP(M195,[3]PlacesConfig!$A:$C,3,FALSE),IF(N195="",""," - "&VLOOKUP(N195,[3]SmallPlacesConfig!$A:$G,7,FALSE))) -> 尧之都 - 主城 | Q195: =IF(R195="","",VLOOKUP(R195,条件类型查询!A:B,2,FALSE)) -> 前置事件 | R195: 10 | S195: =A194 -> 9127 | T195: 3 | U195: =U194+1 -> 4261 | W195: 散修劫掠 | X195: 馨儿 | Y195: =COUNTIF(EventLinkConfig!O:O,EventConfig!A195) -> 7
A196: 9129 | B196: =IF(Y196>0,_xlfn.TEXTJOIN(";",1,ROW(INDIRECT(CONCATENATE("",A196*100+1,":",A196*100+Y196,""))),102),"") -> 912901;912902;912903;912904;912905;912906;912907;912908;912909;912910;912911;912912;912913;912914;912915;102 | C196: 6 | D196: 2 | E196: 1 | F196: 0 | G196: 3 | K196: 30 | L196: 1 | M196: 2 | N196: 5 | O196: =CONCATENATE(VLOOKUP(M196,[3]PlacesConfig!$A:$C,3,FALSE),IF(N196="",""," - "&VLOOKUP(N196,[3]SmallPlacesConfig!$A:$G,7,FALSE))) -> 尧之都 - 主城 | Q196: =IF(R196="","",VLOOKUP(R196,条件类型查询!A:B,2,FALSE)) -> 前置事件 | R196: 10 | S196: =A195 -> 9128 | T196: 3 | U196: 4262 | W196: 散修劫掠2 | X196: 馨儿 | Y196: =COUNTIF(EventLinkConfig!O:O,EventConfig!A196) -> 15
A197: 9130 | B197: =IF(Y197>0,_xlfn.TEXTJOIN(";",1,ROW(INDIRECT(CONCATENATE("",A197*100+1,":",A197*100+Y197,""))),102),"") -> 913001;913002;913003;913004;913005;913006;913007;102 | C197: 6 | D197: 2 | E197: 1 | F197: 0 | G197: 3 | K197: 30 | L197: 1 | M197: 2 | N197: 5 | O197: =CONCATENATE(VLOOKUP(M197,[3]PlacesConfig!$A:$C,3,FALSE),IF(N197="",""," - "&VLOOKUP(N197,[3]SmallPlacesConfig!$A:$G,7,FALSE))) -> 尧之都 - 主城 | Q197: =IF(R197="","",VLOOKUP(R197,条件类型查询!A:B,2,FALSE)) ->  | T197: 3 | U197: 4263 | W197: 灵宝 | X197: 楚云缪 | Y197: =COUNTIF(EventLinkConfig!O:O,EventConfig!A197) -> 7
A198: 9131 | B198: =IF(Y198>0,_xlfn.TEXTJOIN(";",1,ROW(INDIRECT(CONCATENATE("",A198*100+1,":",A198*100+Y198,""))),102),"") -> 913101;913102;913103;913104;102 | C198: 6 | D198: 2 | E198: 1 | F198: 0 | G198: 3 | K198: 30 | L198: 1 | M198: 2 | N198: 5 | O198: =CONCATENATE(VLOOKUP(M198,[3]PlacesConfig!$A:$C,3,FALSE),IF(N198="",""," - "&VLOOKUP(N198,[3]SmallPlacesConfig!$A:$G,7,FALSE))) -> 尧之都 - 主城 | Q198: =IF(R198="","",VLOOKUP(R198,条件类型查询!A:B,2,FALSE)) -> 前置事件 | R198: 10 | S198: =A197 -> 9130 | T198: 3 | U198: 4264 | W198: 追逐抢夺之人 | X198: 楚云缪 | Y198: =COUNTIF(EventLinkConfig!O:O,EventConfig!A198) -> 4
A199: 9132 | B199: =IF(Y199>0,_xlfn.TEXTJOIN(";",1,ROW(INDIRECT(CONCATENATE("",A199*100+1,":",A199*100+Y199,""))),102),"") -> 913201;913202;913203;913204;913205;913206;913207;913208;913209;913210;913211;913212;913213;102 | C199: 6 | D199: 2 | E199: 1 | F199: 0 | G199: 3 | K199: 30 | L199: 1 | M199: 2 | N199: 5 | O199: =CONCATENATE(VLOOKUP(M199,[3]PlacesConfig!$A:$C,3,FALSE),IF(N199="",""," - "&VLOOKUP(N199,[3]SmallPlacesConfig!$A:$G,7,FALSE))) -> 尧之都 - 主城 | Q199: =IF(R199="","",VLOOKUP(R199,条件类型查询!A:B,2,FALSE)) -> 前置事件 | R199: 10 | S199: =A198 -> 9131 | T199: 3 | U199: 4265 | W199: 青狼散人 | X199: 楚云缪 | Y199: =COUNTIF(EventLinkConfig!O:O,EventConfig!A199) -> 13
A200: 9133 | B200: =IF(Y200>0,_xlfn.TEXTJOIN(";",1,ROW(INDIRECT(CONCATENATE("",A200*100+1,":",A200*100+Y200,""))),102),"") -> 913301;913302;913303;913304;913305;913306;913307;913308;913309;102 | C200: 6 | D200: 2 | E200: 1 | F200: 0 | G200: 3 | K200: 30 | L200: 1 | M200: 2 | N200: 6 | O200: =CONCATENATE(VLOOKUP(M200,[3]PlacesConfig!$A:$C,3,FALSE),IF(N200="",""," - "&VLOOKUP(N200,[3]SmallPlacesConfig!$A:$G,7,FALSE))) -> 尧之都 - 山林 | Q200: =IF(R200="","",VLOOKUP(R200,条件类型查询!A:B,2,FALSE)) ->  | T200: 3 | U200: 4266 | W200: 血海宗的掠夺 | X200: 血海宗的掠夺 | Y200: =COUNTIF(EventLinkConfig!O:O,EventConfig!A200) -> 9
A201: 9134 | B201: =IF(Y201>0,_xlfn.TEXTJOIN(";",1,ROW(INDIRECT(CONCATENATE("",A201*100+1,":",A201*100+Y201,""))),102),"") -> 913401;913402;913403;913404;913405;913406;913407;913408;913409;913410;913411;913412;913413;913414;913415;913416;913417;102 | C201: 6 | D201: 2 | E201: 1 | F201: 0 | G201: 3 | K201: 30 | L201: 1 | M201: 2 | N201: 6 | O201: =CONCATENATE(VLOOKUP(M201,[3]PlacesConfig!$A:$C,3,FALSE),IF(N201="",""," - "&VLOOKUP(N201,[3]SmallPlacesConfig!$A:$G,7,FALSE))) -> 尧之都 - 山林 | Q201: =IF(R201="","",VLOOKUP(R201,条件类型查询!A:B,2,FALSE)) -> 前置事件 | R201: 10 | S201: =A200 -> 9133 | T201: 3 | U201: 4267 | W201: 逃离追杀 | X201: 林风 | Y201: =COUNTIF(EventLinkConfig!O:O,EventConfig!A201) -> 17
A202: 9135 | B202: =IF(Y202>0,_xlfn.TEXTJOIN(";",1,ROW(INDIRECT(CONCATENATE("",A202*100+1,":",A202*100+Y202,""))),102),"") -> 913501;913502;913503;913504;102 | C202: 6 | D202: 2 | E202: 1 | F202: 0 | G202: 3 | K202: 30 | L202: 1 | M202: 2 | N202: 6 | O202: =CONCATENATE(VLOOKUP(M202,[3]PlacesConfig!$A:$C,3,FALSE),IF(N202="",""," - "&VLOOKUP(N202,[3]SmallPlacesConfig!$A:$G,7,FALSE))) -> 尧之都 - 山林 | Q202: =IF(R202="","",VLOOKUP(R202,条件类型查询!A:B,2,FALSE)) -> 前置事件 | R202: 10 | S202: =A201 -> 9134 | T202: 3 | U202: 4268 | W202: 血海宗弟子 | X202: 林风 | Y202: =COUNTIF(EventLinkConfig!O:O,EventConfig!A202) -> 4
A203: 9136 | B203: =IF(Y203>0,_xlfn.TEXTJOIN(";",1,ROW(INDIRECT(CONCATENATE("",A203*100+1,":",A203*100+Y203,""))),102),"") -> 913601;913602;913603;913604;913605;102 | C203: 6 | D203: 2 | E203: 1 | F203: 0 | G203: 3 | K203: 30 | L203: 1 | M203: 2 | N203: 6 | O203: =CONCATENATE(VLOOKUP(M203,[3]PlacesConfig!$A:$C,3,FALSE),IF(N203="",""," - "&VLOOKUP(N203,[3]SmallPlacesConfig!$A:$G,7,FALSE))) -> 尧之都 - 山林 | Q203: =IF(R203="","",VLOOKUP(R203,条件类型查询!A:B,2,FALSE)) -> 前置事件 | R203: 10 | S203: =A202 -> 9135 | T203: 3 | U203: 4269 | W203: 柳清清 | X203: 林风 | Y203: =COUNTIF(EventLinkConfig!O:O,EventConfig!A203) -> 5
A204: 9137 | B204: =IF(Y204>0,_xlfn.TEXTJOIN(";",1,ROW(INDIRECT(CONCATENATE("",A204*100+1,":",A204*100+Y204,""))),102),"") -> 913701;913702;913703;913704;913705;913706;913707;102 | C204: 6 | D204: 2 | E204: 1 | F204: 0 | G204: 3 | K204: 30 | L204: 1 | M204: 2 | N204: 6 | O204: =CONCATENATE(VLOOKUP(M204,[3]PlacesConfig!$A:$C,3,FALSE),IF(N204="",""," - "&VLOOKUP(N204,[3]SmallPlacesConfig!$A:$G,7,FALSE))) -> 尧之都 - 山林 | Q204: =IF(R204="","",VLOOKUP(R204,条件类型查询!A:B,2,FALSE)) -> 前置事件 | R204: 10 | S204: =A203 -> 9136 | T204: 3 | U204: 4270 | W204: 玄冥晶再被盗 | X204: 林风 | Y204: =COUNTIF(EventLinkConfig!O:O,EventConfig!A204) -> 7
A205: 9138 | B205: =IF(Y205>0,_xlfn.TEXTJOIN(";",1,ROW(INDIRECT(CONCATENATE("",A205*100+1,":",A205*100+Y205,""))),102),"") -> 913801;913802;913803;913804;913805;913806;913807;913808;913809;102 | C205: 6 | D205: 2 | E205: 1 | F205: 0 | G205: 3 | K205: 30 | L205: 1 | M205: 2 | N205: 6 | O205: =CONCATENATE(VLOOKUP(M205,[3]PlacesConfig!$A:$C,3,FALSE),IF(N205="",""," - "&VLOOKUP(N205,[3]SmallPlacesConfig!$A:$G,7,FALSE))) -> 尧之都 - 山林 | Q205: =IF(R205="","",VLOOKUP(R205,条件类型查询!A:B,2,FALSE)) -> 前置事件 | R205: 10 | S205: =A207 -> 9140 | T205: 3 | U205: 4271 | W205: 带回玄冥晶 | X205: 林风 | Y205: =COUNTIF(EventLinkConfig!O:O,EventConfig!A205) -> 9
A206: 9139 | B206: =IF(Y206>0,_xlfn.TEXTJOIN(";",1,ROW(INDIRECT(CONCATENATE("",A206*100+1,":",A206*100+Y206,""))),102),"") -> 913901;913902;913903;913904;913905;913906;913907;913908;913909;102 | C206: 6 | D206: 2 | E206: 1 | F206: 0 | G206: 3 | K206: 30 | L206: 1 | M206: 2 | N206: 7 | O206: =CONCATENATE(VLOOKUP(M206,[3]PlacesConfig!$A:$C,3,FALSE),IF(N206="",""," - "&VLOOKUP(N206,[3]SmallPlacesConfig!$A:$G,7,FALSE))) -> 尧之都 - 郊外 | Q206: =IF(R206="","",VLOOKUP(R206,条件类型查询!A:B,2,FALSE)) ->  | T206: 3 | U206: 4272 | W206: 夺晶之战 | X206: 林风后续 | Y206: =COUNTIF(EventLinkConfig!O:O,EventConfig!A206) -> 9
A207: 9140 | B207: =IF(Y207>0,_xlfn.TEXTJOIN(";",1,ROW(INDIRECT(CONCATENATE("",A207*100+1,":",A207*100+Y207,""))),102),"") -> 914001;914002;914003;102 | C207: 6 | D207: 2 | E207: 1 | F207: 0 | G207: 3 | K207: 30 | L207: 1 | M207: 2 | N207: 7 | O207: =CONCATENATE(VLOOKUP(M207,[3]PlacesConfig!$A:$C,3,FALSE),IF(N207="",""," - "&VLOOKUP(N207,[3]SmallPlacesConfig!$A:$G,7,FALSE))) -> 尧之都 - 郊外 | Q207: =IF(R207="","",VLOOKUP(R207,条件类型查询!A:B,2,FALSE)) -> 前置事件 | R207: 10 | S207: =A206 -> 9139 | T207: 3 | U207: 4273 | W207: 夺晶之战2-援军 | X207: 林风后续 | Y207: =COUNTIF(EventLinkConfig!O:O,EventConfig!A207) -> 3
A208: 9141 | B208: =IF(Y208>0,_xlfn.TEXTJOIN(";",1,ROW(INDIRECT(CONCATENATE("",A208*100+1,":",A208*100+Y208,""))),102),"") -> 914101;914102;914103;914104;914105;914106;914107;914108;102 | C208: 6 | D208: 2 | E208: 1 | F208: 0 | G208: 3 | K208: 30 | L208: 1 | M208: 3 | N208: 8 | O208: =CONCATENATE(VLOOKUP(M208,[3]PlacesConfig!$A:$C,3,FALSE),IF(N208="",""," - "&VLOOKUP(N208,[3]SmallPlacesConfig!$A:$G,7,FALSE))) -> 藐姑射山 - 山脚 | Q208: =IF(R208="","",VLOOKUP(R208,条件类型查询!A:B,2,FALSE)) ->  | T208: 3 | U208: 4274 | W208: 灵泉 | X208: 玄水真人 | Y208: =COUNTIF(EventLinkConfig!O:O,EventConfig!A208) -> 8
A209: 9142 | B209: =IF(Y209>0,_xlfn.TEXTJOIN(";",1,ROW(INDIRECT(CONCATENATE("",A209*100+1,":",A209*100+Y209,""))),102),"") -> 914201;914202;914203;914204;914205;914206;102 | C209: 6 | D209: 2 | E209: 1 | F209: 0 | G209: 3 | K209: 30 | L209: 1 | M209: 3 | N209: 8 | O209: =CONCATENATE(VLOOKUP(M209,[3]PlacesConfig!$A:$C,3,FALSE),IF(N209="",""," - "&VLOOKUP(N209,[3]SmallPlacesConfig!$A:$G,7,FALSE))) -> 藐姑射山 - 山脚 | Q209: =IF(R209="","",VLOOKUP(R209,条件类型查询!A:B,2,FALSE)) -> 前置事件 | R209: 10 | S209: 30023 | T209: 3 | U209: 4277 | W209: 灵泉异动平息 | X209: 玄水真人 | Y209: =COUNTIF(EventLinkConfig!O:O,EventConfig!A209) -> 6
A210: 9143 | B210: =IF(Y210>0,_xlfn.TEXTJOIN(";",1,ROW(INDIRECT(CONCATENATE("",A210*100+1,":",A210*100+Y210,""))),102),"") -> 914301;914302;914303;914304;914305;914306;914307;914308;914309;914310;914311;914312;102 | C210: 6 | D210: 2 | E210: 1 | F210: 0 | G210: 3 | K210: 30 | L210: 1 | M210: 3 | N210: 9 | O210: =CONCATENATE(VLOOKUP(M210,[3]PlacesConfig!$A:$C,3,FALSE),IF(N210="",""," - "&VLOOKUP(N210,[3]SmallPlacesConfig!$A:$G,7,FALSE))) -> 藐姑射山 - 山径 | Q210: =IF(R210="","",VLOOKUP(R210,条件类型查询!A:B,2,FALSE)) ->  | T210: 3 | U210: =U209+1 -> 4278 | W210: 在遇馨儿 | X210: 馨儿 | Y210: =COUNTIF(EventLinkConfig!O:O,EventConfig!A210) -> 12
A211: 9144 | B211: =IF(Y211>0,_xlfn.TEXTJOIN(";",1,ROW(INDIRECT(CONCATENATE("",A211*100+1,":",A211*100+Y211,""))),102),"") -> 914401;914402;914403;914404;102 | C211: 6 | D211: 2 | E211: 1 | F211: 0 | G211: 3 | K211: 30 | L211: 1 | M211: 3 | N211: 9 | O211: =CONCATENATE(VLOOKUP(M211,[3]PlacesConfig!$A:$C,3,FALSE),IF(N211="",""," - "&VLOOKUP(N211,[3]SmallPlacesConfig!$A:$G,7,FALSE))) -> 藐姑射山 - 山径 | Q211: =IF(R211="","",VLOOKUP(R211,条件类型查询!A:B,2,FALSE)) -> 前置事件 | R211: 10 | S211: 30024 | T211: 3 | U211: 4279 | W211: 清理山间的妖物 | X211: 馨儿 | Y211: =COUNTIF(EventLinkConfig!O:O,EventConfig!A211) -> 4
A212: 9145 | B212: =IF(Y212>0,_xlfn.TEXTJOIN(";",1,ROW(INDIRECT(CONCATENATE("",A212*100+1,":",A212*100+Y212,""))),102),"") -> 914501;914502;914503;914504;914505;914506;914507;914508;914509;914510;914511;914512;914513;102 | C212: 6 | D212: 2 | E212: 1 | F212: 0 | G212: 3 | K212: 30 | L212: 1 | M212: 3 | N212: 10 | O212: =CONCATENATE(VLOOKUP(M212,[3]PlacesConfig!$A:$C,3,FALSE),IF(N212="",""," - "&VLOOKUP(N212,[3]SmallPlacesConfig!$A:$G,7,FALSE))) -> 藐姑射山 - 山顶 | Q212: =IF(R212="","",VLOOKUP(R212,条件类型查询!A:B,2,FALSE)) -> 前置事件 | R212: 10 | S212: =A211 -> 9144 | T212: 3 | U212: 4280 | W212: 仙山异样的秘密 | X212: 仙山异样 | Y212: =COUNTIF(EventLinkConfig!O:O,EventConfig!A212) -> 13
... 17 more rows

Sheet EventLinkConfig
A1: ID | B1: conciseEventMessage | D1: EventConditionMessage | G1: PreShow | H1: PreShowPar | J1: NPCID | L1: LanID | N1: DialogueType | O1: EventID | Q1: ConditionId | U1: optionType | V1: optionPara1 | W1: optionPara2 | AG1: PrizeIDs | AH1: PrizeNums | AI1: ResultType | AJ1: ResultOptions
A2: int | B2: int | D2: int | G2: int | H2: int | J2: int | L2: int[] | N2: int | O2: int | Q2: int[] | U2: int | V2: int[] | W2: int[] | AG2: int[] | AH2: int[] | AI2: int | AJ2: int[]
C3: 5001 | AL3: 5000
A4: ID | B4: 任务列表中的简洁描述 | C4: 任务列表中的简洁描述 | D4: 无任务目标时的补充文本 | E4: 无任务目标时的补充文本 | G4: 前置表现 1飞行 | H4: 前置表现参数 | J4: 对话NPCID 空白=不显示 100=玩家 | K4: NPC | L4: 对话 | M4: 对话1 | N4: 对话框类型 | O4: 属于哪个事件 | P4: 步骤 | Q4: 条件判断类型 | R4: 任务目标1 | S4: 任务目标2 | T4: 条件判断内容 | U4: 步骤类型 1=提供选项 2=进入战斗 5=自动退出 3=获得奖励 4=扣除道具 | V4: 事件常量1 1=步骤IDs 2=战斗ID | W4: 事件常量2 1=事件文本 | X4: 选择1 | Y4: 选择1 步骤：填选项文本1 战斗：填战斗ID | Z4: 选择1 步骤1：跳转到哪一步 不填默认跳转到下一步 | AA4: 选择2 | AB4: 选择2 步骤：填选项文本2 | AC4: 选择1 步骤2：跳转到哪一步 不填默认跳转到下一步 | AD4: 选择2 | AE4: 选择3 步骤：填选项文本3 | AF4: 选择1 步骤3：跳转到哪一步 不填默认跳转到下一步 | AG4: 事件结局奖励 | AH4: 事件结局奖励数量 | AI4: 事件结束类型 1：跳转步骤 2：根据战斗结果跳转 3.触发新事件 | AJ4: 结局后提供选项 1.EventLinkId 2.胜利id;失败id 3.EventConfigId | AK4: 1.步骤ID 2.胜利ID 3.事件ID 不填：默认下一个步骤ID | AL4: 语言表最大值
A5: 100 | B5: =IF(C5="","",IF(C5=C4,B4,MAX(AL4,AL3)+1)) ->  | D5: =IF(E5="","",IF(E5=E4,D4,MAX(AL4,AL3,B5)+1)) ->  | L5: =IF(M5="","",MAX(AL4,AL3,B5,D5)+1) -> 5001 | M5: 你被怪物击败，神识也随之消散了。 | P5: =IF(O5="","",IF(O5=O4,P4+1,1)) ->  | Q5: =_xlfn.TEXTJOIN(";",1,R5:S5) ->  | T5: =IF(R5="","","-"&VLOOKUP(R5,EventConditionConfig!A:C,3,FALSE)&IF(S5="","",CHAR(10)&"-"&VLOOKUP(S5,EventConditionConfig!A:C,3,FALSE))) ->  | X5: =IF(OR(ISNUMBER(Y5),Y5=""),"",MAX(AL4,AL3,B5,D5,L5)+1) ->  | AA5: =IF(OR(ISNUMBER(AB5),AB5=""),"",X5+1) ->  | AD5: =IF(OR(ISNUMBER(AE5),AE5=""),"",AA5+1) ->  | AL5: =IF(A5="","",MAX(B5,D5,L5,X5,AA5,AL4,AL3,AD5)) -> 5001
A6: 101 | B6: =IF(C6="","",IF(C6=C5,B5,MAX(AL5,AL4)+1)) ->  | D6: =IF(E6="","",IF(E6=E5,D5,MAX(AL5,AL4,B6)+1)) ->  | L6: =IF(M6="","",MAX(AL5,AL4,B6,D6)+1) -> 5002 | M6: 你败下阵来，感到头晕目眩，试图努力回忆起刚才发生的事情。 | P6: =IF(O6="","",IF(O6=O5,P5+1,1)) ->  | Q6: =_xlfn.TEXTJOIN(";",1,R6:S6) ->  | T6: =IF(R6="","","-"&VLOOKUP(R6,EventConditionConfig!A:C,3,FALSE)&IF(S6="","",CHAR(10)&"-"&VLOOKUP(S6,EventConditionConfig!A:C,3,FALSE))) ->  | X6: =IF(OR(ISNUMBER(Y6),Y6=""),"",MAX(AL5,AL4,B6,D6,L6)+1) ->  | AA6: =IF(OR(ISNUMBER(AB6),AB6=""),"",X6+1) ->  | AD6: =IF(OR(ISNUMBER(AE6),AE6=""),"",AA6+1) ->  | AL6: =IF(A6="","",MAX(B6,D6,L6,X6,AA6,AL5,AL4,AD6)) -> 5002
A7: 102 | L7: 5003 | M7: 战斗胜利，你获得了丰厚的战利品。 | AL7: 5003
A8: 999901 | B8: =IF(C8="","",IF(C8=C7,B7,MAX(AL7,AL6)+1)) ->  | D8: =IF(E8="","",IF(E8=E7,D7,MAX(AL7,AL6,B8)+1)) ->  | L8: =IF(M8="","",MAX(AL7,AL6,B8,D8)+1) -> 5004 | M8: 失败了怎么多次，这次一定要突破心魔。 | N8: 2 | O8: 9999 | P8: =IF(O8="","",IF(O8=O7,P7+1,1)) -> 1 | X8: =IF(OR(ISNUMBER(Y8),Y8=""),"",MAX(AL7,AL6,B8,D8,L8)+1) ->  | AA8: =IF(OR(ISNUMBER(AB8),AB8=""),"",X8+1) ->  | AD8: =IF(OR(ISNUMBER(AE8),AE8=""),"",AA8+1) ->  | AL8: 5004
A9: =O9*100+P9 -> 10101 | B9: 5005 | C9: 击败妖邪 | K9: =IF(J9="","",VLOOKUP(J9,EventNPC!A:E,5,FALSE)) ->  | L9: 5006 | M9: 你发现一只落单的妖邪，应战！ | O9: 101 | P9: 1 | Q9: =_xlfn.TEXTJOIN(";",1,R9:S9) ->  | T9: =IF(R9="","","-"&VLOOKUP(R9,EventConditionConfig!A:C,3,FALSE)&IF(S9="","",CHAR(10)&"-"&VLOOKUP(S9,EventConditionConfig!A:C,3,FALSE))) ->  | U9: =IF(Y9="","",IF(ISTEXT(Y9),1,2)) -> 2 | V9: =IF(U9=1,_xlfn.TEXTJOIN(";",1,IF(Z9="",A9+1,Z9),IF(AND(AA9<>"",AC9=""),A9+1,AC9),IF(AND(AD9<>"",AF9=""),A9+1,AF9)),IF(U9=2,Y9,"")) -> 5001 | W9: =_xlfn.TEXTJOIN(";",1,X9,AA9,AD9) ->  | X9: =IF(OR(ISNUMBER(Y9),Y9=""),"",MAX(AL8,AL6,B9,D9,L9)+1) ->  | Y9: 5001 | AI9: =IF(A9="","",IF(ISNUMBER(Y9),2,IF(A10="",IF(OR(AK9>0,VLOOKUP(O9,EventConfig!A:C,3,FALSE)=4),3,""),1))) -> 2 | AJ9: =IF(AI9="","",CHOOSE(AI9,IF(AK9="",A9+1,AK9),CONCATENATE(IF(AK9="",A9+1,AK9),";101"),IF(AK9="",O9+1,AK9))) -> 102;101 | AK9: 102 | AL9: 5006
B10: =IF(C10="","",IF(C10=C9,B9,MAX(AL9,AL8)+1)) ->  | L10: =IF(M10="","",MAX(AL9,AL8,B10,D10)+1) ->  | P10: =IF(O10="","",IF(O10=O9,P9+1,1)) -> 
A11: =O11*100+P11 -> 10201 | B11: 5007 | C11: 击败妖邪 | D11: =IF(E11="","",IF(E11=E10,D10,MAX(AL10,AL9,B11)+1)) ->  | K11: =IF(J11="","",VLOOKUP(J11,EventNPC!A:E,5,FALSE)) ->  | L11: 5008 | M11: 你发现一只落单的妖邪，应战！ | O11: 102 | P11: 1 | Q11: =_xlfn.TEXTJOIN(";",1,R11:S11) ->  | T11: =IF(R11="","","-"&VLOOKUP(R11,EventConditionConfig!A:C,3,FALSE)&IF(S11="","",CHAR(10)&"-"&VLOOKUP(S11,EventConditionConfig!A:C,3,FALSE))) ->  | U11: =IF(Y11="","",IF(ISTEXT(Y11),1,2)) -> 2 | V11: =IF(U11=1,_xlfn.TEXTJOIN(";",1,IF(Z11="",A11+1,Z11),IF(AND(AA11<>"",AC11=""),A11+1,AC11),IF(AND(AD11<>"",AF11=""),A11+1,AF11)),IF(U11=2,Y11,"")) -> 5006 | W11: =_xlfn.TEXTJOIN(";",1,X11,AA11,AD11) ->  | X11: =IF(OR(ISNUMBER(Y11),Y11=""),"",MAX(AL10,AL8,B11,D11,L11)+1) ->  | Y11: 5006 | AA11: =IF(OR(ISNUMBER(AB11),AB11=""),"",X11+1) ->  | AD11: =IF(OR(ISNUMBER(AE11),AE11=""),"",AA11+1) ->  | AI11: =IF(A11="","",IF(ISNUMBER(Y11),2,IF(A12="",IF(OR(AK11>0,VLOOKUP(O11,EventConfig!A:C,3,FALSE)=4),3,""),1))) -> 2 | AJ11: =IF(AI11="","",CHOOSE(AI11,IF(AK11="",A11+1,AK11),CONCATENATE(IF(AK11="",A11+1,AK11),";101"),IF(AK11="",O11+1,AK11))) -> 10202;101 | AL11: 5008
A13: =O13*100+P13 -> 10301 | B13: 5009 | C13: 使用神识探得资源 | K13: =IF(J13="","",VLOOKUP(J13,EventNPC!A:E,5,FALSE)) ->  | L13: 5010 | M13: 此处仙气缭绕，你用神识一探果然探得丰富资源！ | O13: 103 | P13: 1 | Q13: =_xlfn.TEXTJOIN(";",1,R13:S13) ->  | T13: =IF(R13="","","-"&VLOOKUP(R13,EventConditionConfig!A:C,3,FALSE)&IF(S13="","",CHAR(10)&"-"&VLOOKUP(S13,EventConditionConfig!A:C,3,FALSE))) ->  | U13: =IF(Y13="","",IF(ISTEXT(Y13),1,2)) ->  | V13: =IF(U13=1,_xlfn.TEXTJOIN(";",1,IF(Z13="",A13+1,Z13),IF(AND(AA13<>"",AC13=""),A13+1,AC13),IF(AND(AD13<>"",AF13=""),A13+1,AF13)),IF(U13=2,Y13,"")) ->  | W13: =_xlfn.TEXTJOIN(";",1,X13,AA13,AD13) ->  | X13: =IF(OR(ISNUMBER(Y13),Y13=""),"",MAX(AL12,AL10,B13,D13,L13)+1) ->  | AA13: =IF(OR(ISNUMBER(AB13),AB13=""),"",X13+1) ->  | AD13: =IF(OR(ISNUMBER(AE13),AE13=""),"",AA13+1) ->  | AI13: =IF(A13="","",IF(ISNUMBER(Y13),2,IF(A14="",IF(OR(AK13>0,VLOOKUP(O13,EventConfig!A:C,3,FALSE)=4),3,""),1))) ->  | AJ13: =IF(AI13="","",CHOOSE(AI13,IF(AK13="",A13+1,AK13),CONCATENATE(IF(AK13="",A13+1,AK13),";101"),IF(AK13="",O13+1,AK13))) ->  | AL13: 5010
A15: =O15*100+P15 -> 10401 | B15: 5011 | C15: 使用神识探得资源 | K15: =IF(J15="","",VLOOKUP(J15,EventNPC!A:E,5,FALSE)) ->  | L15: 5012 | M15: 此处仙气缭绕，你用神识一探果然探得丰富资源！ | O15: 104 | P15: 1 | Q15: =_xlfn.TEXTJOIN(";",1,R15:S15) ->  | T15: =IF(R15="","","-"&VLOOKUP(R15,EventConditionConfig!A:C,3,FALSE)&IF(S15="","",CHAR(10)&"-"&VLOOKUP(S15,EventConditionConfig!A:C,3,FALSE))) ->  | U15: =IF(Y15="","",IF(ISTEXT(Y15),1,2)) ->  | V15: =IF(U15=1,_xlfn.TEXTJOIN(";",1,IF(Z15="",A15+1,Z15),IF(AND(AA15<>"",AC15=""),A15+1,AC15),IF(AND(AD15<>"",AF15=""),A15+1,AF15)),IF(U15=2,Y15,"")) ->  | W15: =_xlfn.TEXTJOIN(";",1,X15,AA15,AD15) ->  | X15: =IF(OR(ISNUMBER(Y15),Y15=""),"",MAX(AL14,AL12,B15,D15,L15)+1) ->  | AA15: =IF(OR(ISNUMBER(AB15),AB15=""),"",X15+1) ->  | AD15: =IF(OR(ISNUMBER(AE15),AE15=""),"",AA15+1) ->  | AI15: =IF(A15="","",IF(ISNUMBER(Y15),2,IF(A16="",IF(OR(AK15>0,VLOOKUP(O15,EventConfig!A:C,3,FALSE)=4),3,""),1))) ->  | AJ15: =IF(AI15="","",CHOOSE(AI15,IF(AK15="",A15+1,AK15),CONCATENATE(IF(AK15="",A15+1,AK15),";101"),IF(AK15="",O15+1,AK15))) ->  | AL15: 5012
A17: =O17*100+P17 -> 10501 | B17: 5013 | C17: 使用神识探得资源 | K17: =IF(J17="","",VLOOKUP(J17,EventNPC!A:E,5,FALSE)) ->  | L17: 5014 | M17: 此处仙气缭绕，你用神识一探果然探得丰富资源！ | O17: 105 | P17: 1 | Q17: =_xlfn.TEXTJOIN(";",1,R17:S17) ->  | T17: =IF(R17="","","-"&VLOOKUP(R17,EventConditionConfig!A:C,3,FALSE)&IF(S17="","",CHAR(10)&"-"&VLOOKUP(S17,EventConditionConfig!A:C,3,FALSE))) ->  | U17: =IF(Y17="","",IF(ISTEXT(Y17),1,2)) ->  | V17: =IF(U17=1,_xlfn.TEXTJOIN(";",1,IF(Z17="",A17+1,Z17),IF(AND(AA17<>"",AC17=""),A17+1,AC17),IF(AND(AD17<>"",AF17=""),A17+1,AF17)),IF(U17=2,Y17,"")) ->  | W17: =_xlfn.TEXTJOIN(";",1,X17,AA17,AD17) ->  | X17: =IF(OR(ISNUMBER(Y17),Y17=""),"",MAX(AL16,AL14,B17,D17,L17)+1) ->  | AA17: =IF(OR(ISNUMBER(AB17),AB17=""),"",X17+1) ->  | AD17: =IF(OR(ISNUMBER(AE17),AE17=""),"",AA17+1) ->  | AI17: =IF(A17="","",IF(ISNUMBER(Y17),2,IF(A18="",IF(OR(AK17>0,VLOOKUP(O17,EventConfig!A:C,3,FALSE)=4),3,""),1))) ->  | AJ17: =IF(AI17="","",CHOOSE(AI17,IF(AK17="",A17+1,AK17),CONCATENATE(IF(AK17="",A17+1,AK17),";101"),IF(AK17="",O17+1,AK17))) ->  | AL17: 5014
A19: =O19*100+P19 -> 10601 | B19: 5015 | C19: 使用神识探得资源 | K19: =IF(J19="","",VLOOKUP(J19,EventNPC!A:E,5,FALSE)) ->  | L19: 5016 | M19: 此处仙气缭绕，你用神识一探果然探得丰富资源！ | O19: 106 | P19: 1 | Q19: =_xlfn.TEXTJOIN(";",1,R19:S19) ->  | T19: =IF(R19="","","-"&VLOOKUP(R19,EventConditionConfig!A:C,3,FALSE)&IF(S19="","",CHAR(10)&"-"&VLOOKUP(S19,EventConditionConfig!A:C,3,FALSE))) ->  | U19: =IF(Y19="","",IF(ISTEXT(Y19),1,2)) ->  | V19: =IF(U19=1,_xlfn.TEXTJOIN(";",1,IF(Z19="",A19+1,Z19),IF(AND(AA19<>"",AC19=""),A19+1,AC19),IF(AND(AD19<>"",AF19=""),A19+1,AF19)),IF(U19=2,Y19,"")) ->  | W19: =_xlfn.TEXTJOIN(";",1,X19,AA19,AD19) ->  | X19: =IF(OR(ISNUMBER(Y19),Y19=""),"",MAX(AL18,AL16,B19,D19,L19)+1) ->  | AA19: =IF(OR(ISNUMBER(AB19),AB19=""),"",X19+1) ->  | AD19: =IF(OR(ISNUMBER(AE19),AE19=""),"",AA19+1) ->  | AI19: =IF(A19="","",IF(ISNUMBER(Y19),2,IF(A20="",IF(OR(AK19>0,VLOOKUP(O19,EventConfig!A:C,3,FALSE)=4),3,""),1))) ->  | AJ19: =IF(AI19="","",CHOOSE(AI19,IF(AK19="",A19+1,AK19),CONCATENATE(IF(AK19="",A19+1,AK19),";101"),IF(AK19="",O19+1,AK19))) ->  | AL19: 5016
A21: =O21*100+P21 -> 10701 | B21: 5017 | C21: 使用神识探得资源 | K21: =IF(J21="","",VLOOKUP(J21,EventNPC!A:E,5,FALSE)) ->  | L21: 5018 | M21: 此处仙气缭绕，你用神识一探果然探得丰富资源！ | O21: 107 | P21: 1 | Q21: =_xlfn.TEXTJOIN(";",1,R21:S21) ->  | T21: =IF(R21="","","-"&VLOOKUP(R21,EventConditionConfig!A:C,3,FALSE)&IF(S21="","",CHAR(10)&"-"&VLOOKUP(S21,EventConditionConfig!A:C,3,FALSE))) ->  | U21: =IF(Y21="","",IF(ISTEXT(Y21),1,2)) ->  | V21: =IF(U21=1,_xlfn.TEXTJOIN(";",1,IF(Z21="",A21+1,Z21),IF(AND(AA21<>"",AC21=""),A21+1,AC21),IF(AND(AD21<>"",AF21=""),A21+1,AF21)),IF(U21=2,Y21,"")) ->  | W21: =_xlfn.TEXTJOIN(";",1,X21,AA21,AD21) ->  | X21: =IF(OR(ISNUMBER(Y21),Y21=""),"",MAX(AL20,AL18,B21,D21,L21)+1) ->  | AA21: =IF(OR(ISNUMBER(AB21),AB21=""),"",X21+1) ->  | AD21: =IF(OR(ISNUMBER(AE21),AE21=""),"",AA21+1) ->  | AI21: =IF(A21="","",IF(ISNUMBER(Y21),2,IF(A22="",IF(OR(AK21>0,VLOOKUP(O21,EventConfig!A:C,3,FALSE)=4),3,""),1))) ->  | AJ21: =IF(AI21="","",CHOOSE(AI21,IF(AK21="",A21+1,AK21),CONCATENATE(IF(AK21="",A21+1,AK21),";101"),IF(AK21="",O21+1,AK21))) ->  | AL21: 5018
A23: =O23*100+P23 -> 10801 | B23: 5019 | C23: 使用神识探得资源 | K23: =IF(J23="","",VLOOKUP(J23,EventNPC!A:E,5,FALSE)) ->  | L23: 5020 | M23: 此处仙气缭绕，你用神识一探果然探得丰富资源！ | O23: 108 | P23: 1 | Q23: =_xlfn.TEXTJOIN(";",1,R23:S23) ->  | T23: =IF(R23="","","-"&VLOOKUP(R23,EventConditionConfig!A:C,3,FALSE)&IF(S23="","",CHAR(10)&"-"&VLOOKUP(S23,EventConditionConfig!A:C,3,FALSE))) ->  | U23: =IF(Y23="","",IF(ISTEXT(Y23),1,2)) ->  | V23: =IF(U23=1,_xlfn.TEXTJOIN(";",1,IF(Z23="",A23+1,Z23),IF(AND(AA23<>"",AC23=""),A23+1,AC23),IF(AND(AD23<>"",AF23=""),A23+1,AF23)),IF(U23=2,Y23,"")) ->  | W23: =_xlfn.TEXTJOIN(";",1,X23,AA23,AD23) ->  | X23: =IF(OR(ISNUMBER(Y23),Y23=""),"",MAX(AL22,AL20,B23,D23,L23)+1) ->  | AA23: =IF(OR(ISNUMBER(AB23),AB23=""),"",X23+1) ->  | AD23: =IF(OR(ISNUMBER(AE23),AE23=""),"",AA23+1) ->  | AI23: =IF(A23="","",IF(ISNUMBER(Y23),2,IF(A24="",IF(OR(AK23>0,VLOOKUP(O23,EventConfig!A:C,3,FALSE)=4),3,""),1))) ->  | AJ23: =IF(AI23="","",CHOOSE(AI23,IF(AK23="",A23+1,AK23),CONCATENATE(IF(AK23="",A23+1,AK23),";101"),IF(AK23="",O23+1,AK23))) ->  | AL23: 5020
A25: =O25*100+P25 -> 10901 | B25: 5021 | C25: 使用神识探得资源 | K25: =IF(J25="","",VLOOKUP(J25,EventNPC!A:E,5,FALSE)) ->  | L25: 5022 | M25: 此处仙气缭绕，你用神识一探果然探得丰富资源！ | O25: 109 | P25: 1 | Q25: =_xlfn.TEXTJOIN(";",1,R25:S25) ->  | T25: =IF(R25="","","-"&VLOOKUP(R25,EventConditionConfig!A:C,3,FALSE)&IF(S25="","",CHAR(10)&"-"&VLOOKUP(S25,EventConditionConfig!A:C,3,FALSE))) ->  | U25: =IF(Y25="","",IF(ISTEXT(Y25),1,2)) ->  | V25: =IF(U25=1,_xlfn.TEXTJOIN(";",1,IF(Z25="",A25+1,Z25),IF(AND(AA25<>"",AC25=""),A25+1,AC25),IF(AND(AD25<>"",AF25=""),A25+1,AF25)),IF(U25=2,Y25,"")) ->  | W25: =_xlfn.TEXTJOIN(";",1,X25,AA25,AD25) ->  | X25: =IF(OR(ISNUMBER(Y25),Y25=""),"",MAX(AL24,AL22,B25,D25,L25)+1) ->  | AA25: =IF(OR(ISNUMBER(AB25),AB25=""),"",X25+1) ->  | AD25: =IF(OR(ISNUMBER(AE25),AE25=""),"",AA25+1) ->  | AI25: =IF(A25="","",IF(ISNUMBER(Y25),2,IF(A26="",IF(OR(AK25>0,VLOOKUP(O25,EventConfig!A:C,3,FALSE)=4),3,""),1))) ->  | AJ25: =IF(AI25="","",CHOOSE(AI25,IF(AK25="",A25+1,AK25),CONCATENATE(IF(AK25="",A25+1,AK25),";101"),IF(AK25="",O25+1,AK25))) ->  | AL25: 5022
A27: =O27*100+P27 -> 11001 | B27: 5023 | C27: 击败妖邪 | K27: =IF(J27="","",VLOOKUP(J27,EventNPC!A:E,5,FALSE)) ->  | L27: 5024 | M27: 你发现一只落单的妖邪，应战！ | O27: 110 | P27: 1 | Q27: =_xlfn.TEXTJOIN(";",1,R27:S27) ->  | T27: =IF(R27="","","-"&VLOOKUP(R27,EventConditionConfig!A:C,3,FALSE)&IF(S27="","",CHAR(10)&"-"&VLOOKUP(S27,EventConditionConfig!A:C,3,FALSE))) ->  | U27: =IF(Y27="","",IF(ISTEXT(Y27),1,2)) -> 2 | V27: =IF(U27=1,_xlfn.TEXTJOIN(";",1,IF(Z27="",A27+1,Z27),IF(AND(AA27<>"",AC27=""),A27+1,AC27),IF(AND(AD27<>"",AF27=""),A27+1,AF27)),IF(U27=2,Y27,"")) -> 5002 | W27: =_xlfn.TEXTJOIN(";",1,X27,AA27,AD27) ->  | X27: =IF(OR(ISNUMBER(Y27),Y27=""),"",MAX(AL26,AL24,B27,D27,L27)+1) ->  | Y27: 5002 | AA27: =IF(OR(ISNUMBER(AB27),AB27=""),"",X27+1) ->  | AD27: =IF(OR(ISNUMBER(AE27),AE27=""),"",AA27+1) ->  | AI27: =IF(A27="","",IF(ISNUMBER(Y27),2,IF(A28="",IF(OR(AK27>0,VLOOKUP(O27,EventConfig!A:C,3,FALSE)=4),3,""),1))) -> 2 | AJ27: =IF(AI27="","",CHOOSE(AI27,IF(AK27="",A27+1,AK27),CONCATENATE(IF(AK27="",A27+1,AK27),";101"),IF(AK27="",O27+1,AK27))) -> 11002;101 | AL27: 5024
A29: =O29*100+P29 -> 11101 | B29: 5025 | C29: 击败妖邪 | K29: =IF(J29="","",VLOOKUP(J29,EventNPC!A:E,5,FALSE)) ->  | L29: 5026 | M29: 你发现一只落单的妖邪，应战！ | O29: 111 | P29: 1 | Q29: =_xlfn.TEXTJOIN(";",1,R29:S29) ->  | T29: =IF(R29="","","-"&VLOOKUP(R29,EventConditionConfig!A:C,3,FALSE)&IF(S29="","",CHAR(10)&"-"&VLOOKUP(S29,EventConditionConfig!A:C,3,FALSE))) ->  | U29: =IF(Y29="","",IF(ISTEXT(Y29),1,2)) -> 2 | V29: =IF(U29=1,_xlfn.TEXTJOIN(";",1,IF(Z29="",A29+1,Z29),IF(AND(AA29<>"",AC29=""),A29+1,AC29),IF(AND(AD29<>"",AF29=""),A29+1,AF29)),IF(U29=2,Y29,"")) -> 5007 | W29: =_xlfn.TEXTJOIN(";",1,X29,AA29,AD29) ->  | X29: =IF(OR(ISNUMBER(Y29),Y29=""),"",MAX(AL28,AL26,B29,D29,L29)+1) ->  | Y29: 5007 | AA29: =IF(OR(ISNUMBER(AB29),AB29=""),"",X29+1) ->  | AD29: =IF(OR(ISNUMBER(AE29),AE29=""),"",AA29+1) ->  | AI29: =IF(A29="","",IF(ISNUMBER(Y29),2,IF(A30="",IF(OR(AK29>0,VLOOKUP(O29,EventConfig!A:C,3,FALSE)=4),3,""),1))) -> 2 | AJ29: =IF(AI29="","",CHOOSE(AI29,IF(AK29="",A29+1,AK29),CONCATENATE(IF(AK29="",A29+1,AK29),";101"),IF(AK29="",O29+1,AK29))) -> 11102;101 | AL29: 5026
A31: =O31*100+P31 -> 11201 | B31: 5027 | C31: 使用神识探得资源 | K31: =IF(J31="","",VLOOKUP(J31,EventNPC!A:E,5,FALSE)) ->  | L31: 5028 | M31: 此处仙气缭绕，你用神识一探果然探得丰富资源！ | O31: 112 | P31: 1 | Q31: =_xlfn.TEXTJOIN(";",1,R31:S31) ->  | T31: =IF(R31="","","-"&VLOOKUP(R31,EventConditionConfig!A:C,3,FALSE)&IF(S31="","",CHAR(10)&"-"&VLOOKUP(S31,EventConditionConfig!A:C,3,FALSE))) ->  | U31: =IF(Y31="","",IF(ISTEXT(Y31),1,2)) ->  | V31: =IF(U31=1,_xlfn.TEXTJOIN(";",1,IF(Z31="",A31+1,Z31),IF(AND(AA31<>"",AC31=""),A31+1,AC31),IF(AND(AD31<>"",AF31=""),A31+1,AF31)),IF(U31=2,Y31,"")) ->  | W31: =_xlfn.TEXTJOIN(";",1,X31,AA31,AD31) ->  | X31: =IF(OR(ISNUMBER(Y31),Y31=""),"",MAX(AL30,AL28,B31,D31,L31)+1) ->  | AA31: =IF(OR(ISNUMBER(AB31),AB31=""),"",X31+1) ->  | AD31: =IF(OR(ISNUMBER(AE31),AE31=""),"",AA31+1) ->  | AI31: =IF(A31="","",IF(ISNUMBER(Y31),2,IF(A32="",IF(OR(AK31>0,VLOOKUP(O31,EventConfig!A:C,3,FALSE)=4),3,""),1))) ->  | AJ31: =IF(AI31="","",CHOOSE(AI31,IF(AK31="",A31+1,AK31),CONCATENATE(IF(AK31="",A31+1,AK31),";101"),IF(AK31="",O31+1,AK31))) ->  | AL31: 5028
A33: =O33*100+P33 -> 11301 | B33: 5029 | C33: 使用神识探得资源 | K33: =IF(J33="","",VLOOKUP(J33,EventNPC!A:E,5,FALSE)) ->  | L33: 5030 | M33: 此处仙气缭绕，你用神识一探果然探得丰富资源！ | O33: 113 | P33: 1 | Q33: =_xlfn.TEXTJOIN(";",1,R33:S33) ->  | T33: =IF(R33="","","-"&VLOOKUP(R33,EventConditionConfig!A:C,3,FALSE)&IF(S33="","",CHAR(10)&"-"&VLOOKUP(S33,EventConditionConfig!A:C,3,FALSE))) ->  | U33: =IF(Y33="","",IF(ISTEXT(Y33),1,2)) ->  | V33: =IF(U33=1,_xlfn.TEXTJOIN(";",1,IF(Z33="",A33+1,Z33),IF(AND(AA33<>"",AC33=""),A33+1,AC33),IF(AND(AD33<>"",AF33=""),A33+1,AF33)),IF(U33=2,Y33,"")) ->  | W33: =_xlfn.TEXTJOIN(";",1,X33,AA33,AD33) ->  | X33: =IF(OR(ISNUMBER(Y33),Y33=""),"",MAX(AL32,AL30,B33,D33,L33)+1) ->  | AA33: =IF(OR(ISNUMBER(AB33),AB33=""),"",X33+1) ->  | AD33: =IF(OR(ISNUMBER(AE33),AE33=""),"",AA33+1) ->  | AI33: =IF(A33="","",IF(ISNUMBER(Y33),2,IF(A34="",IF(OR(AK33>0,VLOOKUP(O33,EventConfig!A:C,3,FALSE)=4),3,""),1))) ->  | AJ33: =IF(AI33="","",CHOOSE(AI33,IF(AK33="",A33+1,AK33),CONCATENATE(IF(AK33="",A33+1,AK33),";101"),IF(AK33="",O33+1,AK33))) ->  | AL33: 5030
A35: =O35*100+P35 -> 11401 | B35: 5031 | C35: 使用神识探得资源 | K35: =IF(J35="","",VLOOKUP(J35,EventNPC!A:E,5,FALSE)) ->  | L35: 5032 | M35: 此处仙气缭绕，你用神识一探果然探得丰富资源！ | O35: 114 | P35: 1 | Q35: =_xlfn.TEXTJOIN(";",1,R35:S35) ->  | T35: =IF(R35="","","-"&VLOOKUP(R35,EventConditionConfig!A:C,3,FALSE)&IF(S35="","",CHAR(10)&"-"&VLOOKUP(S35,EventConditionConfig!A:C,3,FALSE))) ->  | U35: =IF(Y35="","",IF(ISTEXT(Y35),1,2)) ->  | V35: =IF(U35=1,_xlfn.TEXTJOIN(";",1,IF(Z35="",A35+1,Z35),IF(AND(AA35<>"",AC35=""),A35+1,AC35),IF(AND(AD35<>"",AF35=""),A35+1,AF35)),IF(U35=2,Y35,"")) ->  | W35: =_xlfn.TEXTJOIN(";",1,X35,AA35,AD35) ->  | X35: =IF(OR(ISNUMBER(Y35),Y35=""),"",MAX(AL34,AL32,B35,D35,L35)+1) ->  | AA35: =IF(OR(ISNUMBER(AB35),AB35=""),"",X35+1) ->  | AD35: =IF(OR(ISNUMBER(AE35),AE35=""),"",AA35+1) ->  | AI35: =IF(A35="","",IF(ISNUMBER(Y35),2,IF(A80="",IF(OR(AK35>0,VLOOKUP(O35,EventConfig!A:C,3,FALSE)=4),3,""),1))) ->  | AJ35: =IF(AI35="","",CHOOSE(AI35,IF(AK35="",A35+1,AK35),CONCATENATE(IF(AK35="",A35+1,AK35),";101"),IF(AK35="",O35+1,AK35))) ->  | AL35: 5032
A37: =O37*100+P37 -> 11501 | B37: 5033 | C37: 使用神识探得资源 | K37: =IF(J37="","",VLOOKUP(J37,EventNPC!A:E,5,FALSE)) ->  | L37: 5034 | M37: 此处仙气缭绕，你用神识一探果然探得丰富资源！ | O37: 115 | P37: 1 | Q37: =_xlfn.TEXTJOIN(";",1,R37:S37) ->  | T37: =IF(R37="","","-"&VLOOKUP(R37,EventConditionConfig!A:C,3,FALSE)&IF(S37="","",CHAR(10)&"-"&VLOOKUP(S37,EventConditionConfig!A:C,3,FALSE))) ->  | U37: =IF(Y37="","",IF(ISTEXT(Y37),1,2)) ->  | V37: =IF(U37=1,_xlfn.TEXTJOIN(";",1,IF(Z37="",A37+1,Z37),IF(AND(AA37<>"",AC37=""),A37+1,AC37),IF(AND(AD37<>"",AF37=""),A37+1,AF37)),IF(U37=2,Y37,"")) ->  | W37: =_xlfn.TEXTJOIN(";",1,X37,AA37,AD37) ->  | X37: =IF(OR(ISNUMBER(Y37),Y37=""),"",MAX(AL36,AL34,B37,D37,L37)+1) ->  | AA37: =IF(OR(ISNUMBER(AB37),AB37=""),"",X37+1) ->  | AD37: =IF(OR(ISNUMBER(AE37),AE37=""),"",AA37+1) ->  | AI37: =IF(A37="","",IF(ISNUMBER(Y37),2,IF(A38="",IF(OR(AK37>0,VLOOKUP(O37,EventConfig!A:C,3,FALSE)=4),3,""),1))) ->  | AJ37: =IF(AI37="","",CHOOSE(AI37,IF(AK37="",A37+1,AK37),CONCATENATE(IF(AK37="",A37+1,AK37),";101"),IF(AK37="",O37+1,AK37))) ->  | AL37: 5034
A39: =O39*100+P39 -> 11601 | B39: 5035 | C39: 使用神识探得资源 | K39: =IF(J39="","",VLOOKUP(J39,EventNPC!A:E,5,FALSE)) ->  | L39: 5036 | M39: 此处仙气缭绕，你用神识一探果然探得丰富资源！ | O39: 116 | P39: 1 | Q39: =_xlfn.TEXTJOIN(";",1,R39:S39) ->  | T39: =IF(R39="","","-"&VLOOKUP(R39,EventConditionConfig!A:C,3,FALSE)&IF(S39="","",CHAR(10)&"-"&VLOOKUP(S39,EventConditionConfig!A:C,3,FALSE))) ->  | U39: =IF(Y39="","",IF(ISTEXT(Y39),1,2)) ->  | V39: =IF(U39=1,_xlfn.TEXTJOIN(";",1,IF(Z39="",A39+1,Z39),IF(AND(AA39<>"",AC39=""),A39+1,AC39),IF(AND(AD39<>"",AF39=""),A39+1,AF39)),IF(U39=2,Y39,"")) ->  | W39: =_xlfn.TEXTJOIN(";",1,X39,AA39,AD39) ->  | X39: =IF(OR(ISNUMBER(Y39),Y39=""),"",MAX(AL38,AL36,B39,D39,L39)+1) ->  | AA39: =IF(OR(ISNUMBER(AB39),AB39=""),"",X39+1) ->  | AD39: =IF(OR(ISNUMBER(AE39),AE39=""),"",AA39+1) ->  | AI39: =IF(A39="","",IF(ISNUMBER(Y39),2,IF(A40="",IF(OR(AK39>0,VLOOKUP(O39,EventConfig!A:C,3,FALSE)=4),3,""),1))) ->  | AJ39: =IF(AI39="","",CHOOSE(AI39,IF(AK39="",A39+1,AK39),CONCATENATE(IF(AK39="",A39+1,AK39),";101"),IF(AK39="",O39+1,AK39))) ->  | AL39: 5036
A41: =O41*100+P41 -> 11701 | B41: 5037 | C41: 使用神识探得资源 | K41: =IF(J41="","",VLOOKUP(J41,EventNPC!A:E,5,FALSE)) ->  | L41: 5038 | M41: 此处仙气缭绕，你用神识一探果然探得丰富资源！ | O41: 117 | P41: 1 | Q41: =_xlfn.TEXTJOIN(";",1,R41:S41) ->  | T41: =IF(R41="","","-"&VLOOKUP(R41,EventConditionConfig!A:C,3,FALSE)&IF(S41="","",CHAR(10)&"-"&VLOOKUP(S41,EventConditionConfig!A:C,3,FALSE))) ->  | U41: =IF(Y41="","",IF(ISTEXT(Y41),1,2)) ->  | V41: =IF(U41=1,_xlfn.TEXTJOIN(";",1,IF(Z41="",A41+1,Z41),IF(AND(AA41<>"",AC41=""),A41+1,AC41),IF(AND(AD41<>"",AF41=""),A41+1,AF41)),IF(U41=2,Y41,"")) ->  | W41: =_xlfn.TEXTJOIN(";",1,X41,AA41,AD41) ->  | X41: =IF(OR(ISNUMBER(Y41),Y41=""),"",MAX(AL40,AL38,B41,D41,L41)+1) ->  | AA41: =IF(OR(ISNUMBER(AB41),AB41=""),"",X41+1) ->  | AD41: =IF(OR(ISNUMBER(AE41),AE41=""),"",AA41+1) ->  | AI41: =IF(A41="","",IF(ISNUMBER(Y41),2,IF(A104="",IF(OR(AK41>0,VLOOKUP(O41,EventConfig!A:C,3,FALSE)=4),3,""),1))) -> 1 | AJ41: =IF(AI41="","",CHOOSE(AI41,IF(AK41="",A41+1,AK41),CONCATENATE(IF(AK41="",A41+1,AK41),";101"),IF(AK41="",O41+1,AK41))) -> 11702 | AL41: 5038
A43: =O43*100+P43 -> 11801 | B43: 5039 | C43: 使用神识探得资源 | K43: =IF(J43="","",VLOOKUP(J43,EventNPC!A:E,5,FALSE)) ->  | L43: 5040 | M43: 此处仙气缭绕，你用神识一探果然探得丰富资源！ | O43: 118 | P43: 1 | Q43: =_xlfn.TEXTJOIN(";",1,R43:S43) ->  | T43: =IF(R43="","","-"&VLOOKUP(R43,EventConditionConfig!A:C,3,FALSE)&IF(S43="","",CHAR(10)&"-"&VLOOKUP(S43,EventConditionConfig!A:C,3,FALSE))) ->  | U43: =IF(Y43="","",IF(ISTEXT(Y43),1,2)) ->  | V43: =IF(U43=1,_xlfn.TEXTJOIN(";",1,IF(Z43="",A43+1,Z43),IF(AND(AA43<>"",AC43=""),A43+1,AC43),IF(AND(AD43<>"",AF43=""),A43+1,AF43)),IF(U43=2,Y43,"")) ->  | W43: =_xlfn.TEXTJOIN(";",1,X43,AA43,AD43) ->  | X43: =IF(OR(ISNUMBER(Y43),Y43=""),"",MAX(AL42,AL40,B43,D43,L43)+1) ->  | AA43: =IF(OR(ISNUMBER(AB43),AB43=""),"",X43+1) ->  | AD43: =IF(OR(ISNUMBER(AE43),AE43=""),"",AA43+1) ->  | AI43: =IF(A43="","",IF(ISNUMBER(Y43),2,IF(A44="",IF(OR(AK43>0,VLOOKUP(O43,EventConfig!A:C,3,FALSE)=4),3,""),1))) ->  | AJ43: =IF(AI43="","",CHOOSE(AI43,IF(AK43="",A43+1,AK43),CONCATENATE(IF(AK43="",A43+1,AK43),";101"),IF(AK43="",O43+1,AK43))) ->  | AL43: 5040
A45: =O45*100+P45 -> 11901 | B45: 5041 | C45: 击败妖邪 | K45: =IF(J45="","",VLOOKUP(J45,EventNPC!A:E,5,FALSE)) ->  | L45: 5042 | M45: 你发现一只落单的妖邪，应战！ | O45: 119 | P45: 1 | Q45: =_xlfn.TEXTJOIN(";",1,R45:S45) ->  | T45: =IF(R45="","","-"&VLOOKUP(R45,EventConditionConfig!A:C,3,FALSE)&IF(S45="","",CHAR(10)&"-"&VLOOKUP(S45,EventConditionConfig!A:C,3,FALSE))) ->  | U45: =IF(Y45="","",IF(ISTEXT(Y45),1,2)) -> 2 | V45: =IF(U45=1,_xlfn.TEXTJOIN(";",1,IF(Z45="",A45+1,Z45),IF(AND(AA45<>"",AC45=""),A45+1,AC45),IF(AND(AD45<>"",AF45=""),A45+1,AF45)),IF(U45=2,Y45,"")) -> 5003 | W45: =_xlfn.TEXTJOIN(";",1,X45,AA45,AD45) ->  | X45: =IF(OR(ISNUMBER(Y45),Y45=""),"",MAX(AL44,AL42,B45,D45,L45)+1) ->  | Y45: 5003 | AA45: =IF(OR(ISNUMBER(AB45),AB45=""),"",X45+1) ->  | AD45: =IF(OR(ISNUMBER(AE45),AE45=""),"",AA45+1) ->  | AI45: =IF(A45="","",IF(ISNUMBER(Y45),2,IF(A46="",IF(OR(AK45>0,VLOOKUP(O45,EventConfig!A:C,3,FALSE)=4),3,""),1))) -> 2 | AJ45: =IF(AI45="","",CHOOSE(AI45,IF(AK45="",A45+1,AK45),CONCATENATE(IF(AK45="",A45+1,AK45),";101"),IF(AK45="",O45+1,AK45))) -> 11902;101 | AL45: 5042
A47: =O47*100+P47 -> 12001 | B47: 5043 | C47: 击败妖邪 | K47: =IF(J47="","",VLOOKUP(J47,EventNPC!A:E,5,FALSE)) ->  | L47: 5044 | M47: 你发现一只落单的妖邪，应战！ | O47: 120 | P47: 1 | Q47: =_xlfn.TEXTJOIN(";",1,R47:S47) ->  | T47: =IF(R47="","","-"&VLOOKUP(R47,EventConditionConfig!A:C,3,FALSE)&IF(S47="","",CHAR(10)&"-"&VLOOKUP(S47,EventConditionConfig!A:C,3,FALSE))) ->  | U47: =IF(Y47="","",IF(ISTEXT(Y47),1,2)) -> 2 | V47: =IF(U47=1,_xlfn.TEXTJOIN(";",1,IF(Z47="",A47+1,Z47),IF(AND(AA47<>"",AC47=""),A47+1,AC47),IF(AND(AD47<>"",AF47=""),A47+1,AF47)),IF(U47=2,Y47,"")) -> 5008 | W47: =_xlfn.TEXTJOIN(";",1,X47,AA47,AD47) ->  | X47: =IF(OR(ISNUMBER(Y47),Y47=""),"",MAX(AL46,AL44,B47,D47,L47)+1) ->  | Y47: 5008 | AA47: =IF(OR(ISNUMBER(AB47),AB47=""),"",X47+1) ->  | AD47: =IF(OR(ISNUMBER(AE47),AE47=""),"",AA47+1) ->  | AI47: =IF(A47="","",IF(ISNUMBER(Y47),2,IF(A48="",IF(OR(AK47>0,VLOOKUP(O47,EventConfig!A:C,3,FALSE)=4),3,""),1))) -> 2 | AJ47: =IF(AI47="","",CHOOSE(AI47,IF(AK47="",A47+1,AK47),CONCATENATE(IF(AK47="",A47+1,AK47),";101"),IF(AK47="",O47+1,AK47))) -> 12002;101 | AL47: 5044
A49: =O49*100+P49 -> 12101 | B49: 5045 | C49: 使用神识探得资源 | K49: =IF(J49="","",VLOOKUP(J49,EventNPC!A:E,5,FALSE)) ->  | L49: 5046 | M49: 此处仙气缭绕，你用神识一探果然探得丰富资源！ | O49: 121 | P49: 1 | Q49: =_xlfn.TEXTJOIN(";",1,R49:S49) ->  | T49: =IF(R49="","","-"&VLOOKUP(R49,EventConditionConfig!A:C,3,FALSE)&IF(S49="","",CHAR(10)&"-"&VLOOKUP(S49,EventConditionConfig!A:C,3,FALSE))) ->  | U49: =IF(Y49="","",IF(ISTEXT(Y49),1,2)) ->  | V49: =IF(U49=1,_xlfn.TEXTJOIN(";",1,IF(Z49="",A49+1,Z49),IF(AND(AA49<>"",AC49=""),A49+1,AC49),IF(AND(AD49<>"",AF49=""),A49+1,AF49)),IF(U49=2,Y49,"")) ->  | W49: =_xlfn.TEXTJOIN(";",1,X49,AA49,AD49) ->  | X49: =IF(OR(ISNUMBER(Y49),Y49=""),"",MAX(AL48,AL46,B49,D49,L49)+1) ->  | AA49: =IF(OR(ISNUMBER(AB49),AB49=""),"",X49+1) ->  | AD49: =IF(OR(ISNUMBER(AE49),AE49=""),"",AA49+1) ->  | AI49: =IF(A49="","",IF(ISNUMBER(Y49),2,IF(A50="",IF(OR(AK49>0,VLOOKUP(O49,EventConfig!A:C,3,FALSE)=4),3,""),1))) ->  | AJ49: =IF(AI49="","",CHOOSE(AI49,IF(AK49="",A49+1,AK49),CONCATENATE(IF(AK49="",A49+1,AK49),";101"),IF(AK49="",O49+1,AK49))) ->  | AL49: 5046
A51: =O51*100+P51 -> 12201 | B51: 5047 | C51: 使用神识探得资源 | K51: =IF(J51="","",VLOOKUP(J51,EventNPC!A:E,5,FALSE)) ->  | L51: 5048 | M51: 此处仙气缭绕，你用神识一探果然探得丰富资源！ | O51: 122 | P51: 1 | Q51: =_xlfn.TEXTJOIN(";",1,R51:S51) ->  | T51: =IF(R51="","","-"&VLOOKUP(R51,EventConditionConfig!A:C,3,FALSE)&IF(S51="","",CHAR(10)&"-"&VLOOKUP(S51,EventConditionConfig!A:C,3,FALSE))) ->  | U51: =IF(Y51="","",IF(ISTEXT(Y51),1,2)) ->  | V51: =IF(U51=1,_xlfn.TEXTJOIN(";",1,IF(Z51="",A51+1,Z51),IF(AND(AA51<>"",AC51=""),A51+1,AC51),IF(AND(AD51<>"",AF51=""),A51+1,AF51)),IF(U51=2,Y51,"")) ->  | W51: =_xlfn.TEXTJOIN(";",1,X51,AA51,AD51) ->  | X51: =IF(OR(ISNUMBER(Y51),Y51=""),"",MAX(AL50,AL48,B51,D51,L51)+1) ->  | AA51: =IF(OR(ISNUMBER(AB51),AB51=""),"",X51+1) ->  | AD51: =IF(OR(ISNUMBER(AE51),AE51=""),"",AA51+1) ->  | AI51: =IF(A51="","",IF(ISNUMBER(Y51),2,IF(A52="",IF(OR(AK51>0,VLOOKUP(O51,EventConfig!A:C,3,FALSE)=4),3,""),1))) ->  | AJ51: =IF(AI51="","",CHOOSE(AI51,IF(AK51="",A51+1,AK51),CONCATENATE(IF(AK51="",A51+1,AK51),";101"),IF(AK51="",O51+1,AK51))) ->  | AL51: 5048
A53: =O53*100+P53 -> 12301 | B53: 5049 | C53: 使用神识探得资源 | K53: =IF(J53="","",VLOOKUP(J53,EventNPC!A:E,5,FALSE)) ->  | L53: 5050 | M53: 此处仙气缭绕，你用神识一探果然探得丰富资源！ | O53: 123 | P53: 1 | Q53: =_xlfn.TEXTJOIN(";",1,R53:S53) ->  | T53: =IF(R53="","","-"&VLOOKUP(R53,EventConditionConfig!A:C,3,FALSE)&IF(S53="","",CHAR(10)&"-"&VLOOKUP(S53,EventConditionConfig!A:C,3,FALSE))) ->  | U53: =IF(Y53="","",IF(ISTEXT(Y53),1,2)) ->  | V53: =IF(U53=1,_xlfn.TEXTJOIN(";",1,IF(Z53="",A53+1,Z53),IF(AND(AA53<>"",AC53=""),A53+1,AC53),IF(AND(AD53<>"",AF53=""),A53+1,AF53)),IF(U53=2,Y53,"")) ->  | W53: =_xlfn.TEXTJOIN(";",1,X53,AA53,AD53) ->  | X53: =IF(OR(ISNUMBER(Y53),Y53=""),"",MAX(AL52,AL50,B53,D53,L53)+1) ->  | AA53: =IF(OR(ISNUMBER(AB53),AB53=""),"",X53+1) ->  | AD53: =IF(OR(ISNUMBER(AE53),AE53=""),"",AA53+1) ->  | AI53: =IF(A53="","",IF(ISNUMBER(Y53),2,IF(A54="",IF(OR(AK53>0,VLOOKUP(O53,EventConfig!A:C,3,FALSE)=4),3,""),1))) ->  | AJ53: =IF(AI53="","",CHOOSE(AI53,IF(AK53="",A53+1,AK53),CONCATENATE(IF(AK53="",A53+1,AK53),";101"),IF(AK53="",O53+1,AK53))) ->  | AL53: 5050
A55: =O55*100+P55 -> 12401 | B55: 5051 | C55: 使用神识探得资源 | K55: =IF(J55="","",VLOOKUP(J55,EventNPC!A:E,5,FALSE)) ->  | L55: 5052 | M55: 此处仙气缭绕，你用神识一探果然探得丰富资源！ | O55: 124 | P55: 1 | Q55: =_xlfn.TEXTJOIN(";",1,R55:S55) ->  | T55: =IF(R55="","","-"&VLOOKUP(R55,EventConditionConfig!A:C,3,FALSE)&IF(S55="","",CHAR(10)&"-"&VLOOKUP(S55,EventConditionConfig!A:C,3,FALSE))) ->  | U55: =IF(Y55="","",IF(ISTEXT(Y55),1,2)) ->  | V55: =IF(U55=1,_xlfn.TEXTJOIN(";",1,IF(Z55="",A55+1,Z55),IF(AND(AA55<>"",AC55=""),A55+1,AC55),IF(AND(AD55<>"",AF55=""),A55+1,AF55)),IF(U55=2,Y55,"")) ->  | W55: =_xlfn.TEXTJOIN(";",1,X55,AA55,AD55) ->  | X55: =IF(OR(ISNUMBER(Y55),Y55=""),"",MAX(AL54,AL52,B55,D55,L55)+1) ->  | AA55: =IF(OR(ISNUMBER(AB55),AB55=""),"",X55+1) ->  | AD55: =IF(OR(ISNUMBER(AE55),AE55=""),"",AA55+1) ->  | AI55: =IF(A55="","",IF(ISNUMBER(Y55),2,IF(A118="",IF(OR(AK55>0,VLOOKUP(O55,EventConfig!A:C,3,FALSE)=4),3,""),1))) -> 1 | AJ55: =IF(AI55="","",CHOOSE(AI55,IF(AK55="",A55+1,AK55),CONCATENATE(IF(AK55="",A55+1,AK55),";101"),IF(AK55="",O55+1,AK55))) -> 12402 | AL55: 5052
A57: =O57*100+P57 -> 12501 | B57: 5053 | C57: 使用神识探得资源 | K57: =IF(J57="","",VLOOKUP(J57,EventNPC!A:E,5,FALSE)) ->  | L57: 5054 | M57: 此处仙气缭绕，你用神识一探果然探得丰富资源！ | O57: 125 | P57: 1 | Q57: =_xlfn.TEXTJOIN(";",1,R57:S57) ->  | T57: =IF(R57="","","-"&VLOOKUP(R57,EventConditionConfig!A:C,3,FALSE)&IF(S57="","",CHAR(10)&"-"&VLOOKUP(S57,EventConditionConfig!A:C,3,FALSE))) ->  | U57: =IF(Y57="","",IF(ISTEXT(Y57),1,2)) ->  | V57: =IF(U57=1,_xlfn.TEXTJOIN(";",1,IF(Z57="",A57+1,Z57),IF(AND(AA57<>"",AC57=""),A57+1,AC57),IF(AND(AD57<>"",AF57=""),A57+1,AF57)),IF(U57=2,Y57,"")) ->  | W57: =_xlfn.TEXTJOIN(";",1,X57,AA57,AD57) ->  | X57: =IF(OR(ISNUMBER(Y57),Y57=""),"",MAX(AL56,AL54,B57,D57,L57)+1) ->  | AA57: =IF(OR(ISNUMBER(AB57),AB57=""),"",X57+1) ->  | AD57: =IF(OR(ISNUMBER(AE57),AE57=""),"",AA57+1) ->  | AI57: =IF(A57="","",IF(ISNUMBER(Y57),2,IF(A58="",IF(OR(AK57>0,VLOOKUP(O57,EventConfig!A:C,3,FALSE)=4),3,""),1))) ->  | AJ57: =IF(AI57="","",CHOOSE(AI57,IF(AK57="",A57+1,AK57),CONCATENATE(IF(AK57="",A57+1,AK57),";101"),IF(AK57="",O57+1,AK57))) ->  | AL57: 5054
A59: =O59*100+P59 -> 12601 | B59: 5055 | C59: 使用神识探得资源 | K59: =IF(J59="","",VLOOKUP(J59,EventNPC!A:E,5,FALSE)) ->  | L59: 5056 | M59: 此处仙气缭绕，你用神识一探果然探得丰富资源！ | O59: 126 | P59: 1 | Q59: =_xlfn.TEXTJOIN(";",1,R59:S59) ->  | T59: =IF(R59="","","-"&VLOOKUP(R59,EventConditionConfig!A:C,3,FALSE)&IF(S59="","",CHAR(10)&"-"&VLOOKUP(S59,EventConditionConfig!A:C,3,FALSE))) ->  | U59: =IF(Y59="","",IF(ISTEXT(Y59),1,2)) ->  | V59: =IF(U59=1,_xlfn.TEXTJOIN(";",1,IF(Z59="",A59+1,Z59),IF(AND(AA59<>"",AC59=""),A59+1,AC59),IF(AND(AD59<>"",AF59=""),A59+1,AF59)),IF(U59=2,Y59,"")) ->  | W59: =_xlfn.TEXTJOIN(";",1,X59,AA59,AD59) ->  | X59: =IF(OR(ISNUMBER(Y59),Y59=""),"",MAX(AL58,AL56,B59,D59,L59)+1) ->  | AA59: =IF(OR(ISNUMBER(AB59),AB59=""),"",X59+1) ->  | AD59: =IF(OR(ISNUMBER(AE59),AE59=""),"",AA59+1) ->  | AI59: =IF(A59="","",IF(ISNUMBER(Y59),2,IF(A60="",IF(OR(AK59>0,VLOOKUP(O59,EventConfig!A:C,3,FALSE)=4),3,""),1))) ->  | AJ59: =IF(AI59="","",CHOOSE(AI59,IF(AK59="",A59+1,AK59),CONCATENATE(IF(AK59="",A59+1,AK59),";101"),IF(AK59="",O59+1,AK59))) ->  | AL59: 5056
A61: =O61*100+P61 -> 12701 | B61: 5057 | C61: 使用神识探得资源 | K61: =IF(J61="","",VLOOKUP(J61,EventNPC!A:E,5,FALSE)) ->  | L61: 5058 | M61: 此处仙气缭绕，你用神识一探果然探得丰富资源！ | O61: 127 | P61: 1 | Q61: =_xlfn.TEXTJOIN(";",1,R61:S61) ->  | T61: =IF(R61="","","-"&VLOOKUP(R61,EventConditionConfig!A:C,3,FALSE)&IF(S61="","",CHAR(10)&"-"&VLOOKUP(S61,EventConditionConfig!A:C,3,FALSE))) ->  | U61: =IF(Y61="","",IF(ISTEXT(Y61),1,2)) ->  | V61: =IF(U61=1,_xlfn.TEXTJOIN(";",1,IF(Z61="",A61+1,Z61),IF(AND(AA61<>"",AC61=""),A61+1,AC61),IF(AND(AD61<>"",AF61=""),A61+1,AF61)),IF(U61=2,Y61,"")) ->  | W61: =_xlfn.TEXTJOIN(";",1,X61,AA61,AD61) ->  | X61: =IF(OR(ISNUMBER(Y61),Y61=""),"",MAX(AL60,AL58,B61,D61,L61)+1) ->  | AA61: =IF(OR(ISNUMBER(AB61),AB61=""),"",X61+1) ->  | AD61: =IF(OR(ISNUMBER(AE61),AE61=""),"",AA61+1) ->  | AI61: =IF(A61="","",IF(ISNUMBER(Y61),2,IF(A124="",IF(OR(AK61>0,VLOOKUP(O61,EventConfig!A:C,3,FALSE)=4),3,""),1))) ->  | AJ61: =IF(AI61="","",CHOOSE(AI61,IF(AK61="",A61+1,AK61),CONCATENATE(IF(AK61="",A61+1,AK61),";101"),IF(AK61="",O61+1,AK61))) ->  | AL61: 5058
A63: =O63*100+P63 -> 12801 | B63: 5059 | C63: 击败妖邪 | K63: =IF(J63="","",VLOOKUP(J63,EventNPC!A:E,5,FALSE)) ->  | L63: 5060 | M63: 你发现一只落单的妖邪，应战！ | O63: 128 | P63: 1 | Q63: =_xlfn.TEXTJOIN(";",1,R63:S63) ->  | T63: =IF(R63="","","-"&VLOOKUP(R63,EventConditionConfig!A:C,3,FALSE)&IF(S63="","",CHAR(10)&"-"&VLOOKUP(S63,EventConditionConfig!A:C,3,FALSE))) ->  | U63: =IF(Y63="","",IF(ISTEXT(Y63),1,2)) -> 2 | V63: =IF(U63=1,_xlfn.TEXTJOIN(";",1,IF(Z63="",A63+1,Z63),IF(AND(AA63<>"",AC63=""),A63+1,AC63),IF(AND(AD63<>"",AF63=""),A63+1,AF63)),IF(U63=2,Y63,"")) -> 5004 | W63: =_xlfn.TEXTJOIN(";",1,X63,AA63,AD63) ->  | X63: =IF(OR(ISNUMBER(Y63),Y63=""),"",MAX(AL62,AL60,B63,D63,L63)+1) ->  | Y63: 5004 | AA63: =IF(OR(ISNUMBER(AB63),AB63=""),"",X63+1) ->  | AD63: =IF(OR(ISNUMBER(AE63),AE63=""),"",AA63+1) ->  | AI63: =IF(A63="","",IF(ISNUMBER(Y63),2,IF(A64="",IF(OR(AK63>0,VLOOKUP(O63,EventConfig!A:C,3,FALSE)=4),3,""),1))) -> 2 | AJ63: =IF(AI63="","",CHOOSE(AI63,IF(AK63="",A63+1,AK63),CONCATENATE(IF(AK63="",A63+1,AK63),";101"),IF(AK63="",O63+1,AK63))) -> 12802;101 | AL63: 5060
A65: =O65*100+P65 -> 12901 | B65: 5061 | C65: 击败妖邪 | K65: =IF(J65="","",VLOOKUP(J65,EventNPC!A:E,5,FALSE)) ->  | L65: 5062 | M65: 你发现一只落单的妖邪，应战！ | O65: 129 | P65: 1 | Q65: =_xlfn.TEXTJOIN(";",1,R65:S65) ->  | T65: =IF(R65="","","-"&VLOOKUP(R65,EventConditionConfig!A:C,3,FALSE)&IF(S65="","",CHAR(10)&"-"&VLOOKUP(S65,EventConditionConfig!A:C,3,FALSE))) ->  | U65: =IF(Y65="","",IF(ISTEXT(Y65),1,2)) -> 2 | V65: =IF(U65=1,_xlfn.TEXTJOIN(";",1,IF(Z65="",A65+1,Z65),IF(AND(AA65<>"",AC65=""),A65+1,AC65),IF(AND(AD65<>"",AF65=""),A65+1,AF65)),IF(U65=2,Y65,"")) -> 5009 | W65: =_xlfn.TEXTJOIN(";",1,X65,AA65,AD65) ->  | X65: =IF(OR(ISNUMBER(Y65),Y65=""),"",MAX(AL64,AL62,B65,D65,L65)+1) ->  | Y65: 5009 | AA65: =IF(OR(ISNUMBER(AB65),AB65=""),"",X65+1) ->  | AD65: =IF(OR(ISNUMBER(AE65),AE65=""),"",AA65+1) ->  | AI65: =IF(A65="","",IF(ISNUMBER(Y65),2,IF(A66="",IF(OR(AK65>0,VLOOKUP(O65,EventConfig!A:C,3,FALSE)=4),3,""),1))) -> 2 | AJ65: =IF(AI65="","",CHOOSE(AI65,IF(AK65="",A65+1,AK65),CONCATENATE(IF(AK65="",A65+1,AK65),";101"),IF(AK65="",O65+1,AK65))) -> 12902;101 | AL65: 5062
A67: =O67*100+P67 -> 13001 | B67: 5063 | C67: 使用神识探得资源 | K67: =IF(J67="","",VLOOKUP(J67,EventNPC!A:E,5,FALSE)) ->  | L67: 5064 | M67: 此处仙气缭绕，你用神识一探果然探得丰富资源！ | O67: 130 | P67: 1 | Q67: =_xlfn.TEXTJOIN(";",1,R67:S67) ->  | T67: =IF(R67="","","-"&VLOOKUP(R67,EventConditionConfig!A:C,3,FALSE)&IF(S67="","",CHAR(10)&"-"&VLOOKUP(S67,EventConditionConfig!A:C,3,FALSE))) ->  | U67: =IF(Y67="","",IF(ISTEXT(Y67),1,2)) ->  | V67: =IF(U67=1,_xlfn.TEXTJOIN(";",1,IF(Z67="",A67+1,Z67),IF(AND(AA67<>"",AC67=""),A67+1,AC67),IF(AND(AD67<>"",AF67=""),A67+1,AF67)),IF(U67=2,Y67,"")) ->  | W67: =_xlfn.TEXTJOIN(";",1,X67,AA67,AD67) ->  | X67: =IF(OR(ISNUMBER(Y67),Y67=""),"",MAX(AL66,AL64,B67,D67,L67)+1) ->  | AA67: =IF(OR(ISNUMBER(AB67),AB67=""),"",X67+1) ->  | AD67: =IF(OR(ISNUMBER(AE67),AE67=""),"",AA67+1) ->  | AI67: =IF(A67="","",IF(ISNUMBER(Y67),2,IF(A68="",IF(OR(AK67>0,VLOOKUP(O67,EventConfig!A:C,3,FALSE)=4),3,""),1))) ->  | AJ67: =IF(AI67="","",CHOOSE(AI67,IF(AK67="",A67+1,AK67),CONCATENATE(IF(AK67="",A67+1,AK67),";101"),IF(AK67="",O67+1,AK67))) ->  | AL67: 5064
A69: =O69*100+P69 -> 13101 | B69: 5065 | C69: 使用神识探得资源 | K69: =IF(J69="","",VLOOKUP(J69,EventNPC!A:E,5,FALSE)) ->  | L69: 5066 | M69: 此处仙气缭绕，你用神识一探果然探得丰富资源！ | O69: 131 | P69: 1 | Q69: =_xlfn.TEXTJOIN(";",1,R69:S69) ->  | T69: =IF(R69="","","-"&VLOOKUP(R69,EventConditionConfig!A:C,3,FALSE)&IF(S69="","",CHAR(10)&"-"&VLOOKUP(S69,EventConditionConfig!A:C,3,FALSE))) ->  | U69: =IF(Y69="","",IF(ISTEXT(Y69),1,2)) ->  | V69: =IF(U69=1,_xlfn.TEXTJOIN(";",1,IF(Z69="",A69+1,Z69),IF(AND(AA69<>"",AC69=""),A69+1,AC69),IF(AND(AD69<>"",AF69=""),A69+1,AF69)),IF(U69=2,Y69,"")) ->  | W69: =_xlfn.TEXTJOIN(";",1,X69,AA69,AD69) ->  | X69: =IF(OR(ISNUMBER(Y69),Y69=""),"",MAX(AL68,AL66,B69,D69,L69)+1) ->  | AA69: =IF(OR(ISNUMBER(AB69),AB69=""),"",X69+1) ->  | AD69: =IF(OR(ISNUMBER(AE69),AE69=""),"",AA69+1) ->  | AI69: =IF(A69="","",IF(ISNUMBER(Y69),2,IF(A70="",IF(OR(AK69>0,VLOOKUP(O69,EventConfig!A:C,3,FALSE)=4),3,""),1))) ->  | AJ69: =IF(AI69="","",CHOOSE(AI69,IF(AK69="",A69+1,AK69),CONCATENATE(IF(AK69="",A69+1,AK69),";101"),IF(AK69="",O69+1,AK69))) ->  | AL69: 5066
AL70: =IF(A70="","",MAX(B70,D70,L70,X70,AA70,AL69,AL68,AD70)) -> 
A71: =O71*100+P71 -> 13201 | B71: 5067 | C71: 使用神识探得资源 | K71: =IF(J71="","",VLOOKUP(J71,EventNPC!A:E,5,FALSE)) ->  | L71: 5068 | M71: 此处仙气缭绕，你用神识一探果然探得丰富资源！ | O71: 132 | P71: 1 | Q71: =_xlfn.TEXTJOIN(";",1,R71:S71) ->  | T71: =IF(R71="","","-"&VLOOKUP(R71,EventConditionConfig!A:C,3,FALSE)&IF(S71="","",CHAR(10)&"-"&VLOOKUP(S71,EventConditionConfig!A:C,3,FALSE))) ->  | U71: =IF(Y71="","",IF(ISTEXT(Y71),1,2)) ->  | V71: =IF(U71=1,_xlfn.TEXTJOIN(";",1,IF(Z71="",A71+1,Z71),IF(AND(AA71<>"",AC71=""),A71+1,AC71),IF(AND(AD71<>"",AF71=""),A71+1,AF71)),IF(U71=2,Y71,"")) ->  | W71: =_xlfn.TEXTJOIN(";",1,X71,AA71,AD71) ->  | X71: =IF(OR(ISNUMBER(Y71),Y71=""),"",MAX(AL70,AL68,B71,D71,L71)+1) ->  | AA71: =IF(OR(ISNUMBER(AB71),AB71=""),"",X71+1) ->  | AD71: =IF(OR(ISNUMBER(AE71),AE71=""),"",AA71+1) ->  | AI71: =IF(A71="","",IF(ISNUMBER(Y71),2,IF(A72="",IF(OR(AK71>0,VLOOKUP(O71,EventConfig!A:C,3,FALSE)=4),3,""),1))) ->  | AJ71: =IF(AI71="","",CHOOSE(AI71,IF(AK71="",A71+1,AK71),CONCATENATE(IF(AK71="",A71+1,AK71),";101"),IF(AK71="",O71+1,AK71))) ->  | AL71: 5068
A73: =O73*100+P73 -> 13301 | B73: 5069 | C73: 使用神识探得资源 | K73: =IF(J73="","",VLOOKUP(J73,EventNPC!A:E,5,FALSE)) ->  | L73: 5070 | M73: 此处仙气缭绕，你用神识一探果然探得丰富资源！ | O73: 133 | P73: 1 | Q73: =_xlfn.TEXTJOIN(";",1,R73:S73) ->  | T73: =IF(R73="","","-"&VLOOKUP(R73,EventConditionConfig!A:C,3,FALSE)&IF(S73="","",CHAR(10)&"-"&VLOOKUP(S73,EventConditionConfig!A:C,3,FALSE))) ->  | U73: =IF(Y73="","",IF(ISTEXT(Y73),1,2)) ->  | V73: =IF(U73=1,_xlfn.TEXTJOIN(";",1,IF(Z73="",A73+1,Z73),IF(AND(AA73<>"",AC73=""),A73+1,AC73),IF(AND(AD73<>"",AF73=""),A73+1,AF73)),IF(U73=2,Y73,"")) ->  | W73: =_xlfn.TEXTJOIN(";",1,X73,AA73,AD73) ->  | X73: =IF(OR(ISNUMBER(Y73),Y73=""),"",MAX(AL72,AL70,B73,D73,L73)+1) ->  | AA73: =IF(OR(ISNUMBER(AB73),AB73=""),"",X73+1) ->  | AD73: =IF(OR(ISNUMBER(AE73),AE73=""),"",AA73+1) ->  | AI73: =IF(A73="","",IF(ISNUMBER(Y73),2,IF(A136="",IF(OR(AK73>0,VLOOKUP(O73,EventConfig!A:C,3,FALSE)=4),3,""),1))) ->  | AJ73: =IF(AI73="","",CHOOSE(AI73,IF(AK73="",A73+1,AK73),CONCATENATE(IF(AK73="",A73+1,AK73),";101"),IF(AK73="",O73+1,AK73))) ->  | AL73: 5070
B74: =IF(C74="","",IF(C74=C73,B73,MAX(AL73,AL72)+1)) ->  | L74: =IF(M74="","",MAX(AL73,AL72,B74,D74)+1) ->  | P74: =IF(O74="","",IF(O74=O73,P73+1,1)) -> 
A75: =O75*100+P75 -> 13401 | B75: 5071 | C75: 使用神识探得资源 | D75: =IF(E75="","",IF(E75=E74,D74,MAX(AL74,AL73,B75)+1)) ->  | K75: =IF(J75="","",VLOOKUP(J75,EventNPC!A:E,5,FALSE)) ->  | L75: 5072 | M75: 此处仙气缭绕，你用神识一探果然探得丰富资源！ | O75: 134 | P75: 1 | Q75: =_xlfn.TEXTJOIN(";",1,R75:S75) ->  | T75: =IF(R75="","","-"&VLOOKUP(R75,EventConditionConfig!A:C,3,FALSE)&IF(S75="","",CHAR(10)&"-"&VLOOKUP(S75,EventConditionConfig!A:C,3,FALSE))) ->  | U75: =IF(Y75="","",IF(ISTEXT(Y75),1,2)) ->  | V75: =IF(U75=1,_xlfn.TEXTJOIN(";",1,IF(Z75="",A75+1,Z75),IF(AND(AA75<>"",AC75=""),A75+1,AC75),IF(AND(AD75<>"",AF75=""),A75+1,AF75)),IF(U75=2,Y75,"")) ->  | W75: =_xlfn.TEXTJOIN(";",1,X75,AA75,AD75) ->  | X75: =IF(OR(ISNUMBER(Y75),Y75=""),"",MAX(AL74,AL72,B75,D75,L75)+1) ->  | AA75: =IF(OR(ISNUMBER(AB75),AB75=""),"",X75+1) ->  | AD75: =IF(OR(ISNUMBER(AE75),AE75=""),"",AA75+1) ->  | AI75: =IF(A75="","",IF(ISNUMBER(Y75),2,IF(A76="",IF(OR(AK75>0,VLOOKUP(O75,EventConfig!A:C,3,FALSE)=4),3,""),1))) ->  | AJ75: =IF(AI75="","",CHOOSE(AI75,IF(AK75="",A75+1,AK75),CONCATENATE(IF(AK75="",A75+1,AK75),";101"),IF(AK75="",O75+1,AK75))) ->  | AL75: 5072
A77: =O77*100+P77 -> 13501 | B77: 5073 | C77: 使用神识探得资源 | K77: =IF(J77="","",VLOOKUP(J77,EventNPC!A:E,5,FALSE)) ->  | L77: 5074 | M77: 此处仙气缭绕，你用神识一探果然探得丰富资源！ | O77: 135 | P77: 1 | Q77: =_xlfn.TEXTJOIN(";",1,R77:S77) ->  | T77: =IF(R77="","","-"&VLOOKUP(R77,EventConditionConfig!A:C,3,FALSE)&IF(S77="","",CHAR(10)&"-"&VLOOKUP(S77,EventConditionConfig!A:C,3,FALSE))) ->  | U77: =IF(Y77="","",IF(ISTEXT(Y77),1,2)) ->  | V77: =IF(U77=1,_xlfn.TEXTJOIN(";",1,IF(Z77="",A77+1,Z77),IF(AND(AA77<>"",AC77=""),A77+1,AC77),IF(AND(AD77<>"",AF77=""),A77+1,AF77)),IF(U77=2,Y77,"")) ->  | W77: =_xlfn.TEXTJOIN(";",1,X77,AA77,AD77) ->  | X77: =IF(OR(ISNUMBER(Y77),Y77=""),"",MAX(AL76,AL74,B77,D77,L77)+1) ->  | AA77: =IF(OR(ISNUMBER(AB77),AB77=""),"",X77+1) ->  | AD77: =IF(OR(ISNUMBER(AE77),AE77=""),"",AA77+1) ->  | AI77: =IF(A77="","",IF(ISNUMBER(Y77),2,IF(A78="",IF(OR(AK77>0,VLOOKUP(O77,EventConfig!A:C,3,FALSE)=4),3,""),1))) ->  | AJ77: =IF(AI77="","",CHOOSE(AI77,IF(AK77="",A77+1,AK77),CONCATENATE(IF(AK77="",A77+1,AK77),";101"),IF(AK77="",O77+1,AK77))) ->  | AL77: 5074
A79: =O79*100+P79 -> 13601 | B79: 5075 | C79: 使用神识探得资源 | K79: =IF(J79="","",VLOOKUP(J79,EventNPC!A:E,5,FALSE)) ->  | L79: 5076 | M79: 此处仙气缭绕，你用神识一探果然探得丰富资源！ | O79: 136 | P79: 1 | Q79: =_xlfn.TEXTJOIN(";",1,R79:S79) ->  | T79: =IF(R79="","","-"&VLOOKUP(R79,EventConditionConfig!A:C,3,FALSE)&IF(S79="","",CHAR(10)&"-"&VLOOKUP(S79,EventConditionConfig!A:C,3,FALSE))) ->  | U79: =IF(Y79="","",IF(ISTEXT(Y79),1,2)) ->  | V79: =IF(U79=1,_xlfn.TEXTJOIN(";",1,IF(Z79="",A79+1,Z79),IF(AND(AA79<>"",AC79=""),A79+1,AC79),IF(AND(AD79<>"",AF79=""),A79+1,AF79)),IF(U79=2,Y79,"")) ->  | W79: =_xlfn.TEXTJOIN(";",1,X79,AA79,AD79) ->  | AA79: =IF(OR(ISNUMBER(AB79),AB79=""),"",X79+1) ->  | AD79: =IF(OR(ISNUMBER(AE79),AE79=""),"",AA79+1) ->  | AI79: =IF(A79="","",IF(ISNUMBER(Y79),2,IF(A142="",IF(OR(AK79>0,VLOOKUP(O79,EventConfig!A:C,3,FALSE)=4),3,""),1))) -> 1 | AJ79: =IF(AI79="","",CHOOSE(AI79,IF(AK79="",A79+1,AK79),CONCATENATE(IF(AK79="",A79+1,AK79),";101"),IF(AK79="",O79+1,AK79))) -> 13602 | AL79: 5076
T80: =IF(R80="","","-"&VLOOKUP(R80,EventConditionConfig!A:C,3,FALSE)&IF(S80="","",CHAR(10)&"-"&VLOOKUP(S80,EventConditionConfig!A:C,3,FALSE))) ->  | W80: =_xlfn.TEXTJOIN(";",1,X80,AA80,AD80) -> 
A81: =O81*100+P81 -> 13701 | B81: 5077 | C81: 击败妖邪 | K81: =IF(J81="","",VLOOKUP(J81,EventNPC!A:E,5,FALSE)) ->  | L81: 5078 | M81: 你发现一只落单的妖邪，应战！ | O81: 137 | P81: 1 | Q81: =_xlfn.TEXTJOIN(";",1,R81:S81) ->  | T81: =IF(R81="","","-"&VLOOKUP(R81,EventConditionConfig!A:C,3,FALSE)&IF(S81="","",CHAR(10)&"-"&VLOOKUP(S81,EventConditionConfig!A:C,3,FALSE))) ->  | U81: =IF(Y81="","",IF(ISTEXT(Y81),1,2)) -> 2 | V81: =IF(U81=1,_xlfn.TEXTJOIN(";",1,IF(Z81="",A81+1,Z81),IF(AND(AA81<>"",AC81=""),A81+1,AC81),IF(AND(AD81<>"",AF81=""),A81+1,AF81)),IF(U81=2,Y81,"")) -> 5005 | Y81: 5005 | AI81: =IF(A81="","",IF(ISNUMBER(Y81),2,IF(A82="",IF(OR(AK81>0,VLOOKUP(O81,EventConfig!A:C,3,FALSE)=4),3,""),1))) -> 2 | AJ81: =IF(AI81="","",CHOOSE(AI81,IF(AK81="",A81+1,AK81),CONCATENATE(IF(AK81="",A81+1,AK81),";101"),IF(AK81="",O81+1,AK81))) -> 13702;101 | AL81: 5078
A83: =O83*100+P83 -> 13801 | B83: 5079 | C83: 击败妖邪 | K83: =IF(J83="","",VLOOKUP(J83,EventNPC!A:E,5,FALSE)) ->  | L83: 5080 | M83: 你发现一只落单的妖邪，应战！ | O83: 138 | P83: 1 | Q83: =_xlfn.TEXTJOIN(";",1,R83:S83) ->  | T83: =IF(R83="","","-"&VLOOKUP(R83,EventConditionConfig!A:C,3,FALSE)&IF(S83="","",CHAR(10)&"-"&VLOOKUP(S83,EventConditionConfig!A:C,3,FALSE))) ->  | U83: =IF(Y83="","",IF(ISTEXT(Y83),1,2)) -> 2 | V83: =IF(U83=1,_xlfn.TEXTJOIN(";",1,IF(Z83="",A83+1,Z83),IF(AND(AA83<>"",AC83=""),A83+1,AC83),IF(AND(AD83<>"",AF83=""),A83+1,AF83)),IF(U83=2,Y83,"")) -> 5010 | Y83: 5010 | AA83: =IF(OR(ISNUMBER(AB83),AB83=""),"",X83+1) ->  | AD83: =IF(OR(ISNUMBER(AE83),AE83=""),"",AA83+1) ->  | AI83: =IF(A83="","",IF(ISNUMBER(Y83),2,IF(A84="",IF(OR(AK83>0,VLOOKUP(O83,EventConfig!A:C,3,FALSE)=4),3,""),1))) -> 2 | AJ83: =IF(AI83="","",CHOOSE(AI83,IF(AK83="",A83+1,AK83),CONCATENATE(IF(AK83="",A83+1,AK83),";101"),IF(AK83="",O83+1,AK83))) -> 13802;101 | AL83: 5080
A85: =O85*100+P85 -> 13901 | B85: 5081 | C85: 使用神识探得资源 | K85: =IF(J85="","",VLOOKUP(J85,EventNPC!A:E,5,FALSE)) ->  | L85: 5082 | M85: 此处仙气缭绕，你用神识一探果然探得丰富资源！ | O85: 139 | P85: 1 | Q85: =_xlfn.TEXTJOIN(";",1,R85:S85) ->  | T85: =IF(R85="","","-"&VLOOKUP(R85,EventConditionConfig!A:C,3,FALSE)&IF(S85="","",CHAR(10)&"-"&VLOOKUP(S85,EventConditionConfig!A:C,3,FALSE))) ->  | U85: =IF(Y85="","",IF(ISTEXT(Y85),1,2)) ->  | V85: =IF(U85=1,_xlfn.TEXTJOIN(";",1,IF(Z85="",A85+1,Z85),IF(AND(AA85<>"",AC85=""),A85+1,AC85),IF(AND(AD85<>"",AF85=""),A85+1,AF85)),IF(U85=2,Y85,"")) ->  | AA85: =IF(OR(ISNUMBER(AB85),AB85=""),"",X85+1) ->  | AD85: =IF(OR(ISNUMBER(AE85),AE85=""),"",AA85+1) ->  | AI85: =IF(A85="","",IF(ISNUMBER(Y85),2,IF(A86="",IF(OR(AK85>0,VLOOKUP(O85,EventConfig!A:C,3,FALSE)=4),3,""),1))) ->  | AJ85: =IF(AI85="","",CHOOSE(AI85,IF(AK85="",A85+1,AK85),CONCATENATE(IF(AK85="",A85+1,AK85),";101"),IF(AK85="",O85+1,AK85))) ->  | AL85: 5082
A87: =O87*100+P87 -> 14001 | B87: 5083 | C87: 使用神识探得资源 | K87: =IF(J87="","",VLOOKUP(J87,EventNPC!A:E,5,FALSE)) ->  | L87: 5084 | M87: 此处仙气缭绕，你用神识一探果然探得丰富资源！ | O87: 140 | P87: 1 | Q87: =_xlfn.TEXTJOIN(";",1,R87:S87) ->  | T87: =IF(R87="","","-"&VLOOKUP(R87,EventConditionConfig!A:C,3,FALSE)&IF(S87="","",CHAR(10)&"-"&VLOOKUP(S87,EventConditionConfig!A:C,3,FALSE))) ->  | U87: =IF(Y87="","",IF(ISTEXT(Y87),1,2)) ->  | V87: =IF(U87=1,_xlfn.TEXTJOIN(";",1,IF(Z87="",A87+1,Z87),IF(AND(AA87<>"",AC87=""),A87+1,AC87),IF(AND(AD87<>"",AF87=""),A87+1,AF87)),IF(U87=2,Y87,"")) ->  | AA87: =IF(OR(ISNUMBER(AB87),AB87=""),"",X87+1) ->  | AD87: =IF(OR(ISNUMBER(AE87),AE87=""),"",AA87+1) ->  | AI87: =IF(A87="","",IF(ISNUMBER(Y87),2,IF(A88="",IF(OR(AK87>0,VLOOKUP(O87,EventConfig!A:C,3,FALSE)=4),3,""),1))) ->  | AJ87: =IF(AI87="","",CHOOSE(AI87,IF(AK87="",A87+1,AK87),CONCATENATE(IF(AK87="",A87+1,AK87),";101"),IF(AK87="",O87+1,AK87))) ->  | AL87: 5084
A89: =O89*100+P89 -> 14101 | B89: 5085 | C89: 使用神识探得资源 | K89: =IF(J89="","",VLOOKUP(J89,EventNPC!A:E,5,FALSE)) ->  | L89: 5086 | M89: 此处仙气缭绕，你用神识一探果然探得丰富资源！ | O89: 141 | P89: 1 | Q89: =_xlfn.TEXTJOIN(";",1,R89:S89) ->  | T89: =IF(R89="","","-"&VLOOKUP(R89,EventConditionConfig!A:C,3,FALSE)&IF(S89="","",CHAR(10)&"-"&VLOOKUP(S89,EventConditionConfig!A:C,3,FALSE))) ->  | U89: =IF(Y89="","",IF(ISTEXT(Y89),1,2)) ->  | V89: =IF(U89=1,_xlfn.TEXTJOIN(";",1,IF(Z89="",A89+1,Z89),IF(AND(AA89<>"",AC89=""),A89+1,AC89),IF(AND(AD89<>"",AF89=""),A89+1,AF89)),IF(U89=2,Y89,"")) ->  | AA89: =IF(OR(ISNUMBER(AB89),AB89=""),"",X89+1) ->  | AD89: =IF(OR(ISNUMBER(AE89),AE89=""),"",AA89+1) ->  | AI89: =IF(A89="","",IF(ISNUMBER(Y89),2,IF(A90="",IF(OR(AK89>0,VLOOKUP(O89,EventConfig!A:C,3,FALSE)=4),3,""),1))) ->  | AJ89: =IF(AI89="","",CHOOSE(AI89,IF(AK89="",A89+1,AK89),CONCATENATE(IF(AK89="",A89+1,AK89),";101"),IF(AK89="",O89+1,AK89))) ->  | AL89: 5086
A91: =O91*100+P91 -> 14201 | B91: 5087 | C91: 使用神识探得资源 | K91: =IF(J91="","",VLOOKUP(J91,EventNPC!A:E,5,FALSE)) ->  | L91: 5088 | M91: 此处仙气缭绕，你用神识一探果然探得丰富资源！ | O91: 142 | P91: 1 | Q91: =_xlfn.TEXTJOIN(";",1,R91:S91) ->  | T91: =IF(R91="","","-"&VLOOKUP(R91,EventConditionConfig!A:C,3,FALSE)&IF(S91="","",CHAR(10)&"-"&VLOOKUP(S91,EventConditionConfig!A:C,3,FALSE))) ->  | U91: =IF(Y91="","",IF(ISTEXT(Y91),1,2)) ->  | V91: =IF(U91=1,_xlfn.TEXTJOIN(";",1,IF(Z91="",A91+1,Z91),IF(AND(AA91<>"",AC91=""),A91+1,AC91),IF(AND(AD91<>"",AF91=""),A91+1,AF91)),IF(U91=2,Y91,"")) ->  | AA91: =IF(OR(ISNUMBER(AB91),AB91=""),"",X91+1) ->  | AD91: =IF(OR(ISNUMBER(AE91),AE91=""),"",AA91+1) ->  | AI91: =IF(A91="","",IF(ISNUMBER(Y91),2,IF(A154="",IF(OR(AK91>0,VLOOKUP(O91,EventConfig!A:C,3,FALSE)=4),3,""),1))) -> 1 | AJ91: =IF(AI91="","",CHOOSE(AI91,IF(AK91="",A91+1,AK91),CONCATENATE(IF(AK91="",A91+1,AK91),";101"),IF(AK91="",O91+1,AK91))) -> 14202 | AL91: 5088
A93: =O93*100+P93 -> 14301 | B93: 5089 | C93: 使用神识探得资源 | K93: =IF(J93="","",VLOOKUP(J93,EventNPC!A:E,5,FALSE)) ->  | L93: 5090 | M93: 此处仙气缭绕，你用神识一探果然探得丰富资源！ | O93: 143 | P93: 1 | Q93: =_xlfn.TEXTJOIN(";",1,R93:S93) ->  | T93: =IF(R93="","","-"&VLOOKUP(R93,EventConditionConfig!A:C,3,FALSE)&IF(S93="","",CHAR(10)&"-"&VLOOKUP(S93,EventConditionConfig!A:C,3,FALSE))) ->  | U93: =IF(Y93="","",IF(ISTEXT(Y93),1,2)) ->  | V93: =IF(U93=1,_xlfn.TEXTJOIN(";",1,IF(Z93="",A93+1,Z93),IF(AND(AA93<>"",AC93=""),A93+1,AC93),IF(AND(AD93<>"",AF93=""),A93+1,AF93)),IF(U93=2,Y93,"")) ->  | AA93: =IF(OR(ISNUMBER(AB93),AB93=""),"",X93+1) ->  | AD93: =IF(OR(ISNUMBER(AE93),AE93=""),"",AA93+1) ->  | AI93: =IF(A93="","",IF(ISNUMBER(Y93),2,IF(A94="",IF(OR(AK93>0,VLOOKUP(O93,EventConfig!A:C,3,FALSE)=4),3,""),1))) ->  | AJ93: =IF(AI93="","",CHOOSE(AI93,IF(AK93="",A93+1,AK93),CONCATENATE(IF(AK93="",A93+1,AK93),";101"),IF(AK93="",O93+1,AK93))) ->  | AL93: 5090
A95: =O95*100+P95 -> 14401 | B95: 5091 | C95: 使用神识探得资源 | K95: =IF(J95="","",VLOOKUP(J95,EventNPC!A:E,5,FALSE)) ->  | L95: 5092 | M95: 此处仙气缭绕，你用神识一探果然探得丰富资源！ | O95: 144 | P95: 1 | Q95: =_xlfn.TEXTJOIN(";",1,R95:S95) ->  | T95: =IF(R95="","","-"&VLOOKUP(R95,EventConditionConfig!A:C,3,FALSE)&IF(S95="","",CHAR(10)&"-"&VLOOKUP(S95,EventConditionConfig!A:C,3,FALSE))) ->  | U95: =IF(Y95="","",IF(ISTEXT(Y95),1,2)) ->  | V95: =IF(U95=1,_xlfn.TEXTJOIN(";",1,IF(Z95="",A95+1,Z95),IF(AND(AA95<>"",AC95=""),A95+1,AC95),IF(AND(AD95<>"",AF95=""),A95+1,AF95)),IF(U95=2,Y95,"")) ->  | X95: =IF(OR(ISNUMBER(Y95),Y95=""),"",MAX(AL94,AL92,B95,D95,L95)+1) ->  | AA95: =IF(OR(ISNUMBER(AB95),AB95=""),"",X95+1) ->  | AD95: =IF(OR(ISNUMBER(AE95),AE95=""),"",AA95+1) ->  | AI95: =IF(A95="","",IF(ISNUMBER(Y95),2,IF(A96="",IF(OR(AK95>0,VLOOKUP(O95,EventConfig!A:C,3,FALSE)=4),3,""),1))) ->  | AJ95: =IF(AI95="","",CHOOSE(AI95,IF(AK95="",A95+1,AK95),CONCATENATE(IF(AK95="",A95+1,AK95),";101"),IF(AK95="",O95+1,AK95))) ->  | AL95: 5092
A97: =O97*100+P97 -> 14501 | B97: 5093 | C97: 使用神识探得资源 | K97: =IF(J97="","",VLOOKUP(J97,EventNPC!A:E,5,FALSE)) ->  | L97: 5094 | M97: 此处仙气缭绕，你用神识一探果然探得丰富资源！ | O97: 145 | P97: 1 | Q97: =_xlfn.TEXTJOIN(";",1,R97:S97) ->  | T97: =IF(R97="","","-"&VLOOKUP(R97,EventConditionConfig!A:C,3,FALSE)&IF(S97="","",CHAR(10)&"-"&VLOOKUP(S97,EventConditionConfig!A:C,3,FALSE))) ->  | U97: =IF(Y97="","",IF(ISTEXT(Y97),1,2)) ->  | V97: =IF(U97=1,_xlfn.TEXTJOIN(";",1,IF(Z97="",A97+1,Z97),IF(AND(AA97<>"",AC97=""),A97+1,AC97),IF(AND(AD97<>"",AF97=""),A97+1,AF97)),IF(U97=2,Y97,"")) ->  | X97: =IF(OR(ISNUMBER(Y97),Y97=""),"",MAX(AL96,AL94,B97,D97,L97)+1) ->  | AA97: =IF(OR(ISNUMBER(AB97),AB97=""),"",X97+1) ->  | AD97: =IF(OR(ISNUMBER(AE97),AE97=""),"",AA97+1) ->  | AI97: =IF(A97="","",IF(ISNUMBER(Y97),2,IF(A160="",IF(OR(AK97>0,VLOOKUP(O97,EventConfig!A:C,3,FALSE)=4),3,""),1))) ->  | AJ97: =IF(AI97="","",CHOOSE(AI97,IF(AK97="",A97+1,AK97),CONCATENATE(IF(AK97="",A97+1,AK97),";101"),IF(AK97="",O97+1,AK97))) ->  | AL97: 5094
B98: =IF(C98="","",IF(C98=C53,B53,MAX(AL53,AL52)+1)) ->  | D98: =IF(E98="","",IF(E98=E53,D53,MAX(AL53,AL52,B98)+1)) ->  | L98: =IF(M98="","",MAX(AL53,AL52,B98,D98)+1) ->  | P98: =IF(O98="","",IF(O98=O53,P53+1,1)) ->  | Q98: =_xlfn.TEXTJOIN(";",1,R98:S98) ->  | T98: =IF(R98="","","-"&VLOOKUP(R98,EventConditionConfig!A:C,3,FALSE)&IF(S98="","",CHAR(10)&"-"&VLOOKUP(S98,EventConditionConfig!A:C,3,FALSE))) ->  | X98: =IF(OR(ISNUMBER(Y98),Y98=""),"",MAX(AL53,AL52,B98,D98,L98)+1) ->  | AA98: =IF(OR(ISNUMBER(AB98),AB98=""),"",X98+1) ->  | AD98: =IF(OR(ISNUMBER(AE98),AE98=""),"",AA98+1) -> 
A99: =O99*100+P99 -> 1101 | B99: =IF(C99="","",IF(C99=C80,B80,MAX(AL80,AL35)+1)) ->  | D99: =IF(E99="","",IF(E99=E80,D80,MAX(AL80,AL35,B99)+1)) ->  | L99: =IF(M99="","",MAX(AL80,AL35,B99,D99)+1) -> 5033 | M99: 你遇到一只拦路的妖兽，它看起来饥肠辘辘 | O99: 11 | P99: =IF(O99="","",IF(O99=O80,P80+1,1)) -> 1 | T99: =IF(R99="","","-"&VLOOKUP(R99,EventConditionConfig!A:C,3,FALSE)&IF(S99="","",CHAR(10)&"-"&VLOOKUP(S99,EventConditionConfig!A:C,3,FALSE))) ->  | X99: =IF(OR(ISNUMBER(Y99),Y99=""),"",MAX(AL80,AL35,B99,D99,L99)+1) ->  | AI99: 1 | AJ99: =A100 -> 1102 | AL99: 5094
A100: =O100*100+P100 -> 1102 | B100: =IF(C100="","",IF(C100=C99,B99,MAX(AL99,AL80)+1)) ->  | D100: =IF(E100="","",IF(E100=E99,D99,MAX(AL99,AL80,B100)+1)) ->  | L100: =IF(M100="","",MAX(AL99,AL80,B100,D100)+1) -> 5095 | M100: 你扔出一块鹿肉，趁它抢食之际，你祭出腰间的法宝 | O100: 11 | P100: 2 | T100: =IF(R100="","","-"&VLOOKUP(R100,EventConditionConfig!A:C,3,FALSE)&IF(S100="","",CHAR(10)&"-"&VLOOKUP(S100,EventConditionConfig!A:C,3,FALSE))) ->  | X100: =IF(OR(ISNUMBER(Y100),Y100=""),"",MAX(AL99,AL80,B100,D100,L100)+1) ->  | AI100: 1 | AJ100: =A101 -> 1103 | AL100: 5095
A101: =O101*100+P101 -> 1103 | L101: 5096 | M101: 你成功诱捕了怪物，并从它身上吸取了一些修为 | O101: 11 | P101: 3 | Q101: =_xlfn.TEXTJOIN(";",1,R101:S101) ->  | T101: =IF(R101="","","-"&VLOOKUP(R101,EventConditionConfig!A:C,3,FALSE)&IF(S101="","",CHAR(10)&"-"&VLOOKUP(S101,EventConditionConfig!A:C,3,FALSE))) ->  | AL101: 5096
T102: =IF(R102="","","-"&VLOOKUP(R102,EventConditionConfig!A:C,3,FALSE)&IF(S102="","",CHAR(10)&"-"&VLOOKUP(S102,EventConditionConfig!A:C,3,FALSE))) -> 
A103: =O103*100+P103 -> 1201 | L103: 5097 | M103: 你偶遇一处仙气四溢无人生活的洞穴 | O103: 12 | P103: 1 | T103: =IF(R103="","","-"&VLOOKUP(R103,EventConditionConfig!A:C,3,FALSE)&IF(S103="","",CHAR(10)&"-"&VLOOKUP(S103,EventConditionConfig!A:C,3,FALSE))) ->  | AI103: 1 | AJ103: =A104 -> 1202 | AL103: 5097
A104: =O104*100+P104 -> 1202 | L104: 5098 | M104: 不知哪位高人在洞穴内壁留下绝世秘籍 | O104: 12 | P104: 2 | T104: =IF(R104="","","-"&VLOOKUP(R104,EventConditionConfig!A:C,3,FALSE)&IF(S104="","",CHAR(10)&"-"&VLOOKUP(S104,EventConditionConfig!A:C,3,FALSE))) ->  | AI104: 1 | AJ104: =A105 -> 1203 | AL104: 5098
A105: =O105*100+P105 -> 1203 | L105: 5099 | M105: 你仔细研读后，功法得到精进 | O105: 12 | P105: 3 | T105: =IF(R105="","","-"&VLOOKUP(R105,EventConditionConfig!A:C,3,FALSE)&IF(S105="","",CHAR(10)&"-"&VLOOKUP(S105,EventConditionConfig!A:C,3,FALSE))) ->  | AL105: 5099
T106: =IF(R106="","","-"&VLOOKUP(R106,EventConditionConfig!A:C,3,FALSE)&IF(S106="","",CHAR(10)&"-"&VLOOKUP(S106,EventConditionConfig!A:C,3,FALSE))) -> 
A107: =O107*100+P107 -> 1301 | L107: 5100 | M107: 你偶然发现一只枯萎的葫芦，但泛着蓝光 | O107: 13 | P107: 1 | T107: =IF(R107="","","-"&VLOOKUP(R107,EventConditionConfig!A:C,3,FALSE)&IF(S107="","",CHAR(10)&"-"&VLOOKUP(S107,EventConditionConfig!A:C,3,FALSE))) ->  | AI107: 1 | AJ107: =A108 -> 1302 | AL107: 5100
A108: =O108*100+P108 -> 1302 | L108: 5101 | M108: 好奇的你凑近一看，不知谁将这件法宝遗落于此 | O108: 13 | P108: 2 | T108: =IF(R108="","","-"&VLOOKUP(R108,EventConditionConfig!A:C,3,FALSE)&IF(S108="","",CHAR(10)&"-"&VLOOKUP(S108,EventConditionConfig!A:C,3,FALSE))) ->  | AI108: 1 | AJ108: =A109 -> 1303 | AL108: 5101
A109: =O109*100+P109 -> 1303 | L109: 5102 | M109: 但法宝已经枯竭，你后悔没有早点发现它 | O109: 13 | P109: 3 | T109: =IF(R109="","","-"&VLOOKUP(R109,EventConditionConfig!A:C,3,FALSE)&IF(S109="","",CHAR(10)&"-"&VLOOKUP(S109,EventConditionConfig!A:C,3,FALSE))) ->  | AI109: 1 | AJ109: =A110 -> 1304 | AL109: 5102
A110: =O110*100+P110 -> 1304 | L110: 5103 | M110: 最后你从法宝中回收了一些玄晶 | O110: 13 | P110: 4 | T110: =IF(R110="","","-"&VLOOKUP(R110,EventConditionConfig!A:C,3,FALSE)&IF(S110="","",CHAR(10)&"-"&VLOOKUP(S110,EventConditionConfig!A:C,3,FALSE))) ->  | AL110: 5103
T111: =IF(R111="","","-"&VLOOKUP(R111,EventConditionConfig!A:C,3,FALSE)&IF(S111="","",CHAR(10)&"-"&VLOOKUP(S111,EventConditionConfig!A:C,3,FALSE))) -> 
A112: =O112*100+P112 -> 1401 | L112: 5104 | M112: 你路过一座矿山，一个闪光点引起了你的注意 | O112: 14 | P112: 1 | Q112: =_xlfn.TEXTJOIN(";",1,R112:S112) ->  | T112: =IF(R112="","","-"&VLOOKUP(R112,EventConditionConfig!A:C,3,FALSE)&IF(S112="","",CHAR(10)&"-"&VLOOKUP(S112,EventConditionConfig!A:C,3,FALSE))) ->  | AI112: 1 | AJ112: =A113 -> 1402 | AL112: 5104
A113: =O113*100+P113 -> 1402 | L113: 5105 | M113: 原来这是一颗珍贵的绿玛瑙 | O113: 14 | P113: 2 | Q113: =_xlfn.TEXTJOIN(";",1,R113:S113) ->  | T113: =IF(R113="","","-"&VLOOKUP(R113,EventConditionConfig!A:C,3,FALSE)&IF(S113="","",CHAR(10)&"-"&VLOOKUP(S113,EventConditionConfig!A:C,3,FALSE))) ->  | AI113: 1 | AJ113: =A114 -> 1403 | AL113: 5105
A114: =O114*100+P114 -> 1403 | L114: 5106 | M114: 你祭出法宝，将它转化成一些灵石 | O114: 14 | P114: 3 | Q114: =_xlfn.TEXTJOIN(";",1,R114:S114) ->  | T114: =IF(R114="","","-"&VLOOKUP(R114,EventConditionConfig!A:C,3,FALSE)&IF(S114="","",CHAR(10)&"-"&VLOOKUP(S114,EventConditionConfig!A:C,3,FALSE))) ->  | AL114: 5106
A116: =O116*100+P116 -> 1501 | L116: 5107 | M116: 漫漫旅途，你通过神识释放增进不少阅历 | O116: 15 | P116: 1 | Q116: =_xlfn.TEXTJOIN(";",1,R116:S116) ->  | T116: =IF(R116="","","-"&VLOOKUP(R116,EventConditionConfig!A:C,3,FALSE)&IF(S116="","",CHAR(10)&"-"&VLOOKUP(S116,EventConditionConfig!A:C,3,FALSE))) ->  | AI116: 1 | AJ116: =A117 -> 1502 | AL116: 5107
A117: =O117*100+P117 -> 1502 | L117: 5108 | M117: 但随之而来的是神识用尽的空虚感 | O117: 15 | P117: 2 | Q117: =_xlfn.TEXTJOIN(";",1,R117:S117) ->  | T117: =IF(R117="","","-"&VLOOKUP(R117,EventConditionConfig!A:C,3,FALSE)&IF(S117="","",CHAR(10)&"-"&VLOOKUP(S117,EventConditionConfig!A:C,3,FALSE))) ->  | AI117: 1 | AJ117: =A118 -> 1503 | AL117: 5108
A118: =O118*100+P118 -> 1503 | L118: 5109 | M118: 但这种感受何尝又不是一种新的阅历呢 | O118: 15 | P118: 3 | Q118: =_xlfn.TEXTJOIN(";",1,R118:S118) ->  | T118: =IF(R118="","","-"&VLOOKUP(R118,EventConditionConfig!A:C,3,FALSE)&IF(S118="","",CHAR(10)&"-"&VLOOKUP(S118,EventConditionConfig!A:C,3,FALSE))) ->  | AI118: 1 | AJ118: =A119 -> 1504 | AL118: 5109
A119: =O119*100+P119 -> 1504 | L119: 5110 | M119: 你将这些新的感悟存进了一颗神识丹 | O119: 15 | P119: 4 | Q119: =_xlfn.TEXTJOIN(";",1,R119:S119) ->  | T119: =IF(R119="","","-"&VLOOKUP(R119,EventConditionConfig!A:C,3,FALSE)&IF(S119="","",CHAR(10)&"-"&VLOOKUP(S119,EventConditionConfig!A:C,3,FALSE))) ->  | AL119: 5110
A121: =O121*100+P121 -> 1601 | L121: 5111 | M121: 两只体型硕大的妖兽正在为了一颗灵丹而缠斗 | O121: 16 | P121: 1 | Q121: =_xlfn.TEXTJOIN(";",1,R121:S121) ->  | T121: =IF(R121="","","-"&VLOOKUP(R121,EventConditionConfig!A:C,3,FALSE)&IF(S121="","",CHAR(10)&"-"&VLOOKUP(S121,EventConditionConfig!A:C,3,FALSE))) ->  | AI121: 1 | AJ121: =A122 -> 1602 | AL121: 5111
A122: =O122*100+P122 -> 1602 | L122: 5112 | M122: 突然一道闪电自天而降，正中两只妖兽 | O122: 16 | P122: 2 | Q122: =_xlfn.TEXTJOIN(";",1,R122:S122) ->  | T122: =IF(R122="","","-"&VLOOKUP(R122,EventConditionConfig!A:C,3,FALSE)&IF(S122="","",CHAR(10)&"-"&VLOOKUP(S122,EventConditionConfig!A:C,3,FALSE))) ->  | AI122: 1 | AJ122: =A123 -> 1603 | AL122: 5112
A123: =O123*100+P123 -> 1603 | L123: 5113 | M123: 何其悲哉，念完往生咒，你顺手拿走了这颗珍贵的妖丹 | O123: 16 | P123: 3 | Q123: =_xlfn.TEXTJOIN(";",1,R123:S123) ->  | T123: =IF(R123="","","-"&VLOOKUP(R123,EventConditionConfig!A:C,3,FALSE)&IF(S123="","",CHAR(10)&"-"&VLOOKUP(S123,EventConditionConfig!A:C,3,FALSE))) ->  | AL123: 5113
A125: 9003 | L125: 5114 | M125: 你在闭关修炼时，感受到一股凌厉的剑意波动。深入探查，发现一名白衣剑修“清霜”盘坐于谷中，周围剑气环绕，正与一柄散发不祥气息的灵剑对峙。她似在参悟剑诀，却灵气不足，剑灵桀骜。 | T125: =IF(R125="","","-"&VLOOKUP(R125,EventConditionConfig!A:C,3,FALSE)&IF(S125="","",CHAR(10)&"-"&VLOOKUP(S125,EventConditionConfig!A:C,3,FALSE))) ->  | U125: 1 | V125: 9004;9006 | W125: 2041;2042 | AL125: 5114
A126: 9004 | L126: 5115 | M126: 你上前以剑意对抗剑灵 | T126: =IF(R126="","","-"&VLOOKUP(R126,EventConditionConfig!A:C,3,FALSE)&IF(S126="","",CHAR(10)&"-"&VLOOKUP(S126,EventConditionConfig!A:C,3,FALSE))) ->  | U126: 2 | V126: 100001 | AI126: 2 | AJ126: 9005;100 | AL126: 5115
A127: 9005 | L127: 5116 | M127: 成功压制剑灵，清霜赠你“霜华剑符”并结下道友之谊 | T127: =IF(R127="","","-"&VLOOKUP(R127,EventConditionConfig!A:C,3,FALSE)&IF(S127="","",CHAR(10)&"-"&VLOOKUP(S127,EventConditionConfig!A:C,3,FALSE))) ->  | AL127: 5116
A128: 9006 | L128: 5117 | M128: 你察觉谷中灵气匮乏，清霜剑意凝滞。神识探查得知，附近秘境可采集“玄冰花” | T128: =IF(R128="","","-"&VLOOKUP(R128,EventConditionConfig!A:C,3,FALSE)&IF(S128="","",CHAR(10)&"-"&VLOOKUP(S128,EventConditionConfig!A:C,3,FALSE))) ->  | AL128: 5117
A129: 9007 | L129: 5118 | M129: 献上玄冰花，清霜炼化灵气突破瓶颈，赠你“玄霜剑意” | T129: =IF(R129="","","-"&VLOOKUP(R129,EventConditionConfig!A:C,3,FALSE)&IF(S129="","",CHAR(10)&"-"&VLOOKUP(S129,EventConditionConfig!A:C,3,FALSE))) ->  | AI129: 1 | AJ129: 9007 | AL129: 5118
A130: 9008 | T130: =IF(R130="","","-"&VLOOKUP(R130,EventConditionConfig!A:C,3,FALSE)&IF(S130="","",CHAR(10)&"-"&VLOOKUP(S130,EventConditionConfig!A:C,3,FALSE))) ->  | U130: 3 | AG130: 1001 | AH130: 999 | AL130: 5118
T131: =IF(R131="","","-"&VLOOKUP(R131,EventConditionConfig!A:C,3,FALSE)&IF(S131="","",CHAR(10)&"-"&VLOOKUP(S131,EventConditionConfig!A:C,3,FALSE))) -> 
A132: 9025 | B132: =IF(C132="","",IF(C132=C131,B131,MAX(AL131,AL130)+1)) ->  | D132: =IF(E132="","",IF(E132=E131,D131,MAX(AL131,AL130,B132)+1)) -> 5119 | E132: 和惠子交谈 | L132: =IF(M132="","",MAX(AL131,AL130,B132,D132)+1) -> 5120 | M132: 惠子种的葫芦没用，他非常生气，需要打败魔休 | P132: =IF(O132="","",IF(O132=O131,P131+1,1)) ->  | T132: =IF(R132="","","-"&VLOOKUP(R132,EventConditionConfig!A:C,3,FALSE)&IF(S132="","",CHAR(10)&"-"&VLOOKUP(S132,EventConditionConfig!A:C,3,FALSE))) ->  | U132: 1 | V132: 9026 | W132: 2075 | X132: =IF(OR(ISNUMBER(Y132),Y132=""),"",MAX(AL131,AL130,B132,D132,L132)+1) ->  | AA132: =IF(OR(ISNUMBER(AB132),AB132=""),"",X132+1) ->  | AD132: =IF(OR(ISNUMBER(AE132),AE132=""),"",AA132+1) ->  | AL132: 5120
A133: 9026 | L133: 5121 | M133: 选择后接新的事件 | T133: =IF(R133="","","-"&VLOOKUP(R133,EventConditionConfig!A:C,3,FALSE)&IF(S133="","",CHAR(10)&"-"&VLOOKUP(S133,EventConditionConfig!A:C,3,FALSE))) ->  | X133: 5122 | Y133: 接受任务 | AI133: 3 | AJ133: 9014 | AL133: 5122
T134: =IF(R134="","","-"&VLOOKUP(R134,EventConditionConfig!A:C,3,FALSE)&IF(S134="","",CHAR(10)&"-"&VLOOKUP(S134,EventConditionConfig!A:C,3,FALSE))) ->  | AL134: =IF(A134="","",MAX(B134,D134,L134,X134,AA134,AL133,AL132,AD134)) -> 
A135: 9014 | D135: 5123 | E135: 击杀魔休 | Q135: 3 | R135: 3 | T135: =IF(R135="","","-"&VLOOKUP(R135,EventConditionConfig!A:C,3,FALSE)&IF(S135="","",CHAR(10)&"-"&VLOOKUP(S135,EventConditionConfig!A:C,3,FALSE))) -> -击杀魔休 | AL135: 5123
Q136: =_xlfn.TEXTJOIN(";",1,R136:S136) ->  | T136: =IF(R136="","","-"&VLOOKUP(R136,EventConditionConfig!A:C,3,FALSE)&IF(S136="","",CHAR(10)&"-"&VLOOKUP(S136,EventConditionConfig!A:C,3,FALSE))) -> 
A137: 9031 | B137: 5124 | C137: 出现Boss魔修 | D137: 5125 | E137: 打败魔修 | T137: =IF(R137="","","-"&VLOOKUP(R137,EventConditionConfig!A:C,3,FALSE)&IF(S137="","",CHAR(10)&"-"&VLOOKUP(S137,EventConditionConfig!A:C,3,FALSE))) ->  | U137: 2 | V137: 100001 | AL137: 5125
A139: =O139*100+P139 -> 1000001 | B139: =IF(C139="","",IF(C139=C138,B138,MAX(AL138,AL137)+1)) ->  | K139: =IF(J139="","",VLOOKUP(J139,EventNPC!A:E,5,FALSE)) ->  | L139: 5126 | M139: （渡劫失败后，悬浮于混沌虚空，破碎道袍微微飘动，丹田空虚。） | O139: 10000 | P139: =IF(O139="","",IF(O139=O138,P138+1,1)) -> 1 | Q139: =_xlfn.TEXTJOIN(";",1,R139:S139) ->  | T139: =IF(R139="","","-"&VLOOKUP(R139,EventConditionConfig!A:C,3,FALSE)&IF(S139="","",CHAR(10)&"-"&VLOOKUP(S139,EventConditionConfig!A:C,3,FALSE))) ->  | U139: =IF(Y139="","",IF(ISTEXT(Y139),1,2)) ->  | V139: =IF(U139=1,_xlfn.TEXTJOIN(";",1,IF(Z139="",A139+1,Z139),IF(AND(AA139<>"",AC139=""),A139+1,AC139),IF(AND(AD139<>"",AF139=""),A139+1,AF139)),IF(U139=2,Y139,"")) ->  | W139: =_xlfn.TEXTJOIN(";",1,X139,AA139,AD139) ->  | X139: =IF(OR(ISNUMBER(Y139),Y139=""),"",MAX(AL138,AL136,B139,D139,L139)+1) ->  | AA139: =IF(OR(ISNUMBER(AB139),AB139=""),"",X139+1) ->  | AD139: =IF(OR(ISNUMBER(AE139),AE139=""),"",AA139+1) ->  | AI139: =IF(A139="","",IF(ISNUMBER(Y139),2,IF(A140="",IF(OR(AK139>0,VLOOKUP(O139,EventConfig!A:C,3,FALSE)=4),3,""),1))) -> 1 | AJ139: =IF(AI139="","",CHOOSE(AI139,IF(AK139="",A139+1,AK139),CONCATENATE(IF(AK139="",A139+1,AK139),";101"),IF(AK139="",O139+1,AK139))) -> 1000002 | AL139: 5126
A140: 1000002 | J140: 100 | K140: =IF(J140="","",VLOOKUP(J140,EventNPC!A:E,5,FALSE)) -> 玩家 | L140: 5127 | M140: 还是做不到吗……多次渡劫，又功亏一篑！ | O140: 10000 | P140: 2 | T140: =IF(R140="","","-"&VLOOKUP(R140,EventConditionConfig!A:C,3,FALSE)&IF(S140="","",CHAR(10)&"-"&VLOOKUP(S140,EventConditionConfig!A:C,3,FALSE))) ->  | V140: =IF(U140=1,_xlfn.TEXTJOIN(";",1,IF(Z140="",A140+1,Z140),IF(AND(AA140<>"",AC140=""),A140+1,AC140),IF(AND(AD140<>"",AF140=""),A140+1,AF140)),IF(U140=2,Y140,"")) ->  | W140: =_xlfn.TEXTJOIN(";",1,X140,AA140,AD140) ->  | AI140: =IF(A140="","",IF(ISNUMBER(Y140),2,IF(A141="",IF(OR(AK140>0,VLOOKUP(O140,EventConfig!A:C,3,FALSE)=4),3,""),1))) -> 1 | AJ140: =IF(AI140="","",CHOOSE(AI140,IF(AK140="",A140+1,AK140),CONCATENATE(IF(AK140="",A140+1,AK140),";101"),IF(AK140="",O140+1,AK140))) -> 1000003 | AL140: 5127
A141: 1000003 | J141: 100 | K141: =IF(J141="","",VLOOKUP(J141,EventNPC!A:E,5,FALSE)) -> 玩家 | L141: 5128 | M141: 好在神魂未灭，不过一身修为几乎散尽，只剩练气修为…… | O141: 10000 | P141: 3 | T141: =IF(R141="","","-"&VLOOKUP(R141,EventConditionConfig!A:C,3,FALSE)&IF(S141="","",CHAR(10)&"-"&VLOOKUP(S141,EventConditionConfig!A:C,3,FALSE))) ->  | AI141: =IF(A141="","",IF(ISNUMBER(Y141),2,IF(A142="",IF(OR(AK141>0,VLOOKUP(O141,EventConfig!A:C,3,FALSE)=4),3,""),1))) -> 1 | AJ141: 1000004 | AL141: 5128
A142: 1000004 | J142: 100 | K142: =IF(J142="","",VLOOKUP(J142,EventNPC!A:E,5,FALSE)) -> 玩家 | L142: 5129 | M142: 此处是何地？ | O142: 10000 | P142: 4 | T142: =IF(R142="","","-"&VLOOKUP(R142,EventConditionConfig!A:C,3,FALSE)&IF(S142="","",CHAR(10)&"-"&VLOOKUP(S142,EventConditionConfig!A:C,3,FALSE))) ->  | AI142: =IF(A142="","",IF(ISNUMBER(Y142),2,IF(A143="",IF(OR(AK142>0,VLOOKUP(O142,EventConfig!A:C,3,FALSE)=4),3,""),1))) -> 1 | AJ142: 1000005 | AL142: 5129
A143: 1000005 | K143: =IF(J143="","",VLOOKUP(J143,EventNPC!A:E,5,FALSE)) ->  | L143: 5130 | M143: （虚空中，一块石碑若隐若现，上书：“无何有之乡”。） | O143: 10000 | P143: 5 | T143: =IF(R143="","","-"&VLOOKUP(R143,EventConditionConfig!A:C,3,FALSE)&IF(S143="","",CHAR(10)&"-"&VLOOKUP(S143,EventConditionConfig!A:C,3,FALSE))) ->  | AI143: =IF(A143="","",IF(ISNUMBER(Y143),2,IF(A144="",IF(OR(AK143>0,VLOOKUP(O143,EventConfig!A:C,3,FALSE)=4),3,""),1))) -> 1 | AJ143: 1000006 | AL143: 5130
A144: 1000006 | K144: =IF(J144="","",VLOOKUP(J144,EventNPC!A:E,5,FALSE)) ->  | L144: 5131 | M144: （忽然，一本古卷从天而落，落入掌中） | O144: 10000 | P144: 6 | T144: =IF(R144="","","-"&VLOOKUP(R144,EventConditionConfig!A:C,3,FALSE)&IF(S144="","",CHAR(10)&"-"&VLOOKUP(S144,EventConditionConfig!A:C,3,FALSE))) ->  | AI144: =IF(A144="","",IF(ISNUMBER(Y144),2,IF(A145="",IF(OR(AK144>0,VLOOKUP(O144,EventConfig!A:C,3,FALSE)=4),3,""),1))) -> 1 | AJ144: 1000007 | AL144: 5131
A145: 1000007 | K145: =IF(J145="","",VLOOKUP(J145,EventNPC!A:E,5,FALSE)) ->  | L145: 5132 | M145: （书封斑驳，触之微凉，似有灵气流转） | O145: 10000 | P145: 7 | T145: =IF(R145="","","-"&VLOOKUP(R145,EventConditionConfig!A:C,3,FALSE)&IF(S145="","",CHAR(10)&"-"&VLOOKUP(S145,EventConditionConfig!A:C,3,FALSE))) ->  | AI145: =IF(A145="","",IF(ISNUMBER(Y145),2,IF(A146="",IF(OR(AK145>0,VLOOKUP(O145,EventConfig!A:C,3,FALSE)=4),3,""),1))) -> 1 | AJ145: 1000008 | AL145: 5132
A146: =O146*100+P146 -> 1000008 | K146: =IF(J146="","",VLOOKUP(J146,EventNPC!A:E,5,FALSE)) ->  | L146: 5133 | M146: （你翻开书页，不自觉的低声诵读..） | O146: 10000 | P146: =IF(O146="","",IF(O146=O145,P145+1,1)) -> 8 | Q146: =_xlfn.TEXTJOIN(";",1,R146:S146) ->  | T146: =IF(R146="","","-"&VLOOKUP(R146,EventConditionConfig!A:C,3,FALSE)&IF(S146="","",CHAR(10)&"-"&VLOOKUP(S146,EventConditionConfig!A:C,3,FALSE))) ->  | U146: =IF(Y146="","",IF(ISTEXT(Y146),1,2)) ->  | AI146: =IF(A146="","",IF(ISNUMBER(Y146),2,IF(A147="",IF(OR(AK146>0,VLOOKUP(O146,EventConfig!A:C,3,FALSE)=4),3,""),1))) -> 1 | AJ146: 1000009 | AL146: 5133
A147: 1000009 | J147: 100 | K147: =IF(J147="","",VLOOKUP(J147,EventNPC!A:E,5,FALSE)) -> 玩家 | L147: 5134 | M147: 北冥有鱼，其名为鲲。鲲之大，不知其几千里也…… | O147: 10000 | P147: 9 | T147: =IF(R147="","","-"&VLOOKUP(R147,EventConditionConfig!A:C,3,FALSE)&IF(S147="","",CHAR(10)&"-"&VLOOKUP(S147,EventConditionConfig!A:C,3,FALSE))) ->  | AI147: =IF(A147="","",IF(ISNUMBER(Y147),2,IF(A148="",IF(OR(AK147>0,VLOOKUP(O147,EventConfig!A:C,3,FALSE)=4),3,""),1))) -> 1 | AJ147: 1000010 | AL147: 5134
A148: 1000010 | K148: =IF(J148="","",VLOOKUP(J148,EventNPC!A:E,5,FALSE)) ->  | L148: 5135 | M148: （随着吟诵，泛起缕缕清气，虚空震颤，一道白鹤般的身影自混沌中现身，仙风道骨，目光如星。） | O148: 10000 | P148: 10 | T148: =IF(R148="","","-"&VLOOKUP(R148,EventConditionConfig!A:C,3,FALSE)&IF(S148="","",CHAR(10)&"-"&VLOOKUP(S148,EventConditionConfig!A:C,3,FALSE))) ->  | AI148: =IF(A148="","",IF(ISNUMBER(Y148),2,IF(A149="",IF(OR(AK148>0,VLOOKUP(O148,EventConfig!A:C,3,FALSE)=4),3,""),1))) -> 1 | AJ148: 1000011 | AL148: 5135
A149: 1000011 | J149: 137 | K149: =IF(J149="","",VLOOKUP(J149,EventNPC!A:E,5,FALSE)) -> 冲虚真人 | L149: 5136 | M149: “小友的诵读，出自《逍遥游》。可知逍遥为何物？ | O149: 10000 | P149: 11 | T149: =IF(R149="","","-"&VLOOKUP(R149,EventConditionConfig!A:C,3,FALSE)&IF(S149="","",CHAR(10)&"-"&VLOOKUP(S149,EventConditionConfig!A:C,3,FALSE))) ->  | AI149: =IF(A149="","",IF(ISNUMBER(Y149),2,IF(A150="",IF(OR(AK149>0,VLOOKUP(O149,EventConfig!A:C,3,FALSE)=4),3,""),1))) -> 1 | AJ149: 1000012 | AL149: 5136
A150: 1000012 | J150: 137 | K150: =IF(J150="","",VLOOKUP(J150,EventNPC!A:E,5,FALSE)) -> 冲虚真人 | L150: 5137 | M150: 鲲鹏扶摇九天，究竟是真实存在，还是心之所向？ | O150: 10000 | P150: 12 | T150: =IF(R150="","","-"&VLOOKUP(R150,EventConditionConfig!A:C,3,FALSE)&IF(S150="","",CHAR(10)&"-"&VLOOKUP(S150,EventConditionConfig!A:C,3,FALSE))) ->  | U150: 1 | V150: 1000013;1000014 | W150: 5138;5139 | X150: 5138 | Y150: 渡劫失败，谈何逍遥？晚辈只求重返仙途！ | Z150: =A151 -> 1000013 | AA150: 5139 | AB150: 何为逍遥？请前辈开示。 | AC150: =A152 -> 1000014 | AF150: =D152 ->  | AI150: =IF(A150="","",IF(ISNUMBER(Y150),2,IF(A151="",IF(OR(AK150>0,VLOOKUP(O150,EventConfig!A:C,3,FALSE)=4),3,""),1))) -> 1 | AJ150: 1000013 | AL150: 5139
A151: 1000013 | J151: 137 | K151: =IF(J151="","",VLOOKUP(J151,EventNPC!A:E,5,FALSE)) -> 冲虚真人 | L151: 5140 | M151: 你虽执着于飞升，却屡败不悟，谈何仙途？ | O151: 10000 | P151: 13 | T151: =IF(R151="","","-"&VLOOKUP(R151,EventConditionConfig!A:C,3,FALSE)&IF(S151="","",CHAR(10)&"-"&VLOOKUP(S151,EventConditionConfig!A:C,3,FALSE))) ->  | AI151: =IF(A151="","",IF(ISNUMBER(Y151),2,IF(A152="",IF(OR(AK151>0,VLOOKUP(O151,EventConfig!A:C,3,FALSE)=4),3,""),1))) -> 1 | AJ151: 1000015 | AK151: =A153 -> 1000015 | AL151: 5140
A152: 1000014 | J152: 137 | K152: =IF(J152="","",VLOOKUP(J152,EventNPC!A:E,5,FALSE)) -> 冲虚真人 | L152: 5141 | M152: 逍遥存于内心。你心有执念，怎得逍遥？ | O152: 10000 | P152: 14 | T152: =IF(R152="","","-"&VLOOKUP(R152,EventConditionConfig!A:C,3,FALSE)&IF(S152="","",CHAR(10)&"-"&VLOOKUP(S152,EventConditionConfig!A:C,3,FALSE))) ->  | AI152: =IF(A152="","",IF(ISNUMBER(Y152),2,IF(A153="",IF(OR(AK152>0,VLOOKUP(O152,EventConfig!A:C,3,FALSE)=4),3,""),1))) -> 1 | AJ152: 1000015 | AK152: =A153 -> 1000015 | AL152: 5141
A153: =O153*100+P153 -> 1000015 | J153: 137 | K153: =IF(J153="","",VLOOKUP(J153,EventNPC!A:E,5,FALSE)) -> 冲虚真人 | L153: 5142 | M153: （冲虚真人扫过你破碎的道袍，叹息道）凡界、仙界、魔界，皆是棋盘，你只是棋子。 | O153: 10000 | P153: =IF(O153="","",IF(O153=O152,P152+1,1)) -> 15 | Q153: =_xlfn.TEXTJOIN(";",1,R153:S153) ->  | T153: =IF(R153="","","-"&VLOOKUP(R153,EventConditionConfig!A:C,3,FALSE)&IF(S153="","",CHAR(10)&"-"&VLOOKUP(S153,EventConditionConfig!A:C,3,FALSE))) ->  | U153: =IF(Y153="","",IF(ISTEXT(Y153),1,2)) ->  | AI153: =IF(A153="","",IF(ISNUMBER(Y153),2,IF(A154="",IF(OR(AK153>0,VLOOKUP(O153,EventConfig!A:C,3,FALSE)=4),3,""),1))) -> 1 | AJ153: 1000016 | AL153: 5142
A154: 1000016 | J154: 137 | K154: =IF(J154="","",VLOOKUP(J154,EventNPC!A:E,5,FALSE)) -> 冲虚真人 | L154: 5143 | M154: 若只是棋子，又如何能窥见天道？ | O154: 10000 | P154: 16 | T154: =IF(R154="","","-"&VLOOKUP(R154,EventConditionConfig!A:C,3,FALSE)&IF(S154="","",CHAR(10)&"-"&VLOOKUP(S154,EventConditionConfig!A:C,3,FALSE))) ->  | U154: 1 | V154: 1000017 | W154: 5144 | X154: 5144 | Y154: 前辈说得玄妙，可有具体指引？ | Z154: =A155 -> 1000017 | AI154: =IF(A154="","",IF(ISNUMBER(Y154),2,IF(A155="",IF(OR(AK154>0,VLOOKUP(O154,EventConfig!A:C,3,FALSE)=4),3,""),1))) -> 1 | AJ154: 1000017 | AL154: 5144
A155: 1000017 | J155: 137 | K155: =IF(J155="","",VLOOKUP(J155,EventNPC!A:E,5,FALSE)) -> 冲虚真人 | L155: 5145 | M155: 天机不可泄露。 （说罢，从袖中拿出一个风铃..） 但此风铃，可以为你指引前路。 | O155: 10000 | P155: 17 | T155: =IF(R155="","","-"&VLOOKUP(R155,EventConditionConfig!A:C,3,FALSE)&IF(S155="","",CHAR(10)&"-"&VLOOKUP(S155,EventConditionConfig!A:C,3,FALSE))) ->  | U155: 1 | V155: 1000018 | W155: 5146 | X155: 5146 | Y155: 多谢前辈赠铃.. | AI155: =IF(A155="","",IF(ISNUMBER(Y155),2,IF(A156="",IF(OR(AK155>0,VLOOKUP(O155,EventConfig!A:C,3,FALSE)=4),3,""),1))) -> 1 | AJ155: 1000018 | AL155: 5146
A156: 1000018 | J156: 137 | K156: =IF(J156="","",VLOOKUP(J156,EventNPC!A:E,5,FALSE)) -> 冲虚真人 | L156: 5147 | M156: （凝视远方，喃喃道） 凡界有尧，欲让天下而不得其法； 惠子得大葫芦，却不知其用； 姑射仙山，藏无形之仙； 列子可御风而行，却任有所求。 （说完，便化作清风消散。） | O156: 10000 | P156: 18 | T156: =IF(R156="","","-"&VLOOKUP(R156,EventConditionConfig!A:C,3,FALSE)&IF(S156="","",CHAR(10)&"-"&VLOOKUP(S156,EventConditionConfig!A:C,3,FALSE))) ->  | AI156: =IF(A156="","",IF(ISNUMBER(Y156),2,IF(A157="",IF(OR(AK156>0,VLOOKUP(O156,EventConfig!A:C,3,FALSE)=4),3,""),1))) -> 1 | AJ156: 1000019 | AL156: 5147
A157: 1000019 | J157: 100 | K157: =IF(J157="","",VLOOKUP(J157,EventNPC!A:E,5,FALSE)) -> 玩家 | L157: 5148 | M157: ..... “逍遥之意，何处可寻？” | O157: 10000 | P157: 19 | T157: =IF(R157="","","-"&VLOOKUP(R157,EventConditionConfig!A:C,3,FALSE)&IF(S157="","",CHAR(10)&"-"&VLOOKUP(S157,EventConditionConfig!A:C,3,FALSE))) ->  | AI157: =IF(A157="","",IF(ISNUMBER(Y157),2,IF(A158="",IF(OR(AK157>0,VLOOKUP(O157,EventConfig!A:C,3,FALSE)=4),3,""),1))) -> 1 | AJ157: 1000020 | AL157: 5148
A158: 1000020 | J158: 100 | K158: =IF(J158="","",VLOOKUP(J158,EventNPC!A:E,5,FALSE)) -> 玩家 | L158: 5149 | M158: 算了，先看看这个风铃。 (你拿起刚刚获得的风铃，仔细看了一下) | O158: 10000 | P158: 20 | T158: =IF(R158="","","-"&VLOOKUP(R158,EventConditionConfig!A:C,3,FALSE)&IF(S158="","",CHAR(10)&"-"&VLOOKUP(S158,EventConditionConfig!A:C,3,FALSE))) ->  | AI158: =IF(A158="","",IF(ISNUMBER(Y158),2,IF(A159="",IF(OR(AK158>0,VLOOKUP(O158,EventConfig!A:C,3,FALSE)=4),3,""),1))) -> 1 | AJ158: 1000021 | AL158: 5149
A159: 1000021 | K159: =IF(J159="","",VLOOKUP(J159,EventNPC!A:E,5,FALSE)) ->  | L159: 5150 | M159: 铃身刻有“逍遥”二字，铃声清脆悠远，似有灵性，隐约指向北海. | O159: 10000 | P159: 21 | T159: =IF(R159="","","-"&VLOOKUP(R159,EventConditionConfig!A:C,3,FALSE)&IF(S159="","",CHAR(10)&"-"&VLOOKUP(S159,EventConditionConfig!A:C,3,FALSE))) ->  | AI159: =IF(A159="","",IF(ISNUMBER(Y159),2,IF(A160="",IF(OR(AK159>0,VLOOKUP(O159,EventConfig!A:C,3,FALSE)=4),3,""),1))) ->  | AL159: 5150
P160: =IF(O160="","",IF(O160=O137,P137+1,1)) ->  | T160: =IF(R160="","","-"&VLOOKUP(R160,EventConditionConfig!A:C,3,FALSE)&IF(S160="","",CHAR(10)&"-"&VLOOKUP(S160,EventConditionConfig!A:C,3,FALSE))) ->  | AI160: =IF(A160="","",IF(ISNUMBER(Y160),2,IF(A161="",IF(OR(AK160>0,VLOOKUP(O160,EventConfig!A:C,3,FALSE)=4),3,""),1))) -> 
A161: =O161*100+P161 -> 1000101 | B161: 5151 | C161: 使用风铃唤醒还未泯灭的神识 | L161: 5152 | M161: 北冥有鱼，其名为鲲…… | N161: 2 | O161: 10001 | P161: 1 | T161: =IF(R161="","","-"&VLOOKUP(R161,EventConditionConfig!A:C,3,FALSE)&IF(S161="","",CHAR(10)&"-"&VLOOKUP(S161,EventConditionConfig!A:C,3,FALSE))) ->  | AI161: =IF(A161="","",IF(ISNUMBER(Y161),2,IF(A162="",IF(OR(AK161>0,VLOOKUP(O161,EventConfig!A:C,3,FALSE)=4),3,""),1))) -> 1 | AJ161: 1000102 | AL161: 5152
A162: =O162*100+P162 -> 1000102 | B162: 5151 | C162: 使用风铃唤醒还未泯灭的神识 | L162: 5153 | M162: 不过北海遥远，何时能寻得鲲鹏的踪迹。 | N162: 2 | O162: 10001 | P162: 2 | T162: =IF(R162="","","-"&VLOOKUP(R162,EventConditionConfig!A:C,3,FALSE)&IF(S162="","",CHAR(10)&"-"&VLOOKUP(S162,EventConditionConfig!A:C,3,FALSE))) ->  | AI162: =IF(A162="","",IF(ISNUMBER(Y162),2,IF(A163="",IF(OR(AK162>0,VLOOKUP(O162,EventConfig!A:C,3,FALSE)=4),3,""),1))) -> 1 | AJ162: 1000103 | AL162: 5153
A163: =O163*100+P163 -> 1000103 | B163: 5151 | C163: 使用风铃唤醒还未泯灭的神识 | L163: 5154 | M163: 好在我的神识尚在，可探天地，再加上刚刚的风铃，或许能寻得前路线索。 | N163: 2 | O163: 10001 | P163: 3 | T163: =IF(R163="","","-"&VLOOKUP(R163,EventConditionConfig!A:C,3,FALSE)&IF(S163="","",CHAR(10)&"-"&VLOOKUP(S163,EventConditionConfig!A:C,3,FALSE))) ->  | AI163: =IF(A163="","",IF(ISNUMBER(Y163),2,IF(A164="",IF(OR(AK163>0,VLOOKUP(O163,EventConfig!A:C,3,FALSE)=4),3,""),1))) -> 1 | AJ163: 1000104 | AL163: 5154
A164: =O164*100+P164 -> 1000104 | B164: 5151 | C164: 使用风铃唤醒还未泯灭的神识 | O164: 10001 | P164: 4 | Q164: 5 | R164: 5 | T164: =IF(R164="","","-"&VLOOKUP(R164,EventConditionConfig!A:C,3,FALSE)&IF(S164="","",CHAR(10)&"-"&VLOOKUP(S164,EventConditionConfig!A:C,3,FALSE))) -> -使用神识 | AI164: =IF(A164="","",IF(ISNUMBER(Y164),2,IF(A165="",IF(OR(AK164>0,VLOOKUP(O164,EventConfig!A:C,3,FALSE)=4),3,""),1))) -> 3 | AJ164: 10002 | AL164: 5154
T165: =IF(R165="","","-"&VLOOKUP(R165,EventConditionConfig!A:C,3,FALSE)&IF(S165="","",CHAR(10)&"-"&VLOOKUP(S165,EventConditionConfig!A:C,3,FALSE))) ->  | AI165: =IF(A165="","",IF(ISNUMBER(Y165),2,IF(A166="",IF(OR(AK165>0,VLOOKUP(O165,EventConfig!A:C,3,FALSE)=4),3,""),1))) -> 
A166: =O166*100+P166 -> 1000201 | B166: 5155 | C166: 前往妖兽盘踞的地方 | D166: 5156 | E166: 御剑飞行 | L166: 5157 | M166: 神识发现有一条古径，隐于云山之间，不过似乎有妖兽盘踞。 | N166: 3 | O166: 10002 | P166: 1 | T166: =IF(R166="","","-"&VLOOKUP(R166,EventConditionConfig!A:C,3,FALSE)&IF(S166="","",CHAR(10)&"-"&VLOOKUP(S166,EventConditionConfig!A:C,3,FALSE))) ->  | AI166: =IF(A166="","",IF(ISNUMBER(Y166),2,IF(A167="",IF(OR(AK166>0,VLOOKUP(O166,EventConfig!A:C,3,FALSE)=4),3,""),1))) -> 1 | AJ166: 1000202 | AL166: 5157
A167: =O167*100+P167 -> 1000202 | B167: 5155 | C167: 前往妖兽盘踞的地方 | D167: 5156 | E167: 御剑飞行 | L167: 5158 | M167: 没其他办法了，过去看看吧。 | N167: 3 | O167: 10002 | P167: 2 | T167: =IF(R167="","","-"&VLOOKUP(R167,EventConditionConfig!A:C,3,FALSE)&IF(S167="","",CHAR(10)&"-"&VLOOKUP(S167,EventConditionConfig!A:C,3,FALSE))) ->  | AI167: =IF(A167="","",IF(ISNUMBER(Y167),2,IF(A168="",IF(OR(AK167>0,VLOOKUP(O167,EventConfig!A:C,3,FALSE)=4),3,""),1))) -> 1 | AJ167: 1000203 | AL167: 5158
A168: =O168*100+P168 -> 1000203 | B168: 5155 | C168: 前往妖兽盘踞的地方 | D168: 5156 | E168: 御剑飞行 | G168: 1 | H168: 5 | O168: 10002 | P168: 3 | T168: =IF(R168="","","-"&VLOOKUP(R168,EventConditionConfig!A:C,3,FALSE)&IF(S168="","",CHAR(10)&"-"&VLOOKUP(S168,EventConditionConfig!A:C,3,FALSE))) ->  | AI168: =IF(A168="","",IF(ISNUMBER(Y168),2,IF(A169="",IF(OR(AK168>0,VLOOKUP(O168,EventConfig!A:C,3,FALSE)=4),3,""),1))) -> 3 | AJ168: 10003 | AL168: 5158
T169: =IF(R169="","","-"&VLOOKUP(R169,EventConditionConfig!A:C,3,FALSE)&IF(S169="","",CHAR(10)&"-"&VLOOKUP(S169,EventConditionConfig!A:C,3,FALSE))) ->  | AI169: =IF(A169="","",IF(ISNUMBER(Y169),2,IF(A170="",IF(OR(AK169>0,VLOOKUP(O169,EventConfig!A:C,3,FALSE)=4),3,""),1))) -> 
A170: =O170*100+P170 -> 1000301 | B170: 5159 | C170: 蜩鸟和小麻雀对你的到来很好奇 | K170: =IF(J170="","",VLOOKUP(J170,EventNPC!A:E,5,FALSE)) ->  | L170: 5160 | M170: 应该就是这里了，似乎有古老的阵法挡住了去路 | O170: 10003 | P170: 1 | T170: =IF(R170="","","-"&VLOOKUP(R170,EventConditionConfig!A:C,3,FALSE)&IF(S170="","",CHAR(10)&"-"&VLOOKUP(S170,EventConditionConfig!A:C,3,FALSE))) ->  | AI170: =IF(A170="","",IF(ISNUMBER(Y170),2,IF(A171="",IF(OR(AK170>0,VLOOKUP(O170,EventConfig!A:C,3,FALSE)=4),3,""),1))) -> 1 | AJ170: 1000302 | AL170: 5160
A171: 1000302 | B171: 5159 | C171: 蜩鸟和小麻雀对你的到来很好奇 | K171: =IF(J171="","",VLOOKUP(J171,EventNPC!A:E,5,FALSE)) ->  | L171: 5161 | M171: （结界门前，三只小鸟飞来，落在一旁古松上） | O171: 10003 | P171: 2 | T171: =IF(R171="","","-"&VLOOKUP(R171,EventConditionConfig!A:C,3,FALSE)&IF(S171="","",CHAR(10)&"-"&VLOOKUP(S171,EventConditionConfig!A:C,3,FALSE))) ->  | AI171: =IF(A171="","",IF(ISNUMBER(Y171),2,IF(A172="",IF(OR(AK171>0,VLOOKUP(O171,EventConfig!A:C,3,FALSE)=4),3,""),1))) -> 1 | AJ171: 1000303 | AL171: 5161
A172: 1000303 | B172: 5159 | C172: 蜩鸟和小麻雀对你的到来很好奇 | J172: 101 | K172: =IF(J172="","",VLOOKUP(J172,EventNPC!A:E,5,FALSE)) -> 蜩鸟 | L172: 5162 | M172: （拍翅）：“咦？又是妄图穿行北海之人？” | O172: 10003 | P172: 3 | T172: =IF(R172="","","-"&VLOOKUP(R172,EventConditionConfig!A:C,3,FALSE)&IF(S172="","",CHAR(10)&"-"&VLOOKUP(S172,EventConditionConfig!A:C,3,FALSE))) ->  | U172: 1 | V172: 1000304 | W172: 5163 | X172: 5163 | Y172: 我在寻找鲲鹏，你们知道它在哪里吗？ | AI172: =IF(A172="","",IF(ISNUMBER(Y172),2,IF(A173="",IF(OR(AK172>0,VLOOKUP(O172,EventConfig!A:C,3,FALSE)=4),3,""),1))) -> 1 | AJ172: 1000304 | AL172: 5163
A173: 1000304 | B173: 5159 | C173: 蜩鸟和小麻雀对你的到来很好奇 | J173: 102 | K173: =IF(J173="","",VLOOKUP(J173,EventNPC!A:E,5,FALSE)) -> 小麻雀 | L173: 5164 | M173: （扑棱翅膀）是想要从北海飞往南海的超级大鸟吧？ | O173: 10003 | P173: 4 | T173: =IF(R173="","","-"&VLOOKUP(R173,EventConditionConfig!A:C,3,FALSE)&IF(S173="","",CHAR(10)&"-"&VLOOKUP(S173,EventConditionConfig!A:C,3,FALSE))) ->  | AI173: =IF(A173="","",IF(ISNUMBER(Y173),2,IF(A174="",IF(OR(AK173>0,VLOOKUP(O173,EventConfig!A:C,3,FALSE)=4),3,""),1))) -> 1 | AJ173: 1000305 | AL173: 5164
A174: 1000305 | B174: 5159 | C174: 蜩鸟和小麻雀对你的到来很好奇 | J174: 102 | K174: =IF(J174="","",VLOOKUP(J174,EventNPC!A:E,5,FALSE)) -> 小麻雀 | L174: 5165 | M174: 我就想不明白，她为何要飞如此之远，太奇怪啦！ | O174: 10003 | P174: 5 | T174: =IF(R174="","","-"&VLOOKUP(R174,EventConditionConfig!A:C,3,FALSE)&IF(S174="","",CHAR(10)&"-"&VLOOKUP(S174,EventConditionConfig!A:C,3,FALSE))) ->  | U174: 1 | V174: 1000306 | W174: 5166 | X174: 5166 | Y174: 鲲鹏是在追求心中的目标吧。 | AI174: =IF(A174="","",IF(ISNUMBER(Y174),2,IF(A175="",IF(OR(AK174>0,VLOOKUP(O174,EventConfig!A:C,3,FALSE)=4),3,""),1))) -> 1 | AJ174: 1000306 | AL174: 5166
A175: 1000306 | B175: 5159 | C175: 蜩鸟和小麻雀对你的到来很好奇 | J175: 102 | K175: =IF(J175="","",VLOOKUP(J175,EventNPC!A:E,5,FALSE)) -> 小麻雀 | L175: 5167 | M175: （偏头想了想）目标？我天天在这里上蹿下跳，在附近树林飞来飞去，就已经很幸福啦。 | O175: 10003 | P175: 6 | T175: =IF(R175="","","-"&VLOOKUP(R175,EventConditionConfig!A:C,3,FALSE)&IF(S175="","",CHAR(10)&"-"&VLOOKUP(S175,EventConditionConfig!A:C,3,FALSE))) ->  | AI175: =IF(A175="","",IF(ISNUMBER(Y175),2,IF(A176="",IF(OR(AK175>0,VLOOKUP(O175,EventConfig!A:C,3,FALSE)=4),3,""),1))) -> 1 | AJ175: 1000307 | AL175: 5167
A176: 1000307 | B176: 5159 | C176: 蜩鸟和小麻雀对你的到来很好奇 | J176: 102 | K176: =IF(J176="","",VLOOKUP(J176,EventNPC!A:E,5,FALSE)) -> 小麻雀 | L176: 5168 | M176: 就那大傻鸟，非要飞那么远，又笨又蠢...真没意思。 | O176: 10003 | P176: 7 | T176: =IF(R176="","","-"&VLOOKUP(R176,EventConditionConfig!A:C,3,FALSE)&IF(S176="","",CHAR(10)&"-"&VLOOKUP(S176,EventConditionConfig!A:C,3,FALSE))) ->  | U176: 1 | V176: 1000308;1000308 | W176: 5169;5170 | X176: 5169 | Y176: 你说得也有一定道理… | AA176: 5170 | AB176: 你懂什么..这大鹏鸟可比你更有志向多了。 | AI176: =IF(A176="","",IF(ISNUMBER(Y176),2,IF(A177="",IF(OR(AK176>0,VLOOKUP(O176,EventConfig!A:C,3,FALSE)=4),3,""),1))) -> 1 | AJ176: 1000308 | AL176: 5170
A177: 1000308 | B177: 5159 | C177: 蜩鸟和小麻雀对你的到来很好奇 | J177: 101 | K177: =IF(J177="","",VLOOKUP(J177,EventNPC!A:E,5,FALSE)) -> 蜩鸟 | L177: 5171 | M177: （翻飞一圈）志向有什么用？到头来还不是风停了就落地。 | O177: 10003 | P177: 8 | T177: =IF(R177="","","-"&VLOOKUP(R177,EventConditionConfig!A:C,3,FALSE)&IF(S177="","",CHAR(10)&"-"&VLOOKUP(S177,EventConditionConfig!A:C,3,FALSE))) ->  | U177: 1 | V177: 1000309 | W177: 5172 | X177: 5172 | Y177: ...... | AI177: =IF(A177="","",IF(ISNUMBER(Y177),2,IF(A178="",IF(OR(AK177>0,VLOOKUP(O177,EventConfig!A:C,3,FALSE)=4),3,""),1))) -> 1 | AJ177: 1000309 | AL177: 5172
A178: 1000309 | B178: 5159 | C178: 蜩鸟和小麻雀对你的到来很好奇 | K178: =IF(J178="","",VLOOKUP(J178,EventNPC!A:E,5,FALSE)) ->  | L178: 5173 | M178: （此时，结界微动，一缕风穿林而过，古径阵法竟有一丝松动） | O178: 10003 | P178: 9 | T178: =IF(R178="","","-"&VLOOKUP(R178,EventConditionConfig!A:C,3,FALSE)&IF(S178="","",CHAR(10)&"-"&VLOOKUP(S178,EventConditionConfig!A:C,3,FALSE))) ->  | AI178: =IF(A178="","",IF(ISNUMBER(Y178),2,IF(A179="",IF(OR(AK178>0,VLOOKUP(O178,EventConfig!A:C,3,FALSE)=4),3,""),1))) -> 3 | AJ178: 10004 | AL178: 5173
T179: =IF(R179="","","-"&VLOOKUP(R179,EventConditionConfig!A:C,3,FALSE)&IF(S179="","",CHAR(10)&"-"&VLOOKUP(S179,EventConditionConfig!A:C,3,FALSE))) ->  | AI179: =IF(A179="","",IF(ISNUMBER(Y179),2,IF(A180="",IF(OR(AK179>0,VLOOKUP(O179,EventConfig!A:C,3,FALSE)=4),3,""),1))) -> 
A180: =O180*100+P180 -> 1000401 | B180: 5174 | C180: 原来它们就是镇守阵法的结界兽 | D180: 5175 | E180: 击败结界兽 | K180: =IF(J180="","",VLOOKUP(J180,EventNPC!A:E,5,FALSE)) ->  | L180: 5176 | M180: 这结界似乎有所反应… | O180: 10004 | P180: 1 | T180: =IF(R180="","","-"&VLOOKUP(R180,EventConditionConfig!A:C,3,FALSE)&IF(S180="","",CHAR(10)&"-"&VLOOKUP(S180,EventConditionConfig!A:C,3,FALSE))) ->  | U180: 1 | V180: 1000402 | W180: 5177 | X180: 5177 | Y180: 与你们聊天很有意思，不过今天我是非过去不可，没人能阻止我重返仙途！ | AI180: =IF(A180="","",IF(ISNUMBER(Y180),2,IF(A181="",IF(OR(AK180>0,VLOOKUP(O180,EventConfig!A:C,3,FALSE)=4),3,""),1))) -> 1 | AJ180: 1000402 | AL180: 5177
A181: =O181*100+P181 -> 1000402 | B181: 5174 | C181: 原来它们就是镇守阵法的结界兽 | D181: 5175 | E181: 击败结界兽 | J181: 100 | K181: =IF(J181="","",VLOOKUP(J181,EventNPC!A:E,5,FALSE)) -> 玩家 | L181: 5178 | M181: 现身吧！！ | O181: 10004 | P181: 2 | T181: =IF(R181="","","-"&VLOOKUP(R181,EventConditionConfig!A:C,3,FALSE)&IF(S181="","",CHAR(10)&"-"&VLOOKUP(S181,EventConditionConfig!A:C,3,FALSE))) ->  | AI181: =IF(A181="","",IF(ISNUMBER(Y181),2,IF(A182="",IF(OR(AK181>0,VLOOKUP(O181,EventConfig!A:C,3,FALSE)=4),3,""),1))) -> 1 | AJ181: 1000403 | AL181: 5178
A182: =O182*100+P182 -> 1000403 | B182: 5174 | C182: 原来它们就是镇守阵法的结界兽 | D182: 5175 | E182: 击败结界兽 | J182: 101 | K182: =IF(J182="","",VLOOKUP(J182,EventNPC!A:E,5,FALSE)) -> 蜩鸟 | L182: 5179 | M182: （轻轻飞下来..）又来...来吧来吧.. | O182: 10004 | P182: 3 | T182: =IF(R182="","","-"&VLOOKUP(R182,EventConditionConfig!A:C,3,FALSE)&IF(S182="","",CHAR(10)&"-"&VLOOKUP(S182,EventConditionConfig!A:C,3,FALSE))) ->  | U182: =IF(Y182="","",IF(ISTEXT(Y182),1,2)) -> 2 | V182: 1002 | Y182: 1002 | AI182: =IF(A182="","",IF(ISNUMBER(Y182),2,IF(A183="",IF(OR(AK182>0,VLOOKUP(O182,EventConfig!A:C,3,FALSE)=4),3,""),1))) -> 2 | AJ182: 1000404;101 | AL182: 5179
A183: =O183*100+P183 -> 1000404 | B183: 5174 | C183: 原来它们就是镇守阵法的结界兽 | J183: 102 | K183: =IF(J183="","",VLOOKUP(J183,EventNPC!A:E,5,FALSE)) -> 小麻雀 | L183: 5180 | M183: 这么想过去，就去吧... | O183: 10004 | P183: 4 | T183: =IF(R183="","","-"&VLOOKUP(R183,EventConditionConfig!A:C,3,FALSE)&IF(S183="","",CHAR(10)&"-"&VLOOKUP(S183,EventConditionConfig!A:C,3,FALSE))) ->  | AI183: =IF(A183="","",IF(ISNUMBER(Y183),2,IF(A184="",IF(OR(AK183>0,VLOOKUP(O183,EventConfig!A:C,3,FALSE)=4),3,""),1))) -> 3 | AJ183: 10005 | AL183: 5180
T184: =IF(R184="","","-"&VLOOKUP(R184,EventConditionConfig!A:C,3,FALSE)&IF(S184="","",CHAR(10)&"-"&VLOOKUP(S184,EventConditionConfig!A:C,3,FALSE))) ->  | AI184: =IF(A184="","",IF(ISNUMBER(Y184),2,IF(A185="",IF(OR(AK184>0,VLOOKUP(O184,EventConfig!A:C,3,FALSE)=4),3,""),1))) -> 
A185: =O185*100+P185 -> 1000501 | B185: 5181 | C185: 初见疯道人 | K185: =IF(J185="","",VLOOKUP(J185,EventNPC!A:E,5,FALSE)) ->  | L185: 5182 | M185: 你穿过古径结界，来到一片被风托起的浮空灵岛群。 | O185: 10005 | P185: 1 | T185: =IF(R185="","","-"&VLOOKUP(R185,EventConditionConfig!A:C,3,FALSE)&IF(S185="","",CHAR(10)&"-"&VLOOKUP(S185,EventConditionConfig!A:C,3,FALSE))) ->  | AI185: =IF(A185="","",IF(ISNUMBER(Y185),2,IF(A186="",IF(OR(AK185>0,VLOOKUP(O185,EventConfig!A:C,3,FALSE)=4),3,""),1))) -> 1 | AJ185: 1000502 | AL185: 5182
A186: 1000502 | B186: 5181 | C186: 初见疯道人 | K186: =IF(J186="","",VLOOKUP(J186,EventNPC!A:E,5,FALSE)) ->  | L186: 5183 | M186: 风势强劲，岛与岛之间缝隙深不见底，无桥无梯。 | O186: 10005 | P186: 2 | T186: =IF(R186="","","-"&VLOOKUP(R186,EventConditionConfig!A:C,3,FALSE)&IF(S186="","",CHAR(10)&"-"&VLOOKUP(S186,EventConditionConfig!A:C,3,FALSE))) ->  | AI186: =IF(A186="","",IF(ISNUMBER(Y186),2,IF(A187="",IF(OR(AK186>0,VLOOKUP(O186,EventConfig!A:C,3,FALSE)=4),3,""),1))) -> 1 | AJ186: 1000503 | AL186: 5183
A187: 1000503 | B187: 5181 | C187: 初见疯道人 | K187: =IF(J187="","",VLOOKUP(J187,EventNPC!A:E,5,FALSE)) ->  | L187: 5184 | M187: 此处盘踞一位神秘道人，常独自站在岛边望风，仿佛等待什么。 | O187: 10005 | P187: 3 | T187: =IF(R187="","","-"&VLOOKUP(R187,EventConditionConfig!A:C,3,FALSE)&IF(S187="","",CHAR(10)&"-"&VLOOKUP(S187,EventConditionConfig!A:C,3,FALSE))) ->  | AI187: =IF(A187="","",IF(ISNUMBER(Y187),2,IF(A188="",IF(OR(AK187>0,VLOOKUP(O187,EventConfig!A:C,3,FALSE)=4),3,""),1))) -> 1 | AJ187: 1000504 | AL187: 5184
A188: 1000504 | B188: 5181 | C188: 初见疯道人 | K188: =IF(J188="","",VLOOKUP(J188,EventNPC!A:E,5,FALSE)) ->  | L188: 5185 | M188: （你尝试御剑，却在风中打转，被吹回原地） | O188: 10005 | P188: 4 | T188: =IF(R188="","","-"&VLOOKUP(R188,EventConditionConfig!A:C,3,FALSE)&IF(S188="","",CHAR(10)&"-"&VLOOKUP(S188,EventConditionConfig!A:C,3,FALSE))) ->  | U188: 1 | V188: 1000505 | W188: 5186 | X188: 5186 | Y188: 前辈，这里的风太大，我无法飞行，请教如何才能通过？ | AI188: =IF(A188="","",IF(ISNUMBER(Y188),2,IF(A189="",IF(OR(AK188>0,VLOOKUP(O188,EventConfig!A:C,3,FALSE)=4),3,""),1))) -> 1 | AJ188: 1000505 | AL188: 5186
A189: 1000505 | B189: 5181 | C189: 初见疯道人 | J189: 103 | K189: =IF(J189="","",VLOOKUP(J189,EventNPC!A:E,5,FALSE)) -> 疯道人 | L189: 5187 | M189: ...... | O189: 10005 | P189: 5 | T189: =IF(R189="","","-"&VLOOKUP(R189,EventConditionConfig!A:C,3,FALSE)&IF(S189="","",CHAR(10)&"-"&VLOOKUP(S189,EventConditionConfig!A:C,3,FALSE))) ->  | U189: 1 | V189: 1000506 | W189: 5188 | X189: 5188 | Y189: 前辈，我准备前往北海深处，寻鲲鹏。 | AI189: =IF(A189="","",IF(ISNUMBER(Y189),2,IF(A190="",IF(OR(AK189>0,VLOOKUP(O189,EventConfig!A:C,3,FALSE)=4),3,""),1))) -> 1 | AJ189: 1000506 | AL189: 5188
A190: 1000506 | B190: 5181 | C190: 初见疯道人 | J190: 103 | K190: =IF(J190="","",VLOOKUP(J190,EventNPC!A:E,5,FALSE)) -> 疯道人 | L190: 5189 | M190: 鲲鹏？……世间竟还有人记得它。 | O190: 10005 | P190: 6 | T190: =IF(R190="","","-"&VLOOKUP(R190,EventConditionConfig!A:C,3,FALSE)&IF(S190="","",CHAR(10)&"-"&VLOOKUP(S190,EventConditionConfig!A:C,3,FALSE))) ->  | AI190: =IF(A190="","",IF(ISNUMBER(Y190),2,IF(A191="",IF(OR(AK190>0,VLOOKUP(O190,EventConfig!A:C,3,FALSE)=4),3,""),1))) -> 1 | AJ190: 1000507 | AL190: 5189
A191: 1000507 | B191: 5181 | C191: 初见疯道人 | J191: 103 | K191: =IF(J191="","",VLOOKUP(J191,EventNPC!A:E,5,FALSE)) -> 疯道人 | L191: 5190 | M191: （说着从手中掏出一个碎片，往空中一震，瞬间风停）过来吧。 | O191: 10005 | P191: 7 | T191: =IF(R191="","","-"&VLOOKUP(R191,EventConditionConfig!A:C,3,FALSE)&IF(S191="","",CHAR(10)&"-"&VLOOKUP(S191,EventConditionConfig!A:C,3,FALSE))) ->  | AI191: =IF(A191="","",IF(ISNUMBER(Y191),2,IF(A192="",IF(OR(AK191>0,VLOOKUP(O191,EventConfig!A:C,3,FALSE)=4),3,""),1))) -> 1 | AJ191: 1000508 | AL191: 5190
A192: 1000508 | B192: 5181 | C192: 初见疯道人 | J192: 103 | K192: =IF(J192="","",VLOOKUP(J192,EventNPC!A:E,5,FALSE)) -> 疯道人 | L192: 5191 | M192: 说吧，为何寻那鲲鹏？ | O192: 10005 | P192: 8 | T192: =IF(R192="","","-"&VLOOKUP(R192,EventConditionConfig!A:C,3,FALSE)&IF(S192="","",CHAR(10)&"-"&VLOOKUP(S192,EventConditionConfig!A:C,3,FALSE))) ->  | U192: 1 | V192: 1000509;1000509 | W192: 5192;5193 | X192: 5192 | Y192: 冲虚真人让我去的 | AA192: 5193 | AB192: 我只是好奇.. | AI192: =IF(A192="","",IF(ISNUMBER(Y192),2,IF(A193="",IF(OR(AK192>0,VLOOKUP(O192,EventConfig!A:C,3,FALSE)=4),3,""),1))) -> 1 | AJ192: 1000509 | AL192: 5193
A193: 1000509 | B193: 5181 | C193: 初见疯道人 | J193: 103 | K193: =IF(J193="","",VLOOKUP(J193,EventNPC!A:E,5,FALSE)) -> 疯道人 | L193: 5194 | M193: 你可知鹏飞九万里，需凭借龙卷风，才可达成？ | O193: 10005 | P193: 9 | T193: =IF(R193="","","-"&VLOOKUP(R193,EventConditionConfig!A:C,3,FALSE)&IF(S193="","",CHAR(10)&"-"&VLOOKUP(S193,EventConditionConfig!A:C,3,FALSE))) ->  | U193: 1 | V193: 1000510 | W193: 5195 | X193: 5195 | Y193: 请前辈赐教...... | AI193: =IF(A193="","",IF(ISNUMBER(Y193),2,IF(A194="",IF(OR(AK193>0,VLOOKUP(O193,EventConfig!A:C,3,FALSE)=4),3,""),1))) -> 1 | AJ193: 1000510 | AL193: 5195
A194: 1000510 | B194: 5181 | C194: 初见疯道人 | J194: 103 | K194: =IF(J194="","",VLOOKUP(J194,EventNPC!A:E,5,FALSE)) -> 疯道人 | L194: 5196 | M194: 看你修为尚浅，跟你说多了也无用。 | O194: 10005 | P194: 10 | T194: =IF(R194="","","-"&VLOOKUP(R194,EventConditionConfig!A:C,3,FALSE)&IF(S194="","",CHAR(10)&"-"&VLOOKUP(S194,EventConditionConfig!A:C,3,FALSE))) ->  | AI194: =IF(A194="","",IF(ISNUMBER(Y194),2,IF(A195="",IF(OR(AK194>0,VLOOKUP(O194,EventConfig!A:C,3,FALSE)=4),3,""),1))) -> 1 | AJ194: 1000511 | AL194: 5196
A195: 1000511 | B195: 5181 | C195: 初见疯道人 | J195: 103 | K195: =IF(J195="","",VLOOKUP(J195,EventNPC!A:E,5,FALSE)) -> 疯道人 | L195: 5197 | M195: 再往前是我师弟的洞府了，他可不好说话。 | O195: 10005 | P195: 11 | T195: =IF(R195="","","-"&VLOOKUP(R195,EventConditionConfig!A:C,3,FALSE)&IF(S195="","",CHAR(10)&"-"&VLOOKUP(S195,EventConditionConfig!A:C,3,FALSE))) ->  | AI195: =IF(A195="","",IF(ISNUMBER(Y195),2,IF(A196="",IF(OR(AK195>0,VLOOKUP(O195,EventConfig!A:C,3,FALSE)=4),3,""),1))) -> 1 | AJ195: 1000512 | AL195: 5197
A196: 1000512 | B196: 5181 | C196: 初见疯道人 | D196: =IF(E196="","",IF(E196=E195,D195,MAX(AL195,AL194,B196)+1)) ->  | J196: 103 | K196: =IF(J196="","",VLOOKUP(J196,EventNPC!A:E,5,FALSE)) -> 疯道人 | L196: =IF(M196="","",MAX(AL195,AL194,B196,D196)+1) -> 5198 | M196: 就在我这附近好好修炼吧，至少提升至筑基修为。 | O196: 10005 | P196: 12 | T196: =IF(R196="","","-"&VLOOKUP(R196,EventConditionConfig!A:C,3,FALSE)&IF(S196="","",CHAR(10)&"-"&VLOOKUP(S196,EventConditionConfig!A:C,3,FALSE))) ->  | U196: 1 | V196: 1000513 | W196: 5199 | X196: 5199 | Y196: 前辈为何如此助我？ | AI196: =IF(A196="","",IF(ISNUMBER(Y196),2,IF(A197="",IF(OR(AK196>0,VLOOKUP(O196,EventConfig!A:C,3,FALSE)=4),3,""),1))) -> 1 | AJ196: 1000513 | AL196: 5199
A197: 1000513 | B197: 5181 | C197: 初见疯道人 | J197: 103 | K197: =IF(J197="","",VLOOKUP(J197,EventNPC!A:E,5,FALSE)) -> 疯道人 | L197: 5200 | M197: （疯道人望你一眼，没有回答，但丢过来一本功法）修到[筑基-中期]再来找我。 | O197: 10005 | P197: 13 | T197: =IF(R197="","","-"&VLOOKUP(R197,EventConditionConfig!A:C,3,FALSE)&IF(S197="","",CHAR(10)&"-"&VLOOKUP(S197,EventConditionConfig!A:C,3,FALSE))) ->  | AI197: =IF(A197="","",IF(ISNUMBER(Y197),2,IF(A198="",IF(OR(AK197>0,VLOOKUP(O197,EventConfig!A:C,3,FALSE)=4),3,""),1))) -> 1 | AJ197: 1000514 | AL197: 5200
A198: 1000514 | B198: 5181 | C198: 初见疯道人 | K198: =IF(J198="","",VLOOKUP(J198,EventNPC!A:E,5,FALSE)) ->  | O198: 10005 | P198: 14 | Q198: 2 | R198: 2 | T198: =IF(R198="","","-"&VLOOKUP(R198,EventConditionConfig!A:C,3,FALSE)&IF(S198="","",CHAR(10)&"-"&VLOOKUP(S198,EventConditionConfig!A:C,3,FALSE))) -> -达到境界：练气-中期 | AI198: =IF(A198="","",IF(ISNUMBER(Y198),2,IF(A199="",IF(OR(AK198>0,VLOOKUP(O198,EventConfig!A:C,3,FALSE)=4),3,""),1))) -> 3 | AJ198: 10006 | AL198: =IF(A198="","",MAX(B198,D198,L198,X198,AA198,AL197,AL196,AD198)) -> 5200
T199: =IF(R199="","","-"&VLOOKUP(R199,EventConditionConfig!A:C,3,FALSE)&IF(S199="","",CHAR(10)&"-"&VLOOKUP(S199,EventConditionConfig!A:C,3,FALSE))) ->  | AI199: =IF(A199="","",IF(ISNUMBER(Y199),2,IF(A200="",IF(OR(AK199>0,VLOOKUP(O199,EventConfig!A:C,3,FALSE)=4),3,""),1))) -> 
A200: =O200*100+P200 -> 1000601 | B200: 5201 | C200: 疯道人赠与一半风灵珠 | J200: 103 | K200: =IF(J200="","",VLOOKUP(J200,EventNPC!A:E,5,FALSE)) -> 疯道人 | L200: 5202 | M200: 你已突破筑基前期达到中期，灵力通畅，是时候去会一会我的师弟了。 | O200: 10006 | P200: 1 | T200: =IF(R200="","","-"&VLOOKUP(R200,EventConditionConfig!A:C,3,FALSE)&IF(S200="","",CHAR(10)&"-"&VLOOKUP(S200,EventConditionConfig!A:C,3,FALSE))) ->  | U200: 1 | V200: 1000602;1000602 | W200: 5203;5204 | X200: 5203 | Y200: 是的。鲲鹏之行，志在必达。 | AA200: 5204 | AB200: 看看风的尽头到底有什么。 | AI200: =IF(A200="","",IF(ISNUMBER(Y200),2,IF(A201="",IF(OR(AK200>0,VLOOKUP(O200,EventConfig!A:C,3,FALSE)=4),3,""),1))) -> 1 | AJ200: 1000602 | AL200: 5204
A201: 1000602 | B201: 5201 | C201: 疯道人赠与一半风灵珠 | J201: 103 | K201: =IF(J201="","",VLOOKUP(J201,EventNPC!A:E,5,FALSE)) -> 疯道人 | L201: 5205 | M201: （轻轻一笑）你说风的尽头……我也曾想看。 （他望向远处翻涌的云海） | O201: 10006 | P201: 2 | T201: =IF(R201="","","-"&VLOOKUP(R201,EventConditionConfig!A:C,3,FALSE)&IF(S201="","",CHAR(10)&"-"&VLOOKUP(S201,EventConditionConfig!A:C,3,FALSE))) ->  | U201: 1 | V201: 1000603 | W201: 5206 | X201: 5206 | Y201: 是的。鲲鹏之行，志在必达。 | AI201: =IF(A201="","",IF(ISNUMBER(Y201),2,IF(A202="",IF(OR(AK201>0,VLOOKUP(O201,EventConfig!A:C,3,FALSE)=4),3,""),1))) -> 1 | AJ201: 1000603 | AL201: 5206
A202: 1000603 | B202: 5201 | C202: 疯道人赠与一半风灵珠 | J202: 103 | K202: =IF(J202="","",VLOOKUP(J202,EventNPC!A:E,5,FALSE)) -> 疯道人 | L202: 5207 | M202: 我和师弟，共守这处风眼多年。我想出去，他却偏要留。 | O202: 10006 | P202: 3 | T202: =IF(R202="","","-"&VLOOKUP(R202,EventConditionConfig!A:C,3,FALSE)&IF(S202="","",CHAR(10)&"-"&VLOOKUP(S202,EventConditionConfig!A:C,3,FALSE))) ->  | AI202: =IF(A202="","",IF(ISNUMBER(Y202),2,IF(A203="",IF(OR(AK202>0,VLOOKUP(O202,EventConfig!A:C,3,FALSE)=4),3,""),1))) -> 1 | AJ202: 1000604 | AL202: 5207
A203: 1000604 | B203: =IF(C203="","",IF(C203=C202,B202,MAX(AL202,AL201)+1)) -> 5201 | C203: 疯道人赠与一半风灵珠 | J203: 103 | K203: =IF(J203="","",VLOOKUP(J203,EventNPC!A:E,5,FALSE)) -> 疯道人 | L203: 5208 | M203: 风灵珠碎成两半，一半在我这里，另一半……在他洞府中。 | O203: 10006 | P203: 4 | T203: =IF(R203="","","-"&VLOOKUP(R203,EventConditionConfig!A:C,3,FALSE)&IF(S203="","",CHAR(10)&"-"&VLOOKUP(S203,EventConditionConfig!A:C,3,FALSE))) ->  | X203: =IF(OR(ISNUMBER(Y203),Y203=""),"",MAX(AL202,AL200,B203,D203,L203)+1) ->  | AA203: =IF(OR(ISNUMBER(AB203),AB203=""),"",X203+1) ->  | AD203: =IF(OR(ISNUMBER(AE203),AE203=""),"",AA203+1) ->  | AI203: =IF(A203="","",IF(ISNUMBER(Y203),2,IF(A204="",IF(OR(AK203>0,VLOOKUP(O203,EventConfig!A:C,3,FALSE)=4),3,""),1))) -> 1 | AJ203: 1000605 | AL203: 5208
A204: 1000605 | B204: 5201 | C204: 疯道人赠与一半风灵珠 | J204: 103 | K204: =IF(J204="","",VLOOKUP(J204,EventNPC!A:E,5,FALSE)) -> 疯道人 | L204: 5209 | M204: 你若想见鲲鹏，必须要集齐整个风灵珠。 | O204: 10006 | P204: 5 | T204: =IF(R204="","","-"&VLOOKUP(R204,EventConditionConfig!A:C,3,FALSE)&IF(S204="","",CHAR(10)&"-"&VLOOKUP(S204,EventConditionConfig!A:C,3,FALSE))) ->  | V204: =IF(U204=1,_xlfn.TEXTJOIN(";",1,IF(Z204="",A204+1,Z204),IF(AND(AA204<>"",AC204=""),A204+1,AC204),IF(AND(AD204<>"",AF204=""),A204+1,AF204)),IF(U204=2,Y204,"")) ->  | W204: =_xlfn.TEXTJOIN(";",1,X204,AA204,AD204) ->  | AI204: =IF(A204="","",IF(ISNUMBER(Y204),2,IF(A205="",IF(OR(AK204>0,VLOOKUP(O204,EventConfig!A:C,3,FALSE)=4),3,""),1))) -> 1 | AJ204: =IF(AI204="","",CHOOSE(AI204,IF(AK204="",A204+1,AK204),CONCATENATE(IF(AK204="",A204+1,AK204),";101"),IF(AK204="",O204+1,AK204))) -> 1000606 | AL204: 5209
A205: 1000606 | B205: 5201 | C205: 疯道人赠与一半风灵珠 | J205: 103 | K205: =IF(J205="","",VLOOKUP(J205,EventNPC!A:E,5,FALSE)) -> 疯道人 | L205: 5210 | M205: 我这一半给你，可助你在大风中，来去自如。 | O205: 10006 | P205: 6 | T205: =IF(R205="","","-"&VLOOKUP(R205,EventConditionConfig!A:C,3,FALSE)&IF(S205="","",CHAR(10)&"-"&VLOOKUP(S205,EventConditionConfig!A:C,3,FALSE))) ->  | AI205: =IF(A205="","",IF(ISNUMBER(Y205),2,IF(A206="",IF(OR(AK205>0,VLOOKUP(O205,EventConfig!A:C,3,FALSE)=4),3,""),1))) -> 3 | AJ205: 10007 | AL205: 5210
T206: =IF(R206="","","-"&VLOOKUP(R206,EventConditionConfig!A:C,3,FALSE)&IF(S206="","",CHAR(10)&"-"&VLOOKUP(S206,EventConditionConfig!A:C,3,FALSE))) ->  | AI206: =IF(A206="","",IF(ISNUMBER(Y206),2,IF(A207="",IF(OR(AK206>0,VLOOKUP(O206,EventConfig!A:C,3,FALSE)=4),3,""),1))) -> 
A207: =O207*100+P207 -> 1000701 | B207: 5211 | C207: 没想到痴道人一来就要与你交手 | K207: =IF(J207="","",VLOOKUP(J207,EventNPC!A:E,5,FALSE)) ->  | L207: 5212 | M207: 你获得了疯道人的半颗风灵珠，在狂风中自由飞行，好不自在。 | O207: 10007 | P207: 1 | T207: =IF(R207="","","-"&VLOOKUP(R207,EventConditionConfig!A:C,3,FALSE)&IF(S207="","",CHAR(10)&"-"&VLOOKUP(S207,EventConditionConfig!A:C,3,FALSE))) ->  | AI207: =IF(A207="","",IF(ISNUMBER(Y207),2,IF(A208="",IF(OR(AK207>0,VLOOKUP(O207,EventConfig!A:C,3,FALSE)=4),3,""),1))) -> 1 | AJ207: 1000702 | AL207: 5212
A208: =O208*100+P208 -> 1000702 | B208: 5211 | C208: 没想到痴道人一来就要与你交手 | K208: =IF(J208="","",VLOOKUP(J208,EventNPC!A:E,5,FALSE)) ->  | L208: 5213 | M208: 这......就是逍遥游吗？ | O208: 10007 | P208: 2 | T208: =IF(R208="","","-"&VLOOKUP(R208,EventConditionConfig!A:C,3,FALSE)&IF(S208="","",CHAR(10)&"-"&VLOOKUP(S208,EventConditionConfig!A:C,3,FALSE))) ->  | AI208: =IF(A208="","",IF(ISNUMBER(Y208),2,IF(A209="",IF(OR(AK208>0,VLOOKUP(O208,EventConfig!A:C,3,FALSE)=4),3,""),1))) -> 1 | AJ208: 1000703 | AL208: 5213
A209: =O209*100+P209 -> 1000703 | B209: 5211 | C209: 没想到痴道人一来就要与你交手 | J209: 104 | K209: =IF(J209="","",VLOOKUP(J209,EventNPC!A:E,5,FALSE)) -> 痴道人 | L209: 5214 | M209: 你终于来了...... | O209: 10007 | P209: 3 | T209: =IF(R209="","","-"&VLOOKUP(R209,EventConditionConfig!A:C,3,FALSE)&IF(S209="","",CHAR(10)&"-"&VLOOKUP(S209,EventConditionConfig!A:C,3,FALSE))) ->  | U209: 1 | V209: 1000704 | W209: 5215 | X209: 5215 | Y209: 你知道我要来？ | AI209: =IF(A209="","",IF(ISNUMBER(Y209),2,IF(A210="",IF(OR(AK209>0,VLOOKUP(O209,EventConfig!A:C,3,FALSE)=4),3,""),1))) -> 1 | AJ209: 1000704 | AL209: 5215
A210: =O210*100+P210 -> 1000704 | B210: 5211 | C210: 没想到痴道人一来就要与你交手 | J210: 104 | K210: =IF(J210="","",VLOOKUP(J210,EventNPC!A:E,5,FALSE)) -> 痴道人 | L210: 5216 | M210: 多说无益，我早已感应到你身上的半颗风灵珠。必是那疯老头让来的。出手吧！ | O210: 10007 | P210: 4 | T210: =IF(R210="","","-"&VLOOKUP(R210,EventConditionConfig!A:C,3,FALSE)&IF(S210="","",CHAR(10)&"-"&VLOOKUP(S210,EventConditionConfig!A:C,3,FALSE))) ->  | U210: =IF(Y210="","",IF(ISTEXT(Y210),1,2)) -> 2 | V210: 1003 | Y210: 1003 | AI210: =IF(A210="","",IF(ISNUMBER(Y210),2,IF(A211="",IF(OR(AK210>0,VLOOKUP(O210,EventConfig!A:C,3,FALSE)=4),3,""),1))) -> 2 | AJ210: 1000705;101 | AL210: 5216
A211: =O211*100+P211 -> 1000705 | B211: 5211 | C211: 没想到痴道人一来就要与你交手 | J211: 104 | K211: =IF(J211="","",VLOOKUP(J211,EventNPC!A:E,5,FALSE)) -> 痴道人 | L211: 5217 | M211: （被击倒在一边）够了！ | O211: 10007 | P211: 5 | T211: =IF(R211="","","-"&VLOOKUP(R211,EventConditionConfig!A:C,3,FALSE)&IF(S211="","",CHAR(10)&"-"&VLOOKUP(S211,EventConditionConfig!A:C,3,FALSE))) ->  | AI211: =IF(A211="","",IF(ISNUMBER(Y211),2,IF(A212="",IF(OR(AK211>0,VLOOKUP(O211,EventConfig!A:C,3,FALSE)=4),3,""),1))) -> 3 | AJ211: 10008 | AL211: 5217
T212: =IF(R212="","","-"&VLOOKUP(R212,EventConditionConfig!A:C,3,FALSE)&IF(S212="","",CHAR(10)&"-"&VLOOKUP(S212,EventConditionConfig!A:C,3,FALSE))) ->  | AI212: =IF(A212="","",IF(ISNUMBER(Y212),2,IF(A213="",IF(OR(AK212>0,VLOOKUP(O212,EventConfig!A:C,3,FALSE)=4),3,""),1))) -> 
A213: =O213*100+P213 -> 1000801 | B213: 5218 | C213: 疯痴相聚 | J213: 104 | K213: =IF(J213="","",VLOOKUP(J213,EventNPC!A:E,5,FALSE)) -> 痴道人 | L213: 5219 | M213: ...... | O213: 10008 | P213: 1 | T213: =IF(R213="","","-"&VLOOKUP(R213,EventConditionConfig!A:C,3,FALSE)&IF(S213="","",CHAR(10)&"-"&VLOOKUP(S213,EventConditionConfig!A:C,3,FALSE))) ->  | U213: 1 | V213: 1000802 | W213: 5220 | X213: 5220 | Y213: （你靠近痴道人）你真的想一直留在这里？你师兄说你不肯走。 | AI213: =IF(A213="","",IF(ISNUMBER(Y213),2,IF(A214="",IF(OR(AK213>0,VLOOKUP(O213,EventConfig!A:C,3,FALSE)=4),3,""),1))) -> 1 | AJ213: 1000802 | AL213: 5220
A214: 1000802 | B214: 5218 | C214: 疯痴相聚 | J214: 104 | K214: =IF(J214="","",VLOOKUP(J214,EventNPC!A:E,5,FALSE)) -> 痴道人 | L214: 5221 | M214: 你修炼的时候，有没有过那种感觉——身边的人都在往前走，只有你还在原地。 | O214: 10008 | P214: 2 | T214: =IF(R214="","","-"&VLOOKUP(R214,EventConditionConfig!A:C,3,FALSE)&IF(S214="","",CHAR(10)&"-"&VLOOKUP(S214,EventConditionConfig!A:C,3,FALSE))) ->  | AI214: =IF(A214="","",IF(ISNUMBER(Y214),2,IF(A215="",IF(OR(AK214>0,VLOOKUP(O214,EventConfig!A:C,3,FALSE)=4),3,""),1))) -> 1 | AJ214: 1000803 | AL214: 5221
A215: 1000803 | B215: 5218 | C215: 疯痴相聚 | J215: 104 | K215: =IF(J215="","",VLOOKUP(J215,EventNPC!A:E,5,FALSE)) -> 痴道人 | L215: 5222 | M215: 我师兄，他悟性极高，一年就能走我三年的路。我不服气，想努力赶上他。 | O215: 10008 | P215: 3 | T215: =IF(R215="","","-"&VLOOKUP(R215,EventConditionConfig!A:C,3,FALSE)&IF(S215="","",CHAR(10)&"-"&VLOOKUP(S215,EventConditionConfig!A:C,3,FALSE))) ->  | U215: 1 | V215: 1000804 | W215: 5223 | X215: 5223 | Y215: 然后呢？ | AI215: =IF(A215="","",IF(ISNUMBER(Y215),2,IF(A216="",IF(OR(AK215>0,VLOOKUP(O215,EventConfig!A:C,3,FALSE)=4),3,""),1))) -> 1 | AJ215: 1000804 | AL215: 5223
A216: 1000804 | B216: 5218 | C216: 疯痴相聚 | J216: 104 | K216: =IF(J216="","",VLOOKUP(J216,EventNPC!A:E,5,FALSE)) -> 痴道人 | L216: 5224 | M216: 我一直苦心修炼，可人也困在这儿了……越修炼，越困难，修不动了。 | O216: 10008 | P216: 4 | T216: =IF(R216="","","-"&VLOOKUP(R216,EventConditionConfig!A:C,3,FALSE)&IF(S216="","",CHAR(10)&"-"&VLOOKUP(S216,EventConditionConfig!A:C,3,FALSE))) ->  | AI216: =IF(A216="","",IF(ISNUMBER(Y216),2,IF(A217="",IF(OR(AK216>0,VLOOKUP(O216,EventConfig!A:C,3,FALSE)=4),3,""),1))) -> 1 | AJ216: 1000805 | AL216: 5224
A217: 1000805 | B217: 5218 | C217: 疯痴相聚 | K217: =IF(J217="","",VLOOKUP(J217,EventNPC!A:E,5,FALSE)) ->  | L217: 5225 | M217: [此时，疯道人踏风而至，就在几步之外] | O217: 10008 | P217: 5 | T217: =IF(R217="","","-"&VLOOKUP(R217,EventConditionConfig!A:C,3,FALSE)&IF(S217="","",CHAR(10)&"-"&VLOOKUP(S217,EventConditionConfig!A:C,3,FALSE))) ->  | AI217: =IF(A217="","",IF(ISNUMBER(Y217),2,IF(A218="",IF(OR(AK217>0,VLOOKUP(O217,EventConfig!A:C,3,FALSE)=4),3,""),1))) -> 1 | AJ217: 1000806 | AL217: 5225
A218: 1000806 | B218: 5218 | C218: 疯痴相聚 | J218: 103 | K218: =IF(J218="","",VLOOKUP(J218,EventNPC!A:E,5,FALSE)) -> 疯道人 | L218: 5226 | M218: 师弟，你修着修着，就不记得一开始，是为了什么而修行。 | O218: 10008 | P218: =IF(O218="","",IF(O218=O217,P217+1,1)) -> 6 | T218: =IF(R218="","","-"&VLOOKUP(R218,EventConditionConfig!A:C,3,FALSE)&IF(S218="","",CHAR(10)&"-"&VLOOKUP(S218,EventConditionConfig!A:C,3,FALSE))) ->  | AI218: =IF(A218="","",IF(ISNUMBER(Y218),2,IF(A219="",IF(OR(AK218>0,VLOOKUP(O218,EventConfig!A:C,3,FALSE)=4),3,""),1))) -> 1 | AJ218: 1000807 | AL218: 5226
A219: 1000807 | B219: 5218 | C219: 疯痴相聚 | J219: 104 | K219: =IF(J219="","",VLOOKUP(J219,EventNPC!A:E,5,FALSE)) -> 痴道人 | L219: 5227 | M219: （抬头）......我，我真的不记得了。 | O219: 10008 | P219: 7 | T219: =IF(R219="","","-"&VLOOKUP(R219,EventConditionConfig!A:C,3,FALSE)&IF(S219="","",CHAR(10)&"-"&VLOOKUP(S219,EventConditionConfig!A:C,3,FALSE))) ->  | AI219: =IF(A219="","",IF(ISNUMBER(Y219),2,IF(A220="",IF(OR(AK219>0,VLOOKUP(O219,EventConfig!A:C,3,FALSE)=4),3,""),1))) -> 1 | AJ219: 1000808 | AL219: 5227
A220: 1000808 | B220: 5218 | C220: 疯痴相聚 | J220: 103 | K220: =IF(J220="","",VLOOKUP(J220,EventNPC!A:E,5,FALSE)) -> 疯道人 | L220: 5228 | M220: 那就放下风灵珠，和我出去走走。 | O220: 10008 | P220: 8 | T220: =IF(R220="","","-"&VLOOKUP(R220,EventConditionConfig!A:C,3,FALSE)&IF(S220="","",CHAR(10)&"-"&VLOOKUP(S220,EventConditionConfig!A:C,3,FALSE))) ->  | AI220: =IF(A220="","",IF(ISNUMBER(Y220),2,IF(A221="",IF(OR(AK220>0,VLOOKUP(O220,EventConfig!A:C,3,FALSE)=4),3,""),1))) -> 1 | AJ220: 1000809 | AL220: 5228
A221: 1000809 | B221: 5218 | C221: 疯痴相聚 | J221: 103 | K221: =IF(J221="","",VLOOKUP(J221,EventNPC!A:E,5,FALSE)) -> 疯道人 | L221: 5229 | M221: [痴道人楞了一下，片刻后轻轻点头] | O221: 10008 | P221: 9 | Q221: =_xlfn.TEXTJOIN(";",1,R221:S221) ->  | T221: =IF(R221="","","-"&VLOOKUP(R221,EventConditionConfig!A:C,3,FALSE)&IF(S221="","",CHAR(10)&"-"&VLOOKUP(S221,EventConditionConfig!A:C,3,FALSE))) ->  | AI221: =IF(A221="","",IF(ISNUMBER(Y221),2,IF(A222="",IF(OR(AK221>0,VLOOKUP(O221,EventConfig!A:C,3,FALSE)=4),3,""),1))) -> 1 | AJ221: 1000810 | AL221: 5229
A222: 1000810 | B222: 5218 | C222: 疯痴相聚 | K222: =IF(J222="","",VLOOKUP(J222,EventNPC!A:E,5,FALSE)) ->  | L222: 5230 | M222: [突然..洞府周围灵气汇聚，快速涌入痴道人的身体.] | O222: 10008 | P222: 10 | T222: =IF(R222="","","-"&VLOOKUP(R222,EventConditionConfig!A:C,3,FALSE)&IF(S222="","",CHAR(10)&"-"&VLOOKUP(S222,EventConditionConfig!A:C,3,FALSE))) ->  | U222: 1 | V222: 1000811 | W222: 5231 | X222: 5231 | Y222: 前辈，为何灵气会动！ | AI222: =IF(A222="","",IF(ISNUMBER(Y222),2,IF(A223="",IF(OR(AK222>0,VLOOKUP(O222,EventConfig!A:C,3,FALSE)=4),3,""),1))) -> 1 | AJ222: 1000811 | AL222: 5231
A223: 1000811 | B223: 5218 | C223: 疯痴相聚 | J223: 103 | K223: =IF(J223="","",VLOOKUP(J223,EventNPC!A:E,5,FALSE)) -> 疯道人 | L223: 5232 | M223: 恭喜师弟，突破心魔。 | O223: 10008 | P223: 11 | T223: =IF(R223="","","-"&VLOOKUP(R223,EventConditionConfig!A:C,3,FALSE)&IF(S223="","",CHAR(10)&"-"&VLOOKUP(S223,EventConditionConfig!A:C,3,FALSE))) ->  | AI223: =IF(A223="","",IF(ISNUMBER(Y223),2,IF(A224="",IF(OR(AK223>0,VLOOKUP(O223,EventConfig!A:C,3,FALSE)=4),3,""),1))) -> 1 | AJ223: 1000812 | AL223: 5232
A224: 1000812 | B224: 5218 | C224: 疯痴相聚 | J224: 104 | K224: =IF(J224="","",VLOOKUP(J224,EventNPC!A:E,5,FALSE)) -> 痴道人 | L224: 5233 | M224: 多谢师兄！ | O224: 10008 | P224: 12 | T224: =IF(R224="","","-"&VLOOKUP(R224,EventConditionConfig!A:C,3,FALSE)&IF(S224="","",CHAR(10)&"-"&VLOOKUP(S224,EventConditionConfig!A:C,3,FALSE))) ->  | U224: 1 | V224: 1000813;1000813 | W224: 5234;5235 | X224: 5234 | Y224: 原来如此… | AA224: 5235 | AB224: 请前辈赐我风灵珠。 | AI224: =IF(A224="","",IF(ISNUMBER(Y224),2,IF(A225="",IF(OR(AK224>0,VLOOKUP(O224,EventConfig!A:C,3,FALSE)=4),3,""),1))) -> 1 | AJ224: 1000813 | AL224: 5235
A225: 1000813 | B225: 5218 | C225: 疯痴相聚 | J225: 104 | K225: =IF(J225="","",VLOOKUP(J225,EventNPC!A:E,5,FALSE)) -> 痴道人 | L225: 5236 | M225: 小友莫急… (说罢，痴道人将风灵珠的碎片合成了一颗完整的风灵珠) | O225: 10008 | P225: 13 | T225: =IF(R225="","","-"&VLOOKUP(R225,EventConditionConfig!A:C,3,FALSE)&IF(S225="","",CHAR(10)&"-"&VLOOKUP(S225,EventConditionConfig!A:C,3,FALSE))) ->  | AI225: =IF(A225="","",IF(ISNUMBER(Y225),2,IF(A226="",IF(OR(AK225>0,VLOOKUP(O225,EventConfig!A:C,3,FALSE)=4),3,""),1))) -> 1 | AJ225: 1000814 | AL225: 5236
A226: 1000814 | B226: 5218 | C226: 疯痴相聚 | J226: 104 | K226: =IF(J226="","",VLOOKUP(J226,EventNPC!A:E,5,FALSE)) -> 痴道人 | L226: 5237 | M226: 拿好了，这风啊……来一回，不容易。 | O226: 10008 | P226: 14 | T226: =IF(R226="","","-"&VLOOKUP(R226,EventConditionConfig!A:C,3,FALSE)&IF(S226="","",CHAR(10)&"-"&VLOOKUP(S226,EventConditionConfig!A:C,3,FALSE))) ->  | AI226: =IF(A226="","",IF(ISNUMBER(Y226),2,IF(A227="",IF(OR(AK226>0,VLOOKUP(O226,EventConfig!A:C,3,FALSE)=4),3,""),1))) -> 3 | AJ226: 10009 | AL226: 5237
T227: =IF(R227="","","-"&VLOOKUP(R227,EventConditionConfig!A:C,3,FALSE)&IF(S227="","",CHAR(10)&"-"&VLOOKUP(S227,EventConditionConfig!A:C,3,FALSE))) ->  | AI227: =IF(A227="","",IF(ISNUMBER(Y227),2,IF(A228="",IF(OR(AK227>0,VLOOKUP(O227,EventConfig!A:C,3,FALSE)=4),3,""),1))) -> 
A228: =O228*100+P228 -> 1000901 | B228: 5238 | C228: 达到筑基后期 | J228: 100 | K228: =IF(J228="","",VLOOKUP(J228,EventNPC!A:E,5,FALSE)) -> 玩家 | L228: 5239 | M228: 完整的风灵珠果然不同凡响，我可以更大的狂风中穿行了。 | O228: =IF(O227="",O226+1,O227) -> 10009 | P228: 1 | T228: =IF(R228="","","-"&VLOOKUP(R228,EventConditionConfig!A:C,3,FALSE)&IF(S228="","",CHAR(10)&"-"&VLOOKUP(S228,EventConditionConfig!A:C,3,FALSE))) ->  | AI228: =IF(A228="","",IF(ISNUMBER(Y228),2,IF(A229="",IF(OR(AK228>0,VLOOKUP(O228,EventConfig!A:C,3,FALSE)=4),3,""),1))) -> 1 | AJ228: 1000902 | AL228: 5239
A229: =O229*100+P229 -> 1000902 | B229: 5238 | C229: 达到筑基后期 | J229: 100 | K229: =IF(J229="","",VLOOKUP(J229,EventNPC!A:E,5,FALSE)) -> 玩家 | L229: 5240 | M229: 前方似乎有不少高阶妖兽，我先在此地提升一些修为吧。 | O229: =IF(O228="",O227+1,O228) -> 10009 | P229: 2 | T229: =IF(R229="","","-"&VLOOKUP(R229,EventConditionConfig!A:C,3,FALSE)&IF(S229="","",CHAR(10)&"-"&VLOOKUP(S229,EventConditionConfig!A:C,3,FALSE))) ->  | AI229: =IF(A229="","",IF(ISNUMBER(Y229),2,IF(A230="",IF(OR(AK229>0,VLOOKUP(O229,EventConfig!A:C,3,FALSE)=4),3,""),1))) -> 1 | AJ229: 1000903 | AL229: 5240
A230: =O230*100+P230 -> 1000903 | B230: 5238 | C230: 达到筑基后期 | J230: 100 | K230: =IF(J230="","",VLOOKUP(J230,EventNPC!A:E,5,FALSE)) -> 玩家 | L230: 5241 | M230: 继续寻找冲虚提到的“七道心境”吧，不知鲲鹏是否会给我答案。 | O230: =IF(O229="",O228+1,O229) -> 10009 | P230: 3 | Q230: 8 | R230: 8 | T230: =IF(R230="","","-"&VLOOKUP(R230,EventConditionConfig!A:C,3,FALSE)&IF(S230="","",CHAR(10)&"-"&VLOOKUP(S230,EventConditionConfig!A:C,3,FALSE))) -> -达到境界：练气-后期 | AI230: =IF(A230="","",IF(ISNUMBER(Y230),2,IF(A231="",IF(OR(AK230>0,VLOOKUP(O230,EventConfig!A:C,3,FALSE)=4),3,""),1))) -> 3 | AJ230: 10010 | AL230: 5241
T231: =IF(R231="","","-"&VLOOKUP(R231,EventConditionConfig!A:C,3,FALSE)&IF(S231="","",CHAR(10)&"-"&VLOOKUP(S231,EventConditionConfig!A:C,3,FALSE))) ->  | AI231: =IF(A231="","",IF(ISNUMBER(Y231),2,IF(A232="",IF(OR(AK231>0,VLOOKUP(O231,EventConfig!A:C,3,FALSE)=4),3,""),1))) -> 
A232: =O232*100+P232 -> 1001001 | B232: 5242 | C232: 妖兽横行 | K232: =IF(J232="","",VLOOKUP(J232,EventNPC!A:E,5,FALSE)) ->  | L232: 5243 | M232: 你深入北海，海浪翻涌，云雾缭绕。 | O232: =IF(O231="",O230+1,O231) -> 10010 | P232: 1 | T232: =IF(R232="","","-"&VLOOKUP(R232,EventConditionConfig!A:C,3,FALSE)&IF(S232="","",CHAR(10)&"-"&VLOOKUP(S232,EventConditionConfig!A:C,3,FALSE))) ->  | AI232: =IF(A232="","",IF(ISNUMBER(Y232),2,IF(A233="",IF(OR(AK232>0,VLOOKUP(O232,EventConfig!A:C,3,FALSE)=4),3,""),1))) -> 1 | AJ232: 1001002 | AL232: 5243
A233: 1001002 | B233: 5242 | C233: 妖兽横行 | K233: =IF(J233="","",VLOOKUP(J233,EventNPC!A:E,5,FALSE)) ->  | L233: 5244 | M233: 深处阴冷气息笼罩，妖兽从浪中涌出，狂暴阻路，仿佛在守护北海的秘密。 | O233: =IF(O232="",O231+1,O232) -> 10010 | P233: 2 | T233: =IF(R233="","","-"&VLOOKUP(R233,EventConditionConfig!A:C,3,FALSE)&IF(S233="","",CHAR(10)&"-"&VLOOKUP(S233,EventConditionConfig!A:C,3,FALSE))) ->  | AI233: =IF(A233="","",IF(ISNUMBER(Y233),2,IF(A234="",IF(OR(AK233>0,VLOOKUP(O233,EventConfig!A:C,3,FALSE)=4),3,""),1))) -> 1 | AJ233: 1001003 | AL233: 5244
A234: 1001003 | B234: 5242 | C234: 妖兽横行 | K234: =IF(J234="","",VLOOKUP(J234,EventNPC!A:E,5,FALSE)) ->  | L234: 5245 | M234: 风灵珠碎片微微发光，助你御风而战。 | O234: =IF(O233="",O232+1,O233) -> 10010 | P234: 3 | T234: =IF(R234="","","-"&VLOOKUP(R234,EventConditionConfig!A:C,3,FALSE)&IF(S234="","",CHAR(10)&"-"&VLOOKUP(S234,EventConditionConfig!A:C,3,FALSE))) ->  | AI234: =IF(A234="","",IF(ISNUMBER(Y234),2,IF(A235="",IF(OR(AK234>0,VLOOKUP(O234,EventConfig!A:C,3,FALSE)=4),3,""),1))) -> 1 | AJ234: 1001004 | AL234: 5245
A235: 1001004 | B235: 5242 | C235: 妖兽横行 | K235: =IF(J235="","",VLOOKUP(J235,EventNPC!A:E,5,FALSE)) ->  | L235: 5246 | M235: 这些妖兽挡道……看来得先清扫一番，才能继续前行。 | O235: =IF(O232="",O231+1,O232) -> 10010 | P235: 4 | T235: =IF(R235="","","-"&VLOOKUP(R235,EventConditionConfig!A:C,3,FALSE)&IF(S235="","",CHAR(10)&"-"&VLOOKUP(S235,EventConditionConfig!A:C,3,FALSE))) ->  | AI235: =IF(A235="","",IF(ISNUMBER(Y235),2,IF(A236="",IF(OR(AK235>0,VLOOKUP(O235,EventConfig!A:C,3,FALSE)=4),3,""),1))) -> 1 | AJ235: 1001005 | AL235: 5246
A236: 1001005 | B236: 5247 | C236: 妖兽肆虐 | J236: 120 | K236: =IF(J236="","",VLOOKUP(J236,EventNPC!A:E,5,FALSE)) -> 妖兽 | L236: 5248 | M236: （咆哮，从深浪跃出）“外来者，北海无路！” | O236: =IF(O232="",O231+1,O232) -> 10010 | P236: 5 | Q236: 9 | R236: 9 | T236: =IF(R236="","","-"&VLOOKUP(R236,EventConditionConfig!A:C,3,FALSE)&IF(S236="","",CHAR(10)&"-"&VLOOKUP(S236,EventConditionConfig!A:C,3,FALSE))) -> -击杀北海小妖 | AI236: =IF(A236="","",IF(ISNUMBER(Y236),2,IF(A237="",IF(OR(AK236>0,VLOOKUP(O236,EventConfig!A:C,3,FALSE)=4),3,""),1))) -> 1 | AJ236: 1001006 | AL236: 5248
A237: 1001006 | B237: 5247 | C237: 妖兽肆虐 | K237: =IF(J237="","",VLOOKUP(J237,EventNPC!A:E,5,FALSE)) ->  | O237: =IF(O233="",O232+1,O233) -> 10010 | P237: 6 | Q237: 36 | R237: 36 | T237: =IF(R237="","","-"&VLOOKUP(R237,EventConditionConfig!A:C,3,FALSE)&IF(S237="","",CHAR(10)&"-"&VLOOKUP(S237,EventConditionConfig!A:C,3,FALSE))) -> -击杀北海妖兽精英 | U237: 2 | V237: 1003 | Y237: 1003 | AI237: =IF(A237="","",IF(ISNUMBER(Y237),2,IF(A238="",IF(OR(AK237>0,VLOOKUP(O237,EventConfig!A:C,3,FALSE)=4),3,""),1))) -> 2 | AJ237: 1001007;101 | AL237: 5248
T238: =IF(R238="","","-"&VLOOKUP(R238,EventConditionConfig!A:C,3,FALSE)&IF(S238="","",CHAR(10)&"-"&VLOOKUP(S238,EventConditionConfig!A:C,3,FALSE))) ->  | AI238: =IF(A238="","",IF(ISNUMBER(Y238),2,IF(A239="",IF(OR(AK238>0,VLOOKUP(O238,EventConfig!A:C,3,FALSE)=4),3,""),1))) -> 
A239: =O239*100+P239 -> 1001101 | B239: 5249 | C239: 与鲲鹏对话 | K239: =IF(J239="","",VLOOKUP(J239,EventNPC!A:E,5,FALSE)) ->  | L239: 5250 | M239: 你来到北海尽头。水面如镜，深不见底。一道巨影在水底游弋，这就是北海之鱼——鲲，至少有几千里那么大。 | O239: =IF(O238="",O232+1,O238) -> 10011 | P239: 1 | T239: =IF(R239="","","-"&VLOOKUP(R239,EventConditionConfig!A:C,3,FALSE)&IF(S239="","",CHAR(10)&"-"&VLOOKUP(S239,EventConditionConfig!A:C,3,FALSE))) ->  | AI239: =IF(A239="","",IF(ISNUMBER(Y239),2,IF(A240="",IF(OR(AK239>0,VLOOKUP(O239,EventConfig!A:C,3,FALSE)=4),3,""),1))) -> 1 | AJ239: 1001102 | AL239: 5250
A240: 1001102 | B240: 5249 | C240: 与鲲鹏对话 | J240: 119 | K240: =IF(J240="","",VLOOKUP(J240,EventNPC!A:E,5,FALSE)) -> 鲲鹏 | L240: 5251 | M240: (低沉声，从水底传出，如闷雷回荡）……小子，你寻我何事？身上竟有风灵珠的气息，不简单。 | O240: 10011 | P240: 2 | Q240: =_xlfn.TEXTJOIN(";",1,R240:S240) ->  | T240: =IF(R240="","","-"&VLOOKUP(R240,EventConditionConfig!A:C,3,FALSE)&IF(S240="","",CHAR(10)&"-"&VLOOKUP(S240,EventConditionConfig!A:C,3,FALSE))) ->  | AI240: =IF(A240="","",IF(ISNUMBER(Y240),2,IF(A241="",IF(OR(AK240>0,VLOOKUP(O240,EventConfig!A:C,3,FALSE)=4),3,""),1))) -> 1 | AJ240: 1001103 | AL240: 5251
A241: 1001103 | B241: 5249 | C241: 与鲲鹏对话 | J241: 100 | K241: =IF(J241="","",VLOOKUP(J241,EventNPC!A:E,5,FALSE)) -> 玩家 | L241: 5252 | M241: 前辈，我受冲虚真人指引，游历天下，正在寻找七道心境。 | O241: 10011 | P241: 3 | T241: =IF(R241="","","-"&VLOOKUP(R241,EventConditionConfig!A:C,3,FALSE)&IF(S241="","",CHAR(10)&"-"&VLOOKUP(S241,EventConditionConfig!A:C,3,FALSE))) ->  | AI241: =IF(A241="","",IF(ISNUMBER(Y241),2,IF(A242="",IF(OR(AK241>0,VLOOKUP(O241,EventConfig!A:C,3,FALSE)=4),3,""),1))) -> 1 | AJ241: 1001104 | AL241: 5252
A242: 1001104 | B242: 5249 | C242: 与鲲鹏对话 | J242: 100 | K242: =IF(J242="","",VLOOKUP(J242,EventNPC!A:E,5,FALSE)) -> 玩家 | L242: 5253 | M242: 有缘路过此地，听闻前辈欲飞南海天池，可为何停滞于此？ | O242: 10011 | P242: 4 | T242: =IF(R242="","","-"&VLOOKUP(R242,EventConditionConfig!A:C,3,FALSE)&IF(S242="","",CHAR(10)&"-"&VLOOKUP(S242,EventConditionConfig!A:C,3,FALSE))) ->  | AI242: =IF(A242="","",IF(ISNUMBER(Y242),2,IF(A243="",IF(OR(AK242>0,VLOOKUP(O242,EventConfig!A:C,3,FALSE)=4),3,""),1))) -> 1 | AJ242: 1001105 | AL242: 5253
A243: 1001105 | B243: 5249 | C243: 与鲲鹏对话 | J243: 119 | K243: =IF(J243="","",VLOOKUP(J243,EventNPC!A:E,5,FALSE)) -> 鲲鹏 | L243: 5254 | M243: （叹息，水面微颤）北海虽广，却无龙卷大风，我无法化鹏南飞，已困千年。 | O243: 10011 | P243: 5 | T243: =IF(R243="","","-"&VLOOKUP(R243,EventConditionConfig!A:C,3,FALSE)&IF(S243="","",CHAR(10)&"-"&VLOOKUP(S243,EventConditionConfig!A:C,3,FALSE))) ->  | W243: 5255 | X243: 5255 | Y243: 我愿助一臂之力 | AI243: =IF(A243="","",IF(ISNUMBER(Y243),2,IF(A244="",IF(OR(AK243>0,VLOOKUP(O243,EventConfig!A:C,3,FALSE)=4),3,""),1))) -> 1 | AJ243: 1001106 | AL243: 5255
A244: 1001106 | B244: 5249 | C244: 与鲲鹏对话 | J244: 119 | K244: =IF(J244="","",VLOOKUP(J244,EventNPC!A:E,5,FALSE)) -> 鲲鹏 | L244: 5256 | M244: （低笑）你修为尚浅，虽然聚齐了风灵珠，但却无法召唤龙卷大风。 | O244: 10011 | P244: 6 | T244: =IF(R244="","","-"&VLOOKUP(R244,EventConditionConfig!A:C,3,FALSE)&IF(S244="","",CHAR(10)&"-"&VLOOKUP(S244,EventConditionConfig!A:C,3,FALSE))) ->  | AI244: =IF(A244="","",IF(ISNUMBER(Y244),2,IF(A245="",IF(OR(AK244>0,VLOOKUP(O244,EventConfig!A:C,3,FALSE)=4),3,""),1))) -> 1 | AJ244: 1001107 | AL244: 5256
... 1156 more rows

Sheet EventConditionConfig
A1: ID | B1: message | E1: Operation | G1: ConditionType | H1: ConditionPara | I1: finishCount | J1: RelatedEvents | L1: SkiptoIds
A2: int | B2: int | E2: int | G2: int | H2: int[] | I2: int | J2: int[] | L2: int[]
A4: ID | B4: 描述 | E4: 与0 或1 | G4: 条件判断类型 | H4: 条件判断值 | I4: 条件完成次数or数量 | J4: 关联的事件Id | K4: 提示 | L4: 跳转Id
A5: 1 | B5: 9001 | C5: 拥有金币 | D5: =CONCATENATE("- ",C5,"{0}/{1}") -> - 拥有金币{0}/{1} | G5: 1 | H5: 1001 | I5: 10 | L5: 1;2;3;4
A6: 2 | B6: 9002 | C6: =CONCATENATE("达到境界：",M6,"-",N6) -> 达到境界：练气-中期 | D6: =CONCATENATE("- ",C6,"{0}/{1}") -> - 达到境界：练气-中期{0}/{1} | G6: 3 | H6: 11 | I6: 1 | L6: 1;2;3;4 | M6: 练气 | N6: 中期 | O6: 11 | P6: =CONCATENATE(M6,"-",N6) -> 练气-中期
A7: 3 | B7: 9003 | C7: 击杀魔休 | D7: - 击杀魔休{0}/{1} | G7: 5 | H7: 1001 | I7: 5 | J7: 9031 | L7: 1;2;3;4
A8: 4 | B8: 9004 | C8: 获得钻石 | D8: - 获得钻石{0}/{1} | G8: 6 | H8: 1002 | I8: 10 | L8: 1;2;3;4
A9: 5 | B9: 9005 | C9: 使用神识 | D9: - 使用神识{0}/{1} | G9: 8 | I9: 1 | L9: 5
A10: 6 | B10: 9006 | C10: 继续飞行一段时间 | D10: - 继续飞行一段时间{0}/{1} | G10: 9 | I10: 6 | L10: 1;2;3;4
A11: 7 | B11: 9007 | C11: 击败结界兽 | D11: - 击败结界兽{0}/{1} | G11: 5 | H11: 1002 | I11: 1 | L11: 1;2;3;4
A12: 8 | B12: 9008 | C12: =CONCATENATE("达到境界：",M12,"-",N12) -> 达到境界：练气-后期 | D12: - 达到境界：练气-后期{0}/{1} | G12: 3 | H12: 21 | I12: 1 | L12: 1;2;3;4 | M12: 练气 | N12: 后期 | O12: 21 | P12: =CONCATENATE(M12,"-",N12) -> 练气-后期
A13: 9 | B13: 9009 | C13: 击杀北海小妖 | D13: - 击杀北海小妖{0}/{1} | G13: 5 | H13: 1003 | I13: 3 | J13: 30003 | L13: 1;2;3;4
A14: 10 | B14: 9010 | C14: 击败后山小妖 | D14: - 击败后山小妖{0}/{1} | G14: 5 | H14: 1004 | I14: 3 | J14: 30004 | L14: 1;2;3;4
A15: 11 | B15: 9011 | C15: 收集灵草种子 | D15: - 收集灵草种子{0}/{1} | G15: 6 | H15: 20003 | I15: 3 | J15: 30011 | L15: 1;2;3;4
A16: 12 | B16: 9012 | C16: 击败夜袭的妖兽 | D16: - 击败夜袭的妖兽{0}/{1} | G16: 5 | H16: 1005 | I16: 1 | J16: 30005 | L16: 1;2;3;4
A17: 13 | B17: 9013 | C17: 击败峰顶的妖王 | D17: - 击败峰顶的妖王{0}/{1} | G17: 5 | H17: 1006 | I17: 1 | J17: 30006 | L17: 1;2;3;4
A18: 14 | B18: 9014 | C18: =CONCATENATE("达到境界：",M18,"-",N18) -> 达到境界：筑基-前期 | D18: - 达到境界：筑基-前期{0}/{1} | G18: 3 | H18: 31 | I18: 1 | L18: 1;2;3;4 | M18: 筑基 | N18: 前期 | O18: 31 | P18: =CONCATENATE(M18,"-",N18) -> 筑基-前期
A19: 15 | B19: 9015 | C19: 击败仙山的阵眼妖兽 | D19: - 击败仙山的阵眼妖兽{0}/{1} | G19: 5 | H19: 1007 | I19: 1 | J19: 30007 | L19: 1;2;3;4
A20: 17 | B20: 9016 | C20: 击杀灵兽获得天肥 | D20: =CONCATENATE("- ",C20,"{0}/{1}") -> - 击杀灵兽获得天肥{0}/{1} | G20: 5 | H20: 1008 | I20: 1 | J20: 30008 | L20: 1;2;3;4
A21: 18 | B21: 9017 | C21: 获得一件袈裟 | D21: - 获得一件袈裟{0}/{1} | G21: 6 | H21: 1301 | I21: 1 | J21: 30009 | L21: 1;2;3;4
A22: 19 | B22: 9018 | C22: 夺回琉璃盏 | D22: - 夺回琉璃盏{0}/{1} | G22: 6 | H22: 1001 | I22: 1 | J22: 30010 | L22: 1;2;3;4
A23: 20 | B23: 9019 | C23: 给予渡劫丹 | D23: - 给予渡劫丹{0}/{1} | G23: 1 | H23: 1001 | I23: 1 | L23: 1;2;3;4
A24: 21 | B24: 9020 | C24: =CONCATENATE("达到境界：",M24,"-",N24) -> 达到境界：筑基-中期 | D24: - 达到境界：筑基-中期{0}/{1} | G24: 3 | H24: 41 | I24: 1 | L24: 1;2;3;4 | M24: 筑基 | N24: 中期 | O24: 41 | P24: =CONCATENATE(M24,"-",N24) -> 筑基-中期
A25: 22 | B25: 9021 | C25: 达到境界：筑基-后期 | D25: - 达到境界：筑基-后期{0}/{1} | G25: 3 | H25: 51 | I25: 1 | L25: 1;2;3;4 | M25: 筑基 | N25: 后期 | O25: 51 | P25: 筑基-后期
A26: 23 | B26: 9022 | C26: 达到境界：结丹-前期 | D26: - 达到境界：结丹-前期{0}/{1} | G26: 3 | H26: 61 | I26: 1 | L26: 1;2;3;4 | M26: 结丹 | N26: 前期 | O26: 61 | P26: 结丹-前期
A27: 24 | B27: 9023 | C27: 达到境界：结丹-中期 | D27: - 达到境界：结丹-中期{0}/{1} | G27: 3 | H27: 71 | I27: 1 | L27: 1;2;3;4 | M27: 结丹 | N27: 中期 | O27: 71 | P27: 结丹-中期
A28: 25 | B28: 9024 | C28: 达到境界：结丹-后期 | D28: - 达到境界：结丹-后期{0}/{1} | G28: 3 | H28: 81 | I28: 1 | L28: 1;2;3;4 | M28: 结丹 | N28: 后期 | O28: 81 | P28: 结丹-后期
A29: 26 | B29: 9025 | C29: 达到境界：元婴-前期 | D29: - 达到境界：元婴-前期{0}/{1} | G29: 3 | H29: 91 | I29: 1 | L29: 1;2;3;4 | M29: 元婴 | N29: 前期 | O29: 91 | P29: 元婴-前期
A30: 27 | B30: 9026 | C30: 收集并饮用甘露 | D30: - 收集并饮用甘露{0}/{1} | G30: 6 | H30: 20004 | I30: 3 | L30: 1;2;3;4
A31: 28 | B31: 9027 | C31: 击败心魔 | D31: - 击败心魔{0}/{1} | G31: 5 | H31: 1013 | I31: 1 | L31: 1;2;3;4
A32: 29 | B32: 9028 | C32: 击败北海妖兽 | D32: - 击败北海妖兽{0}/{1} | G32: 5 | H32: 1014 | I32: 5 | L32: 1;2;3;4
A33: 30 | B33: 9029 | C33: =CONCATENATE("达到境界：",M33,"-",N33) -> 达到境界：元婴-中期 | D33: - 达到境界：元婴-中期{0}/{1} | G33: 3 | H33: 101 | I33: 1 | L33: 1;2;3;4 | M33: 元婴 | N33: 中期 | O33: 101 | P33: =CONCATENATE(M33,"-",N33) -> 元婴-中期
A34: 31 | B34: 9030 | C34: 达到境界：元婴-后期 | D34: - 达到境界：元婴-后期{0}/{1} | G34: 3 | H34: 111 | I34: 1 | L34: 1;2;3;4 | M34: 元婴 | N34: 后期 | O34: 111 | P34: 元婴-后期
A35: 32 | B35: 9031 | C35: 达到境界：化神-前期 | D35: - 达到境界：化神-前期{0}/{1} | G35: 3 | H35: 121 | I35: 1 | L35: 1;2;3;4 | M35: 化神 | N35: 前期 | O35: 121 | P35: 化神-前期
A36: 33 | B36: 9032 | C36: 达到境界：化神-中期 | D36: - 达到境界：化神-中期{0}/{1} | G36: 3 | H36: 131 | I36: 1 | L36: 1;2;3;4 | M36: 化神 | N36: 中期 | O36: 131 | P36: 化神-中期
A37: 34 | B37: 9033 | C37: 达到境界：化神-后期 | D37: - 达到境界：化神-后期{0}/{1} | G37: 3 | H37: 141 | I37: 1 | L37: 1;2;3;4 | M37: 化神 | N37: 后期 | O37: 141 | P37: 化神-后期
A38: 35 | B38: 9034 | C38: 达到境界：炼虚-前期 | D38: - 达到境界：炼虚-前期{0}/{1} | G38: 3 | H38: 151 | I38: 1 | L38: 1;2;3;4 | M38: 炼虚 | N38: 前期 | O38: 151 | P38: 炼虚-前期
A39: 36 | B39: 9035 | C39: 击杀北海妖兽精英 | D39: - 击杀北海妖兽精英{0}/{1} | G39: 5 | H39: 1003 | I39: 1 | L39: 1;2;3;4
A40: 37 | B40: 9036 | C40: 帮雀灵儿搜集风铃 | D40: - 帮雀灵儿搜集风铃{0}/{1} | G40: 1 | H40: 20005 | I40: 3 | L40: 1;2;3;4
A41: =A40+1 -> 38 | B41: =B40+1 -> 9037 | C41: 击败风妖 | D41: - 击败风妖{0}/{1} | G41: 5 | H41: 3003 | I41: 3 | J41: 30014 | L41: 1;2;3;4
A42: 39 | B42: 9038 | C42: 收集风灵碎片 | D42: - 收集风灵碎片{0}/{1} | G42: 1 | H42: 20006 | I42: 3 | J42: 30015 | L42: 1;2;3;4
A43: 40 | B43: 9039 | C43: 完成神识探索-云隐秘闻 | D43: - 完成神识探索-云隐秘闻{0}/{1} | G43: 10 | H43: 30016 | I43: 1 | J43: 30016 | L43: 1;2;3;4
A44: 41 | B44: 9040 | C44: 完成神识探索-误食灵石的妖兽 | D44: - 完成神识探索-误食灵石的妖兽{0}/{1} | G44: 10 | H44: 30017 | I44: 3 | J44: 30017 | L44: 1;2;3;4
A45: 42 | B45: 9041 | C45: 完成神识探索-云隐宗长老密信 | D45: - 完成神识探索-云隐宗长老密信{0}/{1} | G45: 10 | H45: 30018 | I45: 1 | J45: 30018 | L45: 1;2;3;4
A46: 43 | B46: 9042 | C46: 完成神识探索-抢走玉佩的山林小妖 | D46: - 完成神识探索-抢走玉佩的山林小妖{0}/{1} | G46: 10 | H46: 30019 | I46: 2 | J46: 30019 | L46: 1;2;3;4
A47: 44 | B47: 9043 | C47: 完成神识探索-山野采草 | D47: - 完成神识探索-山野采草{0}/{1} | G47: 10 | H47: 30020 | I47: 3 | J47: 30020 | L47: 1;2;3;4
A48: 45 | B48: 9044 | C48: 完成神识探索-秘境种子 | D48: - 完成神识探索-秘境种子{0}/{1} | G48: 10 | H48: 30021 | I48: 2 | J48: 30021 | L48: 1;2;3;4
A49: 46 | B49: 9045 | C49: 完成神识探索-甜蜜果实 | D49: - 完成神识探索-甜蜜果实{0}/{1} | G49: 10 | H49: 30022 | I49: 3 | J49: 30022 | L49: 1;2;3;4
A50: 47 | B50: 9046 | C50: 完成神识探索-消灭妖邪 | D50: - 完成神识探索-消灭妖邪{0}/{1} | G50: 10 | H50: 30023 | I50: 5 | J50: 9141 | L50: 1;2;3;4
A51: 48 | B51: 9047 | C51: 完成神识探索-消灭仙山山径西边的妖物 | D51: - 完成神识探索-消灭仙山山径西边的妖物{0}/{1} | G51: 10 | H51: 30024 | I51: 5 | J51: 9143 | L51: 1;2;3;4

Sheet 条件类型查询
A1: ID | B1: 条件判断类型 | C1: 条件判断值 | D1: 条件完成次数or数量 | E1: 额外文本 | F1: 不可用 | G1: 是否可用于事件 | K1: 事件类型：
A2: 1 | B2: 拥有特定道具 | C2: 道具ID | D2: 数量≥ | E2: 检测背包道具 | G2: 1 | J2: 1 | K2: 1.通用事件
A3: 2 | B3: 灵根判定 | C3: 哪个灵根 | D3: 灵根值≥ | F3: 1 | J3: 2 | K3: 2.挂机事件
A4: 3 | B4: 境界判断 | C4: 境界id | G4: 1 | J4: 4 | K4: 4.主线任务
A5: 5 | B5: 战斗胜利 | C5: 战斗组ID | D5: 胜利次数≥ | J5: 5 | K5: 5.仙山探险
A6: 6 | B6: 获得道具 | C6: 道具的ID | D6: 数量≥ | E6: 探测出事件才开始检测 | J6: 6 | K6: 6.支线事件
A7: 7 | B7: 触发概率 | C7: 概率值 1000=100% | G7: 1 | J7: 88 | K7: 88.特定任务触发的事件
A8: 8 | B8: 使用神识 | D8: 数量≥ | J8: 99 | K8: 99.无标记
A9: 9 | B9: 游戏在线多少时长（秒） | D9: 时间≥（秒） | G9: 1 | J9: 7 | K9: 道友剧情任务
A10: 10 | B10: 前置事件 | C10: 事件ID | G10: 1

Sheet 产出tag查询
A1: 产出TAG | B1: 产出类型
A2: 1 | B2: 金币
A3: 2 | B3: 修为
A4: 3 | B4: 功法灵气
A5: 4 | B5: 法宝灵韵
A6: 5 | B6: 功法碎片
A7: 6 | B7: 法宝碎片
A8: 7 | B8: 修为丹
A9: 8 | B9: 天材地宝
A10: 9 | B10: 渡劫丹
A11: 10 | B11: 好感度礼物
A12: 11 | B12: 心情礼物
A13: 12 | B13: 钻石（妖丹）
A14: 13 | B14: 代金券（仙缘宝劵）
A15: 14
A16: 15
A17: 16
A18: 17
A19: 18
A20: 19
A21: 20
A22: 21
A23: 22

Sheet EventNPC
A1: ID | B1: name | C1: icon | D1: DaoyouID
A2: int | B2: int | C2: string | D2: int
A4: ID | B4: 名字 | C4: 半身像icon | D4: 道友ID | E4: 名称
A5: 1 | B5: 3000 | C5: bg_lh_chidaoren
A6: 2 | B6: 1953 | C6: bg_lh_quelinger | D6: 1 | E6: 雀灵儿
A7: 3 | B7: 1954 | C7: bg_lh_chidaoren | D7: 2 | E7: 云枝
A8: 4 | B8: 1955 | C8: bg_lh_fengyao | D8: 3 | E8: 风瑶
A9: 5 | B9: 1956 | C9: bg_lh_wanxi | D9: 4 | E9: 婉溪
A10: 6 | B10: 1957 | C10: bg_lh_xuyou | D10: 5 | E10: 许由
A11: 7 | B11: 1958 | C11: bg_lh_fengdaoren | D11: 6 | E11: 疯道人
A12: 8 | B12: 1959 | C12: bg_lh_chidaoren | D12: 7 | E12: 道友7
A13: 9 | B13: 1960 | C13: bg_lh_chidaoren | D13: 8 | E13: 道友8
A14: 10 | B14: 1961 | C14: bg_lh_chidaoren | D14: 9 | E14: 道友9
A15: 11 | B15: 1962 | C15: bg_lh_chidaoren | D15: 10 | E15: 道友10
A17: 100 | B17: 3000 | E17: 玩家
A18: 101 | B18: 3001 | C18: bg_lh_chidaoren | E18: 蜩鸟
A19: 102 | B19: 3002 | C19: bg_lh_quelinger | E19: 小麻雀
A20: 103 | B20: 3003 | C20: bg_lh_fengdaoren | E20: 疯道人
A21: 104 | B21: 3004 | C21: bg_lh_chidaoren | E21: 痴道人
A22: 105 | B22: 3005 | C22: bg_lh_yao | E22: 尧帝
A23: 106 | B23: 3006 | C23: bg_lh_xuyou | E23: 许由
A24: 107 | B24: 3007 | C24: bg_lh_chidaoren | E24: 村名甲
A25: 108 | B25: 3008 | C25: bg_lh_chidaoren | E25: 村名乙
A26: 109 | B26: 3009 | C26: bg_lh_chidaoren | E26: 村名丙
A27: 110 | B27: 3010 | C27: bg_lh_emuzhiling | E27: 樗木之灵
A28: 111 | B28: 2078 | C28: bg_lh_huizi | E28: 惠子
A29: 112 | B29: 3021 | C29: bg_lh_chidaoren | E29: 风无咎
A30: 113 | B30: 3034 | C30: bg_lh_chidaoren | E30: 北海剑妖
A31: 114 | B31: 3067 | C31: bg_lh_chidaoren | E31: 拦路妖兽
A32: 115 | B32: 2091 | C32: bg_lh_chidaoren | E32: 小麻雀幻影
A33: 116 | B33: 2092 | C33: bg_lh_chidaoren | E33: 痴道人幻影
A34: 117 | B34: 2093 | C34: bg_lh_chidaoren | E34: 樗木之灵幻影
A35: 118 | B35: 2094 | C35: bg_lh_gushexianzi | E35: 神人
A36: 119 | B36: 2095 | C36: bg_lh_chidaoren | E36: 鲲鹏
A37: 120 | B37: 2096 | C37: bg_lh_chidaoren | E37: 妖兽
A38: 121 | B38: 2097 | C38: bg_lh_zhiyao | E38: 云枝
A39: 122 | B39: 2098 | C39: bg_lh_fengyao | E39: 风瑶
A40: 123 | B40: 2099 | C40: bg_lh_chidaoren | E40: 散修甲
A41: 124 | B41: 2100 | C41: bg_lh_chidaoren | E41: 散修乙
A42: 125 | B42: 2101 | C42: bg_lh_chidaoren | E42: 散修丙
A43: 126 | B43: 2102 | C43: bg_lh_huizi | E43: 老张
A44: 127 | B44: 2103 | C44: bg_lh_huizi | E44: 老李
A45: 128 | B45: 2104 | C45: bg_lh_huizi | E45: 敌人
A46: 129 | B46: 2105 | C46: bg_lh_huizi | E46: 灵姬
A47: 130 | B47: 2106 | C47: bg_lh_huizi | E47: 冤魂
A48: 131 | B48: 2107 | C48: bg_lh_huizi | E48: 馨儿
A49: 132 | B49: 2108 | C49: bg_lh_huizi | E49: 信使
A50: 133 | B50: 2109 | C50: bg_lh_huizi | E50: 血海宗弟子A
A51: 134 | B51: 2110 | C51: bg_lh_huizi | E51: 柳轻烟
A52: 135 | B52: 2111 | C52: bg_lh_huizi | E52: 血海宗弟子B
A53: 136 | B53: 2112 | C53: bg_lh_huizi | E53: 血海宗敌人
A54: 137 | B54: 2113 | C54: bg_lh_huizi | E54: 冲虚真人
A55: 138 | B55: 2114 | C55: bg_lh_huizi | E55: 散修
A56: 139 | B56: 2115 | C56: bg_lh_huizi | E56: 蒙面散修精英
A57: 140 | B57: 2116 | C57: bg_lh_huizi | E57: 楚云缪
A58: =A57+1 -> 141 | B58: 2117 | C58: bg_lh_huizi | E58: 青狼散人
A59: =A58+1 -> 142 | B59: 2118 | C59: bg_lh_huizi | E59: 林风
A60: =A59+1 -> 143 | B60: 2119 | C60: bg_lh_huizi | E60: 柳清清
A61: =A60+1 -> 144 | B61: 2120 | C61: bg_lh_huizi | E61: 玄水真人
A62: =A61+1 -> 145 | B62: 2121 | C62: bg_lh_huizi | E62: 云霄龙鹰
A63: 146 | B63: 2122 | C63: bg_lh_huizi | E63: 鱼
A64: 147 | B64: 2123 | C64: bg_lh_huizi | E64: 石精
A65: 148 | B65: 2124 | C65: bg_lh_huizi | E65: 小雷霆兽
A66: 149 | B66: 2125 | C66: bg_lh_huizi | E66: 自称神兽的蚊子
A67: 150 | B67: 2126 | C67: bg_lh_huizi | E67: 灵雀
A68: 151 | B68: 2127 | C68: bg_lh_huizi | E68: 老犬
A69: 152 | B69: 2128 | C69: bg_lh_huizi | E69: 萤火虫
A70: 153 | B70: 2129 | C70: bg_lh_huizi | E70: 小妖
A71: 154 | B71: 2130 | C71: bg_lh_huizi | E71: 老乌龟

Sheet XianTuLogConfig
A1: ID | B1: EventType | C1: Title | D1: Desc | E1: BigMapID
A2: int | B2: int | C2: int | D2: int | E2: int
A4: ID | B4: 1主线 2事件 | C4: 名称 | D4: 描述 | E4: 属于哪个章节
A5: 1 | B5: 1 | C5: 2087 | D5: 2089 | E5: 1 | F5: 第一章.逍遥游 | G5: 多次渡劫失败的你，误入“无何有之乡”，在这里受到了列子的指引，踏上了寻找七道心境的修仙之路。
A6: 2 | B6: 2 | C6: 2088 | D6: 2090 | E6: 1 | F6: 无用的大葫芦 | G6: 惠子种出了巨大葫芦，他觉得毫无用处，非常生气！
A7: 3 | B7: 2 | C7: 2088 | D7: 2090 | E7: 2 | F7: 无用的大葫芦 | G7: 惠子种出了巨大葫芦，他觉得毫无用处，非常生气！
A8: 4 | B8: 2 | C8: 2088 | D8: 2090 | E8: 3 | F8: 无用的大葫芦 | G8: 惠子种出了巨大葫芦，他觉得毫无用处，非常生气！
